Workbook

Sheet Cash Invoices
A1: RGV Cycle Stuff, dba -
T2: SALES RECEIPT
AC5: DATE: | AD5: =TODAY() -> 2018-07-20
AC6: INVOICE: | AD6: 26063
B13: Bill To: | X13: Ship To: | AL13: Note:
C14: Name: | AA14: =+E14 -> 0
C15: Phone: | AA15: =+E15 -> 0
C16: Address: | AA16: =+E16 -> 
C17: Email: | AA17: =+E17 -> 
K19: Custom LED Lighting
A20: Type | E20: Sales Rep / Tech | M20: VIN | T20: Miles | Y20: Terms | AD20: Due Date
A23: Product ID | E23: Description | T23: Quantity | Y23: Unit Price | AD23: Line Total
AD24: =ROUND(+T24*Y24+0.000001,2) -> 0
AD25: 0
AD26: 0
AD27: 0
AD28: 0
AD29: 0
AD30: 0
AD31: 0
AD32: 0
AD33: 0
AD34: 0
AD35: 0
AB36: SUBTOTAL | AD36: =SUM(AD24:AH35) -> 0
F37: RGV Cycle Center | AB37: TAX (8.25%) | AD37: =ROUND(+AD36*0.0825,2) -> 0
F38: 2716 N.10th Street | AB38: SHIPPING & HANDLING
F39: McAllen, TX 78501 | AB39: TOTAL | AD39: =SUM(AD36:AH38) -> 0
A40: NOTES: | AB40: PAID
A41: Use caution with new tires, "slippery" for the first 100 miles. | AB41: TOTAL DUE | AD41: =+AD39-AD40 -> 0
A42: Check all fastening nuts and bolts after 100 miles.
A43: No refunds on self installed electrical items or Helmets.
A44: 25% restocking fee after 7 days & all Special Orders.
A45: 956-688-8086
A47: THANK YOU FOR YOUR BUSINESS !

Sheet Ctrl_R
A1: RGV Cycle Stuff, dba -
T2: SALES RECEIPT
AC5: DATE: | AD5: 2018-01-29
AC6: INVOICE: | AD6: 24834
Z7: Total Invoice | AF7: 318
Z8: Total Paid | AF8: 0
Z9: Balance | AF9: 318
B13: Bill To: | X13: Ship To: | AL13: Note:
C14: Name: | E14: Carlos Gutierrez | AA14: =+E14 -> Carlos Gutierrez
C15: Phone: | E15: 956-784-9439 | AA15: =+E15 -> 956-784-9439
C16: Address: | E16: Resale in Monterey | AA16: =+E16 -> Resale in Monterey
C17: Email: | AA17: =+E17 -> 
K19: Custom LED Lighting
A20: Type | E20: Sales Rep / Tech | M20: VIN | T20: Miles | Y20: Terms | AD20: Due Date | AS20: How
A21: P | E21: Robert | Y21: Due | AS21: Paid | AU21: Balance
A23: Product ID | E23: Description | T23: Quantity | Y23: Unit Price | AD23: Line Total | AM23: 2018-01-29 | AO23: Deposit | AQ23: 0 | AS23: Due | AU23: 318
A24: 152594 | E24: Headlamp LED BM 7in w/Int Turn Signals | T24: 2 | Y24: 159 | AD24: =ROUND(+T24*Y24+0.000001,2) -> 318
AD25: 0
E26: ETA Fri 2nd | AD26: 0
E27: Thanks | AD27: 0
AD28: 0
AD29: 0
AD30: 0
AD31: 0
AD32: 0
AD33: 0
AD34: 0
AD35: 0
AB36: SUBTOTAL | AD36: =SUM(AD24:AH35) -> 318
F37: RGV Cycle Center | AB37: TAX (8.25%)
F38: 2716 N.10th Street | AB38: SHIPPING & HANDLING
F39: McAllen, TX 78501 | AB39: TOTAL | AD39: =SUM(AD36:AH38) -> 318
A40: NOTES: | AB40: PAID | AD40: 0
A41: Use caution with new tires, "slippery" for the first 100 miles. | AB41: TOTAL DUE | AD41: 318
A42: Check all fastening nuts and bolts after 100 miles.
A43: No refunds on self installed electrical items or Helmets.
A44: 25% restocking fee after 7 days & all Special Orders.
A45: 956-688-8086
A47: THANK YOU FOR YOUR BUSINESS !

Sheet CTRL_G
A1: RGV Cycle Stuff, dba -
U2: ESTIMATE
AC5: DATE: | AD5: 2018-07-20T12:44:10
B13: Bill To: | X13: Ship To: | AL13: Note:
E14: Mario | AA14: =+E14 -> Mario
E15: 956-714-2344 | AA15: =+E15 -> 956-714-2344
E16: 2006 V-Star 650 Classic | AA16: =+E16 -> 2006 V-Star 650 Classic
E17: USA | L17: ESTIMATE | AA17: =+E17 -> USA
A20: Type | E20: Sales Rep / Tech | M20: VIN | T20: Miles | Y20: Terms | AD20: Due Date
E21: Robert | Y21: Cash
A23: Product ID | E23: Description | T23: Quantity | Y23: Unit Price | AD23: Line Total
A24: 87-4586 | E24: Shinko *130/90B16 WWW SR777 Reinf FR | T24: 1 | Y24: 123 | AD24: =+T24*Y24 -> 123 | AL24: 1
A25: 87-4593 | E25: Shinko *170/80-15 WWW SR777 Reinf RR | T25: 1 | Y25: 143 | AD25: 143 | AL25: 1
A26: 87-0147 | E26: Tube 170/80-15 TR6 | T26: 1 | Y26: 24 | AD26: 24
A27: 87-0151 | E27: Tube 5.00/5.10-16 TR6 | T27: 1 | Y27: 20 | AD27: 20
A28: 500060 | E28: Labor - Mount & Balance RR, on bike | T28: 1 | Y28: 60 | AD28: 60 | AL28: -3
A29: 500045 | E29: Labor - Mount & Balance FR, on bike | T29: 1 | Y29: 45 | AD29: 45 | AL29: 0
A30: 500002 | E30: Tire Disposal Fee | T30: 2 | Y30: 2.5 | AD30: 5
AD31: 0
AD32: 0
AD33: 0
AD34: 0
E35: Estimates valid for 10 days | AD35: 0
AB36: SUBTOTAL | AD36: =SUM(AD24:AH35) -> 420
F37: RGV Cycle Center | AB37: TAX (8.25%) | AD37: =+AD36*0.0825 -> 34.65
F38: 2716 N.10th Street | AB38: SHIPPING & HANDLING
F39: McAllen, TX 78501 | AB39: TOTAL | AD39: =SUM(AD36:AH38) -> 454.65
A40: NOTES: | AB40: PAID
A41: Use caution with new tires, "slippery" for the first 100 miles. Check all fastening nuts and bolts after 100 miles. No refunds on self installed electrical items. 20% restocking fee after 7 days & Special Orders. | AB41: TOTAL EST. | AD41: =+AD39-AD40 -> 454.65
A45: 956-688-8086
A47: THANK YOU FOR YOUR BUSINESS !

Sheet Estimate
A1: RGV Cycle Stuff, dba -
U2: ESTIMATE
AC5: DATE: | AD5: =NOW() -> 2018-07-20T19:54:04.310
B13: Bill To: | X13: Ship To: | AL13: Note:
E14: Cash Customer | AA14: =+E14 -> Cash Customer
AA15: =+E15 -> 0
AA16: =+E16 -> 0
E17: USA | L17: ESTIMATE | AA17: =+E17 -> USA
A20: Type | E20: Sales Rep / Tech | M20: VIN | T20: Miles | Y20: Terms | AD20: Due Date
E21: Robert | Y21: Cash
A23: Product ID | E23: Description | T23: Quantity | Y23: Unit Price | AD23: Line Total
AD24: =+T24*Y24 -> 0 | AL24: 1
AD25: 0 | AL25: 1
AD26: 0
AD27: 0
AD28: 0 | AL28: -3
AD29: 0 | AL29: 0
AD30: 0
AD31: 0
AD32: 0
AD33: 0
AD34: 0
E35: Estimates valid for 10 days | AD35: 0
AB36: SUBTOTAL | AD36: =SUM(AD24:AH35) -> 0
F37: RGV Cycle Center | AB37: TAX (8.25%) | AD37: =+AD36*0.0825 -> 0
F38: 2716 N.10th Street | AB38: SHIPPING & HANDLING
F39: McAllen, TX 78501 | AB39: TOTAL | AD39: =SUM(AD36:AH38) -> 0
A40: NOTES: | AB40: PAID
A41: Use caution with new tires, "slippery" for the first 100 miles. Check all fastening nuts and bolts after 100 miles. No refunds on self installed electrical items. 20% restocking fee after 7 days & Special Orders. | AB41: TOTAL EST. | AD41: =+AD39-AD40 -> 0
A45: 956-688-8086
A47: THANK YOU FOR YOUR BUSINESS !

Sheet Jul-18
A1: Invoice | C1: =SUM(C3:C337) -> 15597.73 | D1: =SUM(D3:D337) -> 832.89 | H1: =TODAY() -> 2018-07-20
A2: Number | B2: Date | C2: Amount | D2: Tax | E2: Terms
A3: 25938 | B3: 2018-07-02 | C3: 413.52 | D3: 31.52 | E3: $238.52 Square, Bal Cash
A4: 25939 | B4: 2018-07-02 | C4: 11.91 | D4: 0.91 | F4: 0 | G4: =+F4*0.97831 -> 0
A5: 25940 | B5: 2018-07-03 | C5: 154 | D5: 11.74
A6: 25941 | B6: 2018-07-03 | C6: 48.93 | D6: 3.73 | E6: Due, BMW
A7: 25942 | B7: 2018-07-03 | C7: 0 | D7: 0 | E7: Battery trade
A8: 25943 | B8: 2018-07-03 | C8: 60.62 | D8: 4.62 | E8: Visa
A9: 25944 | B9: 2018-07-03 | C9: 17.86 | D9: 1.36 | E9: Visa
A10: 25945 | B10: 2018-07-03 | C10: 31.1 | E10: Visa, Border Patrol
A11: 25946 | B11: 2018-07-03 | C11: 29.8 | E11: Visa, Border Patrol
A12: 25947 | B12: 2018-07-03 | C12: 29.8 | E12: Visa, Border Patrol
A13: 25948 | B13: 2018-07-03 | C13: 211.09 | D13: 16.09 | E13: Visa
A14: 25949 | B14: 2018-07-03 | C14: 2.17 | D14: 0.17 | F14: =+C8+C9+C13+11.96 -> 301.53 | G14: =+F14*0.97831 -> 294.9898143
A15: 25950 | B15: 2018-07-05 | C15: 67 | E15: Due, Revolution - resale
A16: 25951 | B16: 2018-07-05 | C16: 3.5 | D16: 0.27
A17: 25952 | B17: 2018-07-05 | C17: 9.74 | D17: 0.74 | E17: Visa
A18: 25953 | B18: 2018-07-05 | C18: 85.52 | D18: 6.52 | E18: Visa
A19: 25954 | B19: 2018-07-05 | C19: 210.87 | D19: 16.07 | E19: MC, $100 due
A20: 25955 | B20: 2018-07-05 | C20: 43.3 | D20: 3.3 | E20: AmExp
A21: 25956 | B21: 2018-07-05 | C21: 250 | D21: 19.05 | F21: =+C10+C11+C12+C17+C18+110.87+C20 -> 340.13 | G21: =+F21*0.97831 -> 332.7525803
A22: 25957 | B22: 2018-07-06 | C22: 370 | D22: 28.2 | E22: Due, $230 due
A23: 25958 | B23: 2018-07-06 | C23: 187.27 | D23: 14.27 | E23: Visa
A24: 25959 | B24: 2018-07-06 | C24: 43.19 | D24: 3.29 | E24: Visa
A25: 25960 | B25: 2018-07-06 | C25: 15.7 | D25: 1.2 | E25: Visa | F25: =+C23+C24+C25 -> 246.16 | G25: =+F25*0.97831 -> 240.8207896
A26: 25961 | B26: 2018-07-07 | C26: 217.91 | D26: 16.61
A27: 25962 | B27: 2018-07-07 | C27: 238.69 | D27: 18.19 | E27: Square
A28: 25963 | B28: 2018-07-07 | C28: 493.62 | D28: 37.62 | E28: $193.62 due
A29: 25964 | B29: 2018-07-07 | C29: 25 | D29: 1.91 | E29: Visa
A30: 25965 | B30: 2018-07-07 | C30: 217.5 | E30: Due, Carlos - resale MX
A31: 25966 | B31: 2018-07-07 | C31: 172.06 | D31: 13.11 | E31: Square | F31: =+C29 -> 25 | G31: =+F31*0.97831 -> 24.45775 | H31: $410.75 Square
A32: 25967 | B32: 2018-07-09 | C32: 60.5 | E32: Due, Carlos - resale MX
A33: 25968 | B33: 2018-07-09 | C33: 53 | D33: 4.04 | E33: MC
A34: 25969 | B34: 2018-07-09 | C34: 70.36 | D34: 5.36 | E34: Square
A35: 25970 | B35: 2018-07-09 | C35: -10.83 | D35: -0.83 | E35: Apply to Tires, Paco
A36: 25971 | B36: 2018-07-09 | C36: 64.95 | D36: 4.95 | E36: Visa
A37: 25972 | B37: 2018-07-09 | C37: 470.89 | D37: 35.89 | E37: Visa
A38: 25973 | B38: 2018-07-09 | C38: 174.82 | D38: 13.32 | E38: Visa, $99.82 due
A39: 25974 | B39: 2018-07-09 | C39: 123.71 | D39: 9.43 | E39: Visa
A40: 25975 | B40: 2018-07-09 | C40: 11.91 | D40: 0.91
A41: 25976 | B41: 2018-07-09 | C41: 9.74 | D41: 0.74
A42: 25977 | B42: 2018-07-09 | C42: 89.79 | D42: 6.84
A43: 25978 | B43: 2018-07-09 | C43: 239.23 | D43: 18.23 | F43: =+C33+178.15+75+C36+C37+C39 -> 965.7 | G43: =+F43*0.97831 -> 944.753967 | H43: $70.36 Square
A44: 25979 | B44: 2018-07-10 | C44: 17.32 | D44: 1.32 | E44: Visa
A45: 25980 | B45: 2018-07-10 | C45: 15 | D45: 1.14
A46: 25981 | B46: 2018-07-10 | C46: 66.03 | D46: 5.03 | E46: Visa
A47: 25982 | B47: 2018-07-10 | C47: 29.8 | E47: Visa, Border Patrol
A48: 25983 | B48: 2018-07-10 | C48: 73.61 | D48: 5.61 | E48: Visa
A49: 25984 | B49: 2018-07-10 | C49: 16.24 | D49: 1.24 | E49: Visa
A50: 25985 | B50: 2018-07-10 | C50: 287 | E50: Due | F50: =+C44+C46+C47+380+C48+C49 -> 583 | G50: =+F50*0.97831 -> 570.35473
A51: 25986 | B51: 2018-07-11 | C51: 5.39 | D51: 0.41 | E51: Visa
A52: 25987 | B52: 2018-07-11 | C52: 16.24 | D52: 1.24
A53: 25988 | B53: 2018-07-11 | C53: 203.29 | D53: 15.49
A54: 25989 | B54: 2018-07-11 | C54: 7.6 | E54: Due, Revolution - resale
A55: 25990 | B55: 2018-07-11 | C55: 46.5 | E55: J.Rangel - resale
A56: 25991 | B56: 2018-07-11 | C56: -36.25 | E56: J.Rangel - resale
A57: 25992 | B57: 2018-07-11 | C57: 213 | E57: Due, Carlos - resale MX
A58: 25993 | B58: 2018-07-11 | C58: 29.9 | E58: Visa, ESG - resale
A59: 25994 | B59: 2018-07-11 | C59: 24.9 | D59: 1.9 | E59: Visa
A60: 25995 | B60: 2018-07-11 | C60: 250 | D60: 19.05
A61: 25996 | B61: 2018-07-11 | C61: 69.23 | D61: 5.28 | E61: Square
A62: 25997 | B62: 2018-07-11 | C62: 3.5 | D62: 0.27 | F62: =+C51+C59 -> 30.29 | G62: =+F62*0.97831 -> 29.6330099 | H62: $69.23 Square
A63: 25998 | B63: 2018-07-12 | C63: 31.1 | E63: Due, Border Patrol
A64: 25999 | B64: 2018-07-12 | C64: 9.5 | D64: 0.72 | E64: MC
A65: 26000 | B65: 2018-07-12 | C65: 152 | E65: Due, Carlos - resale MX
A66: 26001 | B66: 2018-07-12 | C66: 74.69 | D66: 5.69
A67: 26002 | B67: 2018-07-12 | C67: 540 | D67: 41.1 | E67: $340. due
A68: 26003 | B68: 2018-07-12 | C68: 23.82 | D68: 1.82 | E68: Square | F68: =30+C64+C63 -> 70.6 | G68: =+F68*0.97831 -> 69.068686 | H68: $262.51 Square
A69: 26004 | B69: 2018-07-13 | C69: 10.83 | D69: 0.83 | E69: Visa
A70: 26005 | B70: 2018-07-13 | E70: New Inv, battery & Chgr
A71: 26006 | B71: 2018-07-13 | C71: 97.39 | D71: 7.42 | E71: $27.39 Due
A72: 26007 | B72: 2018-07-13 | C72: 147.22 | D72: 11.22
A73: 26008 | B73: 2018-07-13 | C73: 108.25 | D73: 8.25
A74: 26009 | B74: 2018-07-13 | C74: 84.98 | D74: 6.48 | E74: MC
A75: 26010 | B75: 2018-07-13 | C75: 73.61 | D75: 5.61
A76: 26011 | B76: 2018-07-13 | C76: 150.47 | D76: 11.47 | E76: Visa
A77: 26012 | B77: 2018-07-13 | C77: 44.82 | D77: 3.42
A78: 26013 | B78: 2018-07-13 | C78: 117.99 | D78: 8.99
A79: 26014 | B79: 2018-07-13 | C79: 46.49 | D79: 3.54 | E79: Visa | F79: =+C74+C76+C79 -> 281.94 | G79: =+F79*0.97831 -> 275.8247214
A80: 26015 | B80: 2018-07-14 | C80: 294.44 | D80: 22.44
A81: 26016 | B81: 2018-07-14 | C81: 2494 | E81: Due, Border Patrol
A82: 26017 | B82: 2018-07-14 | C82: 50.88 | D82: 3.88 | E82: Visa
A83: 26018 | B83: 2018-07-14 | C83: 24.9 | D83: 1.9
A84: 26019 | B84: 2018-07-14 | C84: 16.24 | D84: 1.24
A85: 26020 | B85: 2018-07-14 | C85: 41 | E85: Due, Revolution - resale
A86: 26021 | B86: 2018-07-14 | C86: 138.56 | D86: 10.56 | E86: Visa | F86: =+C82+C86 -> 189.44 | G86: =+F86*0.97831 -> 185.3310464
A87: 26022 | B87: 2018-07-16 | C87: 332.33 | D87: 25.33 | E87: MC
A88: 26023 | B88: 2018-07-16 | C88: 149 | D88: 11.36 | E88: AmExp
A89: 26024 | B89: 2018-07-16 | C89: 16.18 | D89: 1.23
A90: 26025 | B90: 2018-07-16 | C90: 32.46 | D90: 2.47 | E90: MC
A91: 26026 | B91: 2018-07-16 | C91: 14.02 | D91: 1.07 | E91: MC
A92: 26027 | B92: 2018-07-16 | C92: 36.81 | D92: 2.81 | E92: MC
A93: 26028 | B93: 2018-07-16 | C93: 25 | D93: 1.91 | E93: MC
A94: 26029 | B94: 2018-07-16 | C94: 36.37 | D94: 2.77 | E94: Visa
A95: 26030 | B95: 2018-07-16 | C95: 10.23 | D95: 0.78 | E95: Cash
A96: 26031 | B96: 2018-07-16 | C96: 385 | D96: 29.34 | E96: Square
A97: 26032 | B97: 2018-07-16 | C97: 22.73 | D97: 1.73 | E97: Due | F97: =+C87+C88+C90+C91+C92+C94+C93+0.03 -> 626.02 | G97: =+F97*0.97831 -> 612.4416262 | H97: $385.00 Square
A98: 26033 | B98: 2018-07-17 | C98: 48.71 | D98: 3.71 | E98: Visa
A99: 26034 | B99: 2018-07-17 | C99: 66.17 | E99: Visa, ESG - resale
A100: 26035 | B100: 2018-07-17 | C100: 113 | D100: 8.61
A101: 26036 | B101: 2018-07-17 | C101: 11.85 | D101: 0.9
A102: 26037 | B102: 2018-07-17 | C102: 476 | E102: Due, Carlos - resale MX
A103: 26038 | B103: 2018-07-17 | C103: 77.8 | E103: Due, Carlos - resale MX
A104: 26039 | B104: 2018-07-17 | E104: Deposit only | F104: =+C99+C58+C98 -> 144.78 | G104: =+F104*0.97831 -> 141.6397218
A105: 26040 | B105: 2018-07-18 | C105: 22.73 | D105: 1.73 | E105: Visa
A106: 26041 | B106: 2018-07-18 | C106: 0 | D106: 0
A107: 26042 | B107: 2018-07-18 | C107: 4.59 | E107: Visa
A108: 26043 | B108: 2018-07-18 | C108: 80.11 | D108: 6.11
A109: 26044 | B109: 2018-07-18 | C109: 80.11 | D109: 6.11
A110: 26045 | B110: 2018-07-18 | C110: 384.45 | D110: 29.3 | E110: Inv 26039
A111: 26046 | B111: 2018-07-18 | C111: 15.05 | D111: 1.15 | E111: Visa
A112: 26047 | B112: 2018-07-18 | C112: 9.74 | D112: 0.74
A113: 26048 | B113: 2018-07-18 | C113: 85 | D113: 6.48 | F113: =+C69+C105+C107+C111 -> 53.2 | G113: =+F113*0.97831 -> 52.046092
A114: 26049 | B114: 2018-07-19 | C114: 6.91 | D114: 0.53
A115: 26050 | B115: 2018-07-19 | C115: 40 | D115: 3.05 | F115: 0 | G115: =+F115*0.97831 -> 0
A116: 26051 | B116: 2018-07-20 | C116: 16.18 | D116: 1.23 | E116: MC
A117: 26052 | B117: 2018-07-20 | C117: 28.52 | E117: Visa, ESG - resale
A118: 26053 | B118: 2018-07-20 | C118: 2.71 | D118: 0.21 | E118: Visa, Addl to Inv 26007
A119: 26054 | B119: 2018-07-20 | C119: 55.21 | D119: 4.21 | E119: $35.21 due
A120: 26055 | B120: 2018-07-20 | C120: 454.65 | D120: 34.65 | E120: Square
A121: 26056 | B121: 2018-07-20 | C121: 325.83 | D121: 24.83 | E121: Due, Chevo
A122: 26057 | B122: 2018-07-20 | C122: 10.77 | D122: 0.82
A123: 26058 | B123: 2018-07-20 | C123: 16.24 | D123: 1.24
A124: 26059 | B124: 2018-07-20 | C124: 39 | E124: Due, J.Rangel - resale
A125: 26060 | B125: 2018-07-20 | C125: 689.55 | D125: 52.55 | E125: Visa
A126: 26061 | B126: 2018-07-20 | C126: 86.5 | E126: Due, Carlos - resale MX | F126: =+C116+C117+C118+67.22+C81+C125 -> 3298.18 | G126: =+F126*0.97831 -> 3226.642476 | H126: $454.65 Square
A127: 26062 | B127: 2018-07-21 | C127: 159 | E127: Due, Carlos - resale MX | F127: 0 | G127: =+F127*0.97831 -> 0 | H127: $0.00 Square
I170: =H1-WEEKDAY(H1,3)-7 -> 2018-07-09 | J170: =SUMIF(INDIRECT(TEXT(I170,"'mmm-yy'")&"!B3:B400"),I170,INDIRECT(TEXT(I170,"'mmm-yy'")&"!C3:C400")) -> 1358.07
I171: =I170+1 -> 2018-07-10 | J171: 505
I172: 2018-07-11 | J172: 833.3
I173: 2018-07-12 | J173: 831.11
I174: 2018-07-13 | J174: 882.05
I175: 2018-07-14 | J175: 3060.02
I176: 2018-07-15 | J176: 0 | K176: =SUM(J170:J176) -> 7469.55
I177: 2018-07-16 | J177: 1060.13
I178: 2018-07-17 | J178: 793.53
I179: 2018-07-18 | J179: 681.78
I180: 2018-07-19 | J180: 46.91
I181: 2018-07-20 | J181: 1725.16
I182: 2018-07-21 | J182: 159
I183: 2018-07-22 | J183: 0 | K183: =SUM(J177:J183) -> 4466.51

Sheet Jun-18
A1: Invoice | C1: =SUM(C3:C392) -> 20081.59 | D1: =SUM(D3:D392) -> 1350.63 | H1: =TODAY() -> 2018-07-20
A2: Number | B2: Date | C2: Amount | D2: Tax | E2: Terms
A3: 25754 | B3: 2018-06-01 | C3: 246.81 | D3: 18.81 | E3: MC
A4: 25755 | B4: 2018-06-01 | C4: 58.46 | D4: 4.46
A5: 25756 | B5: 2018-06-01 | C5: 27.06 | D5: 2.06 | E5: Visa
A6: 25757 | B6: 2018-06-01 | C6: 41 | D6: 3.12
A7: 25758 | B7: 2018-06-01 | C7: 241.4 | D7: 18.4 | E7: Visa
A8: 25759 | B8: 2018-06-01 | C8: 235.66 | D8: 17.66 | E8: Square
A9: 25760 | B9: 2018-06-01 | C9: 125 | D9: 9.53
A10: 25761 | B10: 2018-06-01 | C10: 104 | E10: Resale MX
A11: 25762 | B11: 2018-06-01 | C11: 36.81 | D11: 2.81
A12: 25763 | B12: 2018-06-01 | C12: 323 | E12: Due, Carlos G - resale MX
A13: 25764 | B13: 2018-06-01 | C13: 26 | E13: Due | F13: =+C3+C5+C7 -> 515.27 | G13: 505.33 | H13: $235.66 / $198.54 Square
A14: 25765 | B14: 2018-06-02 | C14: 114.75 | D14: 8.75
A15: 25766 | B15: 2018-06-02 | C15: 74.69 | D15: 5.69
A16: 25767 | B16: 2018-06-02 | C16: 139.64 | D16: 10.64 | E16: Visa
A17: 25768 | B17: 2018-06-02 | C17: 10.83 | D17: 0.83 | E17: Visa
A18: 25769 | B18: 2018-06-02 | C18: 77.94 | D18: 5.94
A19: 25770 | B19: 2018-06-02 | C19: 430 | D19: 32.77
A20: 25771 | B20: 2018-06-02 | C20: 21.65 | D20: 1.65
A21: 25772 | B21: 2018-06-02 | C21: 8.66 | D21: 0.66
A22: 25773 | B22: 2018-06-02 | C22: 30.2 | D22: 2.3 | E22: Square
A23: 25774 | B23: 2018-06-02 | C23: 128.82 | D23: 9.82 | E23: Square
A24: 25775 | B24: 2018-06-02 | C24: 15.16 | D24: 1.16
A25: 25776 | B25: 2018-06-02 | C25: 980 | D25: 74.69 | E25: Check, $380 due
A26: 25777 | B26: 2018-06-02 | C26: 71.45 | D26: 5.45
A27: 25778 | B27: 2018-06-02 | C27: 22.73 | D27: 1.73
A28: 25779 | B28: 2018-06-02 | C28: 122.97 | D28: 9.37
A29: 25780 | B29: 2018-06-02 | C29: 258.18 | D29: 19.68 | E29: Visa
A30: 25781 | B30: 2018-06-02 | C30: 24.7 | E30: Due, Revolution - resale | F30: =+C16+C17+C29 -> 408.65 | G30: 400.2 | H30: $159.02 / $133.97 Square
A31: 25782 | B31: 2018-06-04 | C31: 172 | D31: 13.11
A32: 25783 | B32: 2018-06-04 | C32: 23.82 | D32: 1.82 | E32: MC
A33: 25784 | B33: 2018-06-04 | C33: 21.6 | D33: 1.65 | E33: MC
A34: 25785 | B34: 2018-06-04 | C34: 70.36 | D34: 5.36
A35: 25786 | B35: 2018-06-04 | C35: 762.35 | D35: 58.1 | E35: Visa
A36: 25787 | B36: 2018-06-04 | C36: 135 | D36: 10.29 | E36: Visa
A37: 25788 | B37: 2018-06-04 | C37: 35.8 | E37: Visa, Border Patrol
A38: 25789 | B38: 2018-06-04 | C38: 348.84 | D38: 26.59 | E38: Check, BMW 750
A39: 25790 | B39: 2018-06-04 | C39: 386.45 | D39: 29.45 | F39: =+C32+C33+C36 -> 180.42 | G39: 178.53
A40: 25791 | B40: 2018-06-05 | C40: 21.65 | D40: 1.65
A41: 25792 | B41: 2018-06-05 | C41: 501.25 | E41: Due, Carlos G - resale MX
A42: 25793 | B42: 2018-06-05 | C42: 67.12 | D42: 5.12 | E42: Visa
A43: 25794 | B43: 2018-06-05 | C43: 264 | D43: 20.12 | E43: AmExp
A44: 25795 | B44: 2018-06-05 | C44: 160.21 | D44: 12.21 | E44: Due
A45: 25796 | B45: 2018-06-05 | C45: 12.99 | D45: 0.99
A46: 25797 | B46: 2018-06-05 | C46: 150.47 | D46: 11.47 | E46: Visa
A47: 25798 | B47: 2018-06-05 | C47: 29.23 | D47: 2.23 | E47: Square | F47: =+C42+C43+C46 -> 481.59 | G47: 473.27 | H47: $35.80 / $24.63 Square
A48: 25799 | B48: 2018-06-06 | C48: 21.65 | D48: 1.65
A49: 25800 | B49: 2018-06-06 | C49: 398.36 | D49: 30.36
A50: 25801 | B50: 2018-06-06 | C50: 140.73 | D50: 10.73 | E50: Visa
A51: 25802 | B51: 2018-06-06 | C51: 26 | D51: 1.98 | E51: Visa
A52: 25803 | B52: 2018-06-06 | C52: 400 | D52: 30.48
A53: 25804 | B53: 2018-06-06 | C53: 12.99 | D53: 0.99 | F53: =+C37+C35+C51+C50 -> 964.88 | G53: 940.53
A54: 25805 | B54: 2018-06-07 | C54: 29.8 | E54: Visa, Border Patrol
A55: 25806 | B55: 2018-06-07 | C55: 58 | E55: Due, Revolution - resale
A56: 25807 | B56: 2018-06-07 | C56: 37.89 | D56: 2.89 | E56: Visa
A57: 25808 | B57: 2018-06-07 | C57: 70 | E57: Due | F57: =+C56 -> 37.89 | G57: 36.95
A58: 25809 | B58: 2018-06-08 | C58: 37.83 | D58: 2.88 | E58: Visa
A59: 25810 | B59: 2018-06-08 | C59: 102.5 | E59: Due, Carlos G - resale MX
A60: 25811 | B60: 2018-06-08 | C60: 43.25 | D60: 3.3 | E60: Visa
A61: 25812 | B61: 2018-06-08 | C61: 11.25 | E61: Due, Revolution - resale | F61: =+C58+C60 -> 81.08 | G61: 79.59
A62: 25813 | B62: 2018-06-09 | C62: 71.99 | D62: 5.49
A63: 25814 | B63: 2018-06-09 | C63: 34.1 | E63: Visa, Border Patrol
A64: 25815 | B64: 2018-06-09 | C64: 32.37 | D64: 2.47
A65: 25816 | B65: 2018-06-09 | C65: 114.69 | D65: 8.74
A66: 25817 | B66: 2018-06-09 | C66: 21.5 | D66: 1.64 | F66: 0 | G66: =+F66*0.97831 -> 0
A67: 25818 | B67: 2018-06-11 | C67: 74.69 | D67: 5.69 | E67: Visa
A68: 25819 | B68: 2018-06-11 | C68: 29 | D68: 2.21 | E68: Due
A69: 25820 | B69: 2018-06-11 | C69: 236.53 | D69: 18.03 | E69: Square
A70: 25821 | B70: 2018-06-11 | C70: 440 | E70: Due, Carlos G - resale MX
A71: 25822 | B71: 2018-06-11 | C71: 38.97 | D71: 2.97 | E71: Due
A72: 25823 | B72: 2018-06-11 | C72: 51.42 | D72: 3.92 | E72: Visa
A73: 25824 | B73: 2018-06-11 | C73: 9.74 | D73: 0.74 | E73: Visa
A74: 25825 | B74: 2018-06-11 | C74: 30.31 | D74: 2.31
A75: 25826 | B75: 2018-06-11 | C75: 11.91 | D75: 0.91
A76: 25827 | B76: 2018-06-11 | C76: 21 | D76: 1.6
A77: 25828 | B77: 2018-06-11 | C77: 11.91 | D77: 0.91 | E77: MC
A78: 25829 | B78: 2018-06-11 | C78: 420.01 | D78: 32.01 | E78: MC | F78: =+C54+C63+C67+C72+C73+C77+C78 -> 631.67 | G78: 617.33 | H78: $236.53 / $199.28 Square
A79: 25830 | B79: 2018-06-12 | C79: 43.3 | D79: 3.3 | E79: Visa
A80: 25831 | B80: 2018-06-12 | C80: 443.28 | D80: 33.78 | E80: MC, $343.28 due
A81: 25832 | B81: 2018-06-12 | C81: 464.64 | D81: 81.14 | E81: $400 Visa, $64.64 Cash
A82: 25833 | B82: 2018-06-12 | C82: 80.11 | D82: 6.11 | E82: Visa
A83: 25834 | B83: 2018-06-12 | C83: 9.74 | D83: 0.74 | E83: Visa
A84: 25835 | B84: 2018-06-12 | C84: 441.66 | D84: 33.66 | E84: Visa
A85: 25836 | B85: 2018-06-12 | C85: 211.95 | D85: 16.15 | E85: MC
A86: 25837 | B86: 2018-06-12 | C86: 262.29 | D86: 19.99 | E86: Square
A87: 25838 | B87: 2018-06-12 | C87: 112.04 | D87: 8.54 | E87: Square | F87: =+C79+100+C82+C83+50+C85 -> 495.1 | G87: 486.66 | H87: $374.33 / $315.37 Square
A88: 25839 | B88: 2018-06-13 | C88: 225 | D88: 17.15
A89: 25840 | B89: 2018-06-13 | C89: 14.02 | D89: 1.07
A90: 25841 | B90: 2018-06-13 | C90: 26.1 | E90: Visa, Border Patrol
A91: 25842 | B91: 2018-06-13 | C91: 81.19 | D91: 6.19
A92: 25843 | B92: 2018-06-13 | C92: 32.48 | D92: 2.48 | E92: Visa
A93: 25844 | B93: 2018-06-13 | C93: 95.26 | D93: 7.26 | E93: Visa, Bearings
A94: 25845 | B94: 2018-06-13 | C94: 10 | D94: 0.76
A95: 25846 | B95: 2018-06-13 | C95: 61.65 | D95: 4.7 | E95: Visa | F95: =+C92+C90+400+C95 -> 520.23 | G95: 516.66
A96: 25847 | B96: 2018-06-14 | C96: 10.25 | D96: 0.78
A97: 25848 | B97: 2018-06-14 | C97: 17.32 | D97: 1.32 | E97: MC
A98: 25849 | B98: 2018-06-14 | C98: 149.39 | D98: 11.39 | E98: Paco, $109.39 due
A99: 25850 | B99: 2018-06-14 | C99: 68 | E99: Due
A100: 25851 | B100: 2018-06-14 | C100: 113.61 | D100: 8.66 | E100: Visa
A101: 25852 | B101: 2018-06-14 | C101: 35.87 | D101: 2.73 | F101: =200+C97+C100 -> 330.93 | G101: 323.76
A102: 25853 | B102: 2018-06-15 | C102: 85 | D102: 6.48 | E102: Visa
A103: 25854 | B103: 2018-06-15 | C103: 15.05 | D103: 1.15 | E103: AmExp
A104: 25855 | B104: 2018-06-15 | C104: 25.98 | D104: 1.98 | E104: $5.98 MC
A105: 25856 | B105: 2018-06-15 | C105: 91 | E105: MC
A106: 25857 | B106: 2018-06-15 | C106: 40.05 | D106: 3.05 | E106: MC
A107: 25858 | B107: 2018-06-15 | C107: 82.27 | D107: 6.27 | E107: Visa
A108: 25859 | B108: 2018-06-15 | C108: 416.76 | D108: 31.76 | E108: Square | F108: =+C102+C103+5.98+C93+C44+C105+C106+343.28+C107 -> 918.1 | G108: 905.7 | H108: $416.76 / $351.12 Square
A109: 25860 | B109: 2018-06-16 | C109: 190.52 | D109: 14.52
A110: 25861 | B110: 2018-06-16 | C110: 7.58 | D110: 0.58
A111: 25862 | B111: 2018-06-16 | C111: 31.1 | E111: ESG Kustoms - resale
A112: 25863 | B112: 2018-06-16 | C112: 50 | D112: 3.81
A113: 25864 | B113: 2018-06-16 | C113: 34.1 | E113: Visa, Border Patrol
A114: 25865 | B114: 2018-06-16 | C114: 50 | D114: 3.81 | E114: Square
A115: 25866 | B115: 2018-06-16 | C115: 27.06 | D115: 2.06 | E115: Square | F115: 0 | G115: =+F115*0.97831 -> 0 | H115: $468.72 / $394.89 Square
A116: 25867 | B116: 2018-06-18 | C116: 22.72 | D116: 1.73
A117: 25868 | B117: 2018-06-18 | C117: 8.66 | D117: 0.66 | E117: Due
A118: 25869 | B118: 2018-06-18 | C118: 31.1 | E118: Visa, Border Patrol
A119: 25870 | B119: 2018-06-18 | C119: 26.1 | E119: Visa, Border Patrol
A120: 25871 | B120: 2018-06-18 | C120: 8 | D120: 0.61
A121: 25872 | B121: 2018-06-18 | C121: 152.85 | D121: 11.65
A122: 25873 | B122: 2018-06-18 | C122: 17.32 | D122: 1.32
A123: 25874 | B123: 2018-06-18 | C123: 155.5 | E123: Due, Carlos G - resale MX
A124: 25875 | B124: 2018-06-18 | C124: 69.15 | D124: 5.27 | E124: $22 MC, Bal Cash | F124: =+C113+C118+C119+22 -> 113.3 | G124: 109.61
A125: 25876 | B125: 2018-06-19 | C125: 535 | D125: 40.77 | E125: $435. due, (& Inv 25886)
A126: 25877 | B126: 2018-06-19 | C126: 53.04 | D126: 4.04 | E126: Visa
A127: 25878 | B127: 2018-06-19 | C127: 45 | D127: 3.43
A128: 25879 | B128: 2018-06-19 | C128: 169.41 | D128: 12.91
A129: 25880 | B129: 2018-06-19 | C129: 51.96 | D129: 3.96 | E129: $11.96 due
A130: 25881 | B130: 2018-06-19 | C130: 245 | D130: 18.67
A131: 25882 | B131: 2018-06-19 | C131: 91.58 | D131: 6.98 | E131: Visa
A132: 25883 | B132: 2018-06-19 | C132: 86.6 | D132: 6.6 | E132: Visa
A133: 25884 | B133: 2018-06-19 | C133: 70 | E133: Used (of $170 collected)
A134: 25885 | B134: 2018-06-19 | C134: 37.89 | D134: 2.89
A135: 25886 | B135: 2018-06-19 | C135: 75 | D135: 5.72 | E135: Due, Addl to Inv 25876 | F135: =+C126++C131+C132 -> 231.22 | G135: 225.93
A136: 25887 | B136: 2018-06-22 | C136: 68 | D136: 5.18 | E136: MC
A137: 25888 | B137: 2018-06-22 | C137: -22.72 | D137: -1.73
A138: 25889 | B138: 2018-06-22 | C138: 35 | D138: 2.67 | E138: Discover
A139: 25890 | B139: 2018-06-22 | C139: 30 | D139: 2.29
A140: 25891 | B140: 2018-06-22 | C140: 95.36 | E140: Due, Joe R - resale
A141: 25892 | B141: 2018-06-22 | C141: 146 | E141: Due, Carlos G - resale MX | F141: =+C136+C138 -> 103 | G141: 101.06
A142: 25893 | B142: 2018-06-23 | C142: 31.39 | D142: 2.39 | E142: Visa
A143: 25894 | B143: 2018-06-23 | C143: 24.84 | D143: 1.89
A144: 25895 | B144: 2018-06-23 | C144: 133 | D144: 10.14
A145: 25896 | B145: 2018-06-23 | C145: 16.24 | D145: 1.24
A146: 25897 | B146: 2018-06-23 | C146: 52.5 | E146: Due, Joe R - resale
A147: 25898 | B147: 2018-06-23 | C147: 26.5 | E147: Due, Revolution - resale
A148: 25899 | B148: 2018-06-23 | C148: 13 | E148: Due, Carlos G - resale MX
A149: 25900 | B149: 2018-06-23 | C149: 107.17 | D149: 8.17 | E149: Due, 1976 BMW | F149: =+C142+C150 -> 42.22 | G149: 41.5
A150: 25901 | B150: 2018-06-25 | C150: 10.83 | D150: 0.83 | E150: Visa
A151: 25902 | B151: 2018-06-25 | C151: 57.26 | D151: 4.36
A152: 25903 | B152: 2018-06-25 | C152: 48.71 | D152: 3.71 | E152: Visa
A153: 25904 | B153: 2018-06-25 | C153: 290.11 | D153: 22.11 | E153: Visa | F153: =+C152+C153+29 -> 367.82 | G153: 360.14
A154: 25905 | B154: 2018-06-26 | C154: 30.26 | D154: 2.31
A155: 25906 | B155: 2018-06-26 | C155: 395.11 | D155: 30.11 | E155: Square | F155: 0 | G155: =+F155*0.97831 -> 0 | H155: $395.11 / $332.88 Square
A156: 25907 | B156: 2018-06-27 | C156: 13 | D156: 0.99
A157: 25908 | B157: 2018-06-27 | C157: 0 | D157: 0 | E157: Chris Yamaha Ref only
A158: 25909 | B158: 2018-06-27 | C158: 110 | E158: Due, Joe R - resale
A159: 25910 | B159: 2018-06-27 | C159: 160 | D159: 12.19
A160: 25911 | B160: 2018-06-27 | C160: 21.65 | D160: 1.65
A161: 25912 | B161: 2018-06-27 | C161: 225 | D161: 17.15
A162: 25913 | B162: 2018-06-27 | C162: 74.64 | D162: 5.69
A163: 25914 | B163: 2018-06-27 | C163: 0 | D163: 0 | E163: Visa $100, returned 25932 | F163: =71.17+100 -> 171.17 | G163: 169.31
A164: 25915 | B164: 2018-06-28 | C164: 292 | E164: $112 due, Revolution - resale
A165: 25916 | B165: 2018-06-28 | C165: 27.95 | E165: Visa, Border Patrol
A166: 25917 | B166: 2018-06-28 | C166: 24.84 | D166: 1.89 | E166: Visa
A167: 25918 | B167: 2018-06-28 | C167: 24.84 | D167: 1.89 | E167: Visa
A168: 25919 | B168: 2018-06-28 | C168: 9.69 | D168: 0.74 | F168: =+C166+C167+C165 -> 77.63 | G168: =+F168*0.97831 -> 75.9462053
A169: 25920 | B169: 2018-06-29 | C169: 96.34 | D169: 7.34 | E169: Visa
A170: 25921 | B170: 2018-06-29 | C170: 21.65 | D170: 1.65
A171: 25922 | B171: 2018-06-29 | C171: 70 | D171: 5.33 | E171: Due, PU Sat
A172: 25923 | B172: 2018-06-29 | C172: 25.98 | D172: 1.98 | E172: Visa
A173: 25924 | B173: 2018-06-29 | C173: 104.73 | D173: 7.98 | E173: Due, Africa Twin
A174: 25925 | B174: 2018-06-29 | C174: 315 | D174: 24.01 | E174: Due, Cash only
A175: 25926 | B175: 2018-06-29 | C175: 32 | D175: 2.45 | E175: Due
A176: 25927 | B176: 2018-06-29 | C176: 17 | D176: 1.3 | F176: =+C169+C172 -> 122.32 | G176: =+F176*0.97831 -> 119.6668792 | H176: $373 Square
A177: 25928 | B177: 2018-06-30 | C177: 33.99 | D177: 2.59
A178: 25929 | B178: 2018-06-30 | C178: 114.75 | D178: 8.75 | E178: Visa
A179: 25930 | B179: 2018-06-30 | C179: 173.2 | D179: 13.2
A180: 25931 | B180: 2018-06-30 | C180: 238.15 | D180: 18.15 | E180: $178.15 due
A181: 25932 | B181: 2018-06-30 | C181: -100 | E181: Visa, Return 25914
A182: 25933 | B182: 2018-06-30 | C182: 73.56 | D182: 5.61 | E182: Visa
A183: 25934 | B183: 2018-06-30 | C183: 10 | D183: 0.76
A184: 25935 | B184: 2018-06-30 | C184: 44.37 | D184: 3.38
A185: 25936 | B185: 2018-06-30 | C185: -129.9 | D185: -9.9 | E185: Square
A186: 25937 | B186: 2018-06-30 | C186: 60 | D186: 4.57 | E186: Due | F186: =+C178+C181+C182 -> 88.31 | G186: =+F186*0.97831 -> 86.3945561 | H186: $-59.90 Square
I224: =H1-WEEKDAY(H1,3)-7 -> 2018-07-09 | J224: =SUMIF(INDIRECT(TEXT(I224,"'mmm-yy'")&"!B3:B400"),I224,INDIRECT(TEXT(I224,"'mmm-yy'")&"!C3:C400")) -> 1358.07
I225: =I224+1 -> 2018-07-10 | J225: 505
I226: 2018-07-11 | J226: 833.3
I227: 2018-07-12 | J227: 831.11
I228: 2018-07-13 | J228: 882.05
I229: 2018-07-14 | J229: 3060.02
I230: 2018-07-15 | J230: 0 | K230: =SUM(J224:J230) -> 7469.55
I231: 2018-07-16 | J231: 1060.13
I232: 2018-07-17 | J232: 793.53
I233: 2018-07-18 | J233: 681.78
I234: 2018-07-19 | J234: 46.91
I235: 2018-07-20 | J235: 1725.16
I236: 2018-07-21 | J236: 159
I237: 2018-07-22 | J237: 0 | K237: =SUM(J231:J237) -> 4466.51

Sheet May-18
A1: Invoice | C1: =SUM(C3:C436) -> 24037.62895 | D1: =SUM(D3:D436) -> 1571.26895 | H1: =TODAY() -> 2018-07-20
A2: Number | B2: Date | C2: Amount | D2: Tax | E2: Terms
A3: 25544 | B3: 2018-05-01 | C3: 44.38 | D3: 3.38
A4: 25545 | B4: 2018-05-01 | C4: 1.62 | D4: 0.12
A5: 25546 | B5: 2018-05-01 | C5: 396.2 | D5: 30.2 | E5: Square
A6: 25547 | B6: 2018-05-01 | C6: 48.66 | D6: 3.71
A7: 25548 | B7: 2018-05-01 | C7: 111.23 | D7: 8.48 | E7: Visa
A8: 25549 | B8: 2018-05-01 | C8: 21.65 | D8: 1.65 | E8: Visa | F8: =+C7+C8 -> 132.88 | G8: =+F8*0.97831 -> 129.9978328 | H8: $396.2 Square
A9: 25550 | B9: 2018-05-02 | C9: 100 | D9: 7.62 | F9: 0 | G9: =+F9*0.97831 -> 0
A10: 25551 | B10: 2018-05-03 | C10: 21.65 | D10: 1.65 | E10: Visa
A11: 25552 | B11: 2018-05-03 | C11: 659.07 | D11: 50.23 | E11: Visa
A12: 25553 | B12: 2018-05-03 | C12: 135.31 | D12: 10.31 | E12: Square
A13: 25554 | B13: 2018-05-03 | C13: 33.8 | D13: 2.79 | E13: Visa, Border Patrol
A14: 25555 | B14: 2018-05-03 | C14: 245.73 | D14: 18.73 | E14: Due
A15: 25556 | B15: 2018-05-03 | C15: 35.18 | D15: 2.68 | E15: Due | F15: =+C11+C10-500+C13 -> 214.52 | G15: =+F15*0.97831 -> 209.8670612 | H15: $135.31 Square
A16: 25557 | B16: 2018-05-04 | C16: 125 | D16: 9.53
A17: 25558 | B17: 2018-05-04 | C17: 48 | D17: 3.66
A18: 25559 | B18: 2018-05-04 | C18: 30.26 | D18: 2.31 | E18: Visa
A19: 25560 | B19: 2018-05-04 | C19: 10.23 | D19: 0.78 | E19: Visa
A20: 25561 | B20: 2018-05-04 | C20: 43.3 | D20: 3.3 | E20: Visa | F20: =+C20+C19+C18 -> 83.79 | G20: =+F20*0.97831 -> 81.9725949 | H20: $0.00 Square
A21: 25562 | B21: 2018-05-05 | C21: 35.67 | D21: 2.72 | E21: Square
A22: 25563 | B22: 2018-05-05 | C22: 14.02 | D22: 1.07 | E22: AmEx
A23: 25564 | B23: 2018-05-05 | C23: 12.99 | D23: 0.99 | E23: Visa
A24: 25565 | B24: 2018-05-05 | C24: 47.63 | D24: 3.63 | E24: Visa
A25: 25566 | B25: 2018-05-05 | C25: 16.24 | D25: 1.24 | E25: Visa
A26: 25567 | B26: 2018-05-05 | C26: 138.61 | D26: 10.56 | E26: MC
A27: 25568 | B27: 2018-05-05 | C27: 92.01 | D27: 7.01 | E27: Visa
A28: 25569 | B28: 2018-05-05 | C28: 14.02 | D28: 1.07 | E28: AM
A29: 25570 | B29: 2018-05-05 | C29: 54.13 | D29: 4.13 | E29: Visa
A30: 25571 | B30: 2018-05-05 | C30: 48.71 | D30: 3.71 | E30: Due
A31: 25572 | B31: 2018-05-05 | C31: 371.5 | E31: Due | F31: =+C27+C25+C24+C23+C26+C22 -> 321.5 | G31: =+F31*0.97831 -> 314.526665 | H31: $35.67 / $30.05 Square
A32: 25573 | B32: 2018-05-07 | C32: 269.75 | D32: 20.56 | E32: Visa
A33: 25574 | B33: 2018-05-07 | C33: 2.71 | D33: 0.21
A34: 25575 | B34: 2018-05-07 | C34: 433 | D34: 33 | E34: $373. due
A35: 25576 | B35: 2018-05-07 | C35: 11 | D35: 0.84
A36: 25577 | B36: 2018-05-07 | C36: 54.13 | D36: 4.13 | E36: Visa
A37: 25578 | B37: 2018-05-07 | C37: 390 | D37: 29.72 | E37: $190. due
A38: 25579 | B38: 2018-05-07 | C38: 356 | D38: 27.13 | E38: $6. due
A39: 25580 | B39: 2018-05-07 | C39: 95 | E39: J.Rangel - resale
A40: 25581 | B40: 2018-05-07 | C40: 65.5 | E40: J.Rangel - resale
A41: 25582 | B41: 2018-05-07 | C41: 110 | E41: J.Rangel - resale
A42: 25583 | B42: 2018-05-07 | C42: 88 | E42: J.Rangel - resale
A43: 25584 | B43: 2018-05-07 | C43: 164.75 | E43: J.Rangel - resale
A44: 25585 | B44: 2018-05-07 | C44: 147 | E44: Due, J.Rangel - resale
A45: 25586 | B45: 2018-05-07 | C45: 176 | E45: Due, J.Rangel - resale
A46: 25587 | B46: 2018-05-07 | C46: 33.3 | E46: J.Rangel - resale
A47: 25588 | B47: 2018-05-07 | C47: 145 | D47: 11.05
A48: 25589 | B48: 2018-05-07 | C48: 164 | E48: Due, Revolution - resale
A49: 25590 | B49: 2018-05-07 | C49: 79.1957 | D49: 6.0357 | E49: Visa | F49: =+C32+C36+259.8+C29+C49 -> 717.0057 | G49: 705.43 | H49: $249.03 / $209.81 Square
A50: 25591 | B50: 2018-05-08 | C50: 15 | E50: Due
A51: 25592 | B51: 2018-05-08 | C51: 21.65 | D51: 1.65
A52: 25593 | B52: 2018-05-08 | C52: 31.34 | D52: 2.39 | E52: Due
A53: 25594 | B53: 2018-05-08 | C53: 194.85 | D53: 14.85 | E53: Discover
A54: 25595 | B54: 2018-05-08 | C54: 33.56 | D54: 2.56
A55: 25596 | B55: 2018-05-08 | C55: 31.39 | D55: 2.39
A56: 25597 | B56: 2018-05-08 | C56: 15 | E56: McAllen MS - resale
A57: 25598 | B57: 2018-05-08 | C57: 305.37325 | D57: 23.27325 | E57: $280.37 Due | F57: =+C53 -> 194.85 | G57: 189.99
A58: 25599 | B58: 2018-05-09 | C58: 206.22 | D58: 15.72 | E58: Visa, $81.22 due
A59: 25600 | B59: 2018-05-09 | C59: 9.74 | D59: 0.74
A60: 25601 | B60: 2018-05-09 | C60: 303.1 | D60: 23.1 | E60: Visa
A61: 25602 | B61: 2018-05-09 | C61: 98.51 | D61: 7.51 | E61: Visa
A62: 25603 | B62: 2018-05-09 | C62: 49 | E62: Due, Carlos G
A63: 25604 | B63: 2018-05-09 | C63: 0 | D63: 0
A64: 25605 | B64: 2018-05-09 | C64: 400 | D64: 30.48
A65: 25606 | B65: 2018-05-09 | C65: 353.98 | D65: 26.98 | E65: Square ($125), $228.98 due
A66: 25607 | B66: 2018-05-09 | C66: 72.53 | D66: 5.53 | E66: Square
A67: 25608 | B67: 2018-05-09 | C67: 255.47 | D67: 19.47 | E67: Due
A68: 25609 | B68: 2018-05-09 | C68: 141.7 | D68: 10.8 | E68: Visa | F68: =125+C60+C61 -> 526.61 | G68: 515 | H68: $197.53 / $166.42 Square
A69: 25610 | B69: 2018-05-10 | C69: 40.05 | D69: 3.05 | E69: Visa
A70: 25611 | B70: 2018-05-10 | C70: 26.1 | E70: Visa
A71: 25612 | B71: 2018-05-10 | C71: 181.5 | E71: Due, ESG - resale
A72: 25613 | B72: 2018-05-10 | C72: 30.75 | E72: Due, Carlos G | F72: =+C69+C68+C70 -> 207.85 | G72: 204.69
A73: 25614 | B73: 2018-05-11 | C73: 130 | D73: 9.91
A74: 25615 | B74: 2018-05-11 | C74: 43.3 | D74: 3.3 | E74: Visa
A75: 25616 | B75: 2018-05-11 | C75: 31.61 | D75: 2.41 | E75: Due
A76: 25617 | B76: 2018-05-11 | C76: 46.55 | D76: 3.55 | E76: MC
A77: 25618 | B77: 2018-05-11 | C77: 355.06 | D77: 27.06
A78: 25619 | B78: 2018-05-11 | C78: 122 | D78: 9.3
A79: 25620 | B79: 2018-05-11 | C79: 232.74 | D79: 17.74 | F79: =+C74+C76 -> 89.85 | G79: 88.31
A80: 25621 | B80: 2018-05-12 | C80: 67.12 | D80: 5.12 | E80: Square
A81: 25622 | B81: 2018-05-12 | C81: 23.82 | D81: 1.82 | E81: Square
A82: 25623 | B82: 2018-05-12 | C82: 402.69 | D82: 30.69 | E82: Visa, $252.69 due
A83: 25624 | B83: 2018-05-12 | C83: 167.79 | D83: 12.79 | E83: Est $67.79 due
A84: 25625 | B84: 2018-05-12 | C84: 438.41 | D84: 33.41 | E84: Visa
A85: 25626 | B85: 2018-05-12 | C85: 141.81 | D85: 10.81 | E85: Square
A86: 25627 | B86: 2018-05-12 | C86: 5.41 | D86: 0.41
A87: 25628 | B87: 2018-05-12 | C87: 8.66 | D87: 0.66 | E87: Visa
A88: 25629 | B88: 2018-05-12 | C88: 14.07 | D88: 1.07 | E88: Visa
A89: 25630 | B89: 2018-05-12 | C89: 30 | D89: 2.28
A90: 25631 | B90: 2018-05-12 | C90: 284.7 | D90: 21.7 | E90: Check | F90: =150+C84+C87+C88+65 -> 676.14 | G90: =601.19+64.46 -> 665.65 | H90: $313.96 / $264.50 Square
A91: 25632 | B91: 2018-05-14 | C91: 40 | E91: Used Tank, of $220 pd.
A92: 25633 | B92: 2018-05-14 | C92: 67.12 | D92: 5.12
A93: 25634 | B93: 2018-05-14 | C93: 103.92 | D93: 7.92
A94: 25635 | B94: 2018-05-14 | C94: 14.02 | D94: 1.07 | E94: MC
A95: 25636 | B95: 2018-05-14 | C95: 94.18 | D95: 7.18 | F95: =31.34+C94 -> 45.36 | G95: 44.57
A96: 25637 | B96: 2018-05-15 | C96: 58.46 | D96: 4.46 | E96: Visa
A97: 25638 | B97: 2018-05-15 | C97: 30 | E97: Visa, McAllen Motorsports
A98: 25639 | B98: 2018-05-15 | C98: -58.46 | D98: -4.46 | E98: Visa
A99: 25640 | B99: 2018-05-15 | C99: 3.25 | D99: 0.25
A100: 25641 | B100: 2018-05-15 | C100: 8.66 | D100: 0.66
A101: 25642 | B101: 2018-05-15 | C101: 57.37 | D101: 4.37
A102: 25643 | B102: 2018-05-15 | C102: 495 | D102: 67.83 | E102: Due, VS800
A103: 25644 | B103: 2018-05-15 | C103: 110 | E103: Joe R - resale
A104: 25645 | B104: 2018-05-15 | C104: 14.02 | D104: 1.07 | E104: Square
A105: 25646 | B105: 2018-05-15 | C105: 77.94 | D105: 5.94 | E105: Due
A106: 25647 | B106: 2018-05-15 | C106: 102.9 | E106: Due, Carlos G - resale MX
A107: 25648 | B107: 2018-05-15 | C107: 53 | E107: Due, Carlos G - resale MX | F107: =+C96+228.98+C97+C98 -> 258.98 | G107: 255.6 | H107: $269.49 / $227.04 Square
A108: 25649 | B108: 2018-05-16 | C108: 31.12 | D108: 2.37 | E108: Visa
A109: 25650 | B109: 2018-05-16 | C109: 5.09 | E109: Visa, ESG Customs - resale
A110: 25651 | B110: 2018-05-16 | C110: 304.72 | D110: 23.22 | E110: Visa
A111: 25652 | B111: 2018-05-16 | C111: 290 | D111: 22.1 | E111: Check
A112: 25653 | B112: 2018-05-16 | C112: 159.99 | D112: 12.19 | E112: Visa, $99.99 due
A113: 25654 | B113: 2018-05-16 | C113: 305 | D113: 23.24 | E113: Due
A114: 25655 | B114: 2018-05-16 | C114: 14.02 | D114: 1.07 | E114: Square
A115: 25656 | B115: 2018-05-16 | C115: 140.75 | D115: 10.73 | E115: Square
A116: 25657 | B116: 2018-05-16 | C116: 160 | D116: 12.19
A117: 25658 | B117: 2018-05-16 | C117: 96.34 | D117: 7.34 | E117: Due | F117: =181.5+C109+C108+C110+60 -> 582.43 | G117: 579.17 | H117: $154.77 / $130.39 Square
A118: 25659 | B118: 2018-05-17 | C118: 13 | D118: 0.99 | E118: Visa
A119: 25660 | B119: 2018-05-17 | C119: 49.8 | D119: 3.8 | E119: Visa
A120: 25661 | B120: 2018-05-17 | C120: 97.37 | D120: 7.42 | E120: Visa
A121: 25662 | B121: 2018-05-17 | C121: 261.97 | D121: 19.97 | E121: Due, Hector
A122: 25663 | B122: 2018-05-17 | C122: 167.5 | E122: Joe R - resale
A123: 25664 | B123: 2018-05-17 | C123: 37.83 | D123: 2.88 | E123: Visa | F123: =+C118+C119+C120+C123 -> 198 | G123: 195.07
A124: 25665 | B124: 2018-05-18 | C124: 160 | D124: 12.19
A125: 25666 | B125: 2018-05-18 | C125: 14.02 | D125: 1.07 | E125: Visa
A126: 25667 | B126: 2018-05-18 | C126: 139.64 | D126: 10.64
A127: 25668 | B127: 2018-05-18 | C127: 209.95 | D127: 16
A128: 25669 | B128: 2018-05-18 | C128: 45 | E128: Due, Joe R - resale (Derick)
A129: 25670 | B129: 2018-05-18 | C129: 11.85 | D129: 0.9 | E129: Visa
A130: 25671 | B130: 2018-05-18 | C130: 124.92 | D130: 9.52 | E130: Visa
A131: 25672 | B131: 2018-05-18 | C131: 6 | E131: Due, Joe R - resale
A132: 25673 | B132: 2018-05-18 | C132: 31.5 | E132: Due, Joe R - resale | F132: =+C125+C129+C130+C113 -> 455.79 | G132: 444.22
A133: 25674 | B133: 2018-05-19 | C133: 175.91 | D133: 13.41 | E133: Visa
A134: 25675 | B134: 2018-05-19 | C134: 234 | E134: Due
A135: 25676 | B135: 2018-05-19 | C135: 110 | D135: 8.38 | E135: Square
A136: 25677 | B136: 2018-05-19 | C136: 26.59 | D136: 2.03 | E136: Due
A137: 25678 | B137: 2018-05-19 | C137: 153.17 | D137: 11.67 | E137: Square, $76.59 due
A138: 25679 | B138: 2018-05-19 | C138: 85 | D138: 6.48
A139: 25680 | B139: 2018-05-19 | C139: 196.15 | D139: 14.95 | E139: Fernando
A140: 25681 | B140: 2018-05-19 | C140: 155.34 | D140: 11.84
A141: 25682 | B141: 2018-05-19 | C141: 13.53 | D141: 1.03 | E141: Am Exp
A142: 25683 | B142: 2018-05-19 | C142: 34.42 | D142: 2.62 | E142: Square | F142: =+C133+C141+155.34 -> 344.78 | G142: 342.56 | H142: $221.01 / $186.19 Square
A143: 25684 | B143: 2018-05-21 | C143: 30 | D143: 2.29
A144: 25685 | B144: 2018-05-21 | C144: 61.7 | D144: 4.7 | E144: MC
A145: 25686 | B145: 2018-05-21 | C145: -5.5 | E145: Due, Joe R - resale
A146: 25687 | B146: 2018-05-21 | C146: 126.65 | D146: 9.65 | E146: MC
A147: 25688 | B147: 2018-05-21 | C147: 240.32 | D147: 18.32 | E147: Visa | F147: =+C144+C146+C147 -> 428.67 | G147: 420.25
A148: 25689 | B148: 2018-05-22 | C148: 113.66 | D148: 8.66 | E148: Trade
A149: 25690 | B149: 2018-05-22 | C149: 8.75 | D149: 0.67
A150: 25691 | B150: 2018-05-22 | C150: 81.19 | D150: 6.19 | E150: MC
A151: 25692 | B151: 2018-05-22 | C151: 11 | E151: Due, Joe R - resale
A152: 25693 | B152: 2018-05-22 | C152: 68.44 | E152: Due, Joe R - resale
A153: 25694 | B153: 2018-05-22 | C153: 65.5 | E153: Due, Joe R - resale | F153: =118.1+53.04+C150 -> 252.33 | G153: 250.51
A154: 25695 | B154: 2018-05-23 | C154: 14.07 | D154: 1.07
A155: 25696 | B155: 2018-05-23 | E155: Voided
A156: 25697 | B156: 2018-05-23 | C156: 33.8 | E156: Visa, Border Patrol
A157: 25698 | B157: 2018-05-23 | C157: 146.14 | D157: 11.14 | E157: Due, 3 Fluids
A158: 25699 | B158: 2018-05-23 | C158: 85.52 | D158: 6.52
A159: 25700 | B159: 2018-05-23 | C159: 24.7 | E159: Due, Joe R - resale
A160: 25701 | B160: 2018-05-23 | C160: 28.05 | E160: Due, Joe R - resale
A161: 25702 | B161: 2018-05-23 | C161: 39 | E161: Due, Joe R - resale
A162: 25703 | B162: 2018-05-23 | C162: 29.78 | E162: Due, Joe R - resale
A163: 25704 | B163: 2018-05-23 | C163: 370.25 | E163: Due, Carlos G - resale MX
A164: 25705 | B164: 2018-05-23 | C164: 5.41 | D164: 0.41 | E164: MC | F164: =+C156+C164 -> 39.21 | G164: 37.74 | H164: $222.72 / $187.63 Square
A165: 25706 | B165: 2018-05-24 | C165: -27.06 | D165: -2.06
A166: 25707 | B166: 2018-05-24 | C166: 433 | D166: 33 | E166: Visa, $216.50 due
A167: 25708 | B167: 2018-05-24 | C167: 386.94 | D167: 29.49 | E167: Square
A168: 25709 | B168: 2018-05-24 | C168: 12 | D168: 0.91 | F168: 216.5 | G168: =+F168*0.97831 -> 211.804115 | H168: $386.94 / $326.00 Square
A169: 25710 | B169: 2018-05-25 | C169: 21.53 | H169: 241.34 ??
A170: 25711 | B170: 2018-05-25 | C170: 172.66 | D170: 13.16 | E170: $100 cash, $72.66 Visa
A171: 25712 | B171: 2018-05-25 | C171: 14.07 | D171: 1.07 | E171: MC
A172: 25713 | B172: 2018-05-25 | C172: 380.5 | D172: 29 | F172: =72.66+C171 -> 86.73 | G172: =+F172*0.97831 -> 84.8488263
A173: 25714 | B173: 2018-05-26 | C173: 28.15 | D173: 2.15 | E173: MC
A174: 25715 | B174: 2018-05-26 | C174: 21.65 | D174: 1.65 | E174: Visa
A175: 25716 | B175: 2018-05-26 | C175: 420.01 | D175: 32.01
A176: 25717 | B176: 2018-05-26 | C176: 20 | D176: 1.52 | E176: Visa
A177: 25718 | B177: 2018-05-26 | C177: 12.88 | D177: 0.98 | E177: Square
A178: 25719 | B178: 2018-05-26 | C178: 82.05 | D178: 6.25
A179: 25720 | B179: 2018-05-26 | C179: 114.75 | D179: 8.75 | E179: $14.75 Visa
A180: 25721 | B180: 2018-05-26 | C180: 700 | D180: 53.35 | E180: $360 Visa
A181: 25722 | B181: 2018-05-26 | C181: 60 | D181: 4.58
A182: 25723 | B182: 2018-05-26 | C182: 36.81 | D182: 2.81 | E182: Visa
A183: 25724 | B183: 2018-05-26 | C183: 6 | D183: 0.46 | E183: MC | F183: =+C173+C174+360+36.81+C183+14.75+C176 -> 487.36 | G183: =+F183*0.97831 -> 476.7891616 | H183: $12.88 / $10.86 Square
A184: 25725 | B184: 2018-05-28 | C184: 40 | D184: 3.04
A185: 25726 | B185: 2018-05-28 | C185: 19.49 | D185: 1.49
A186: 25727 | B186: =+B185 -> 2018-05-28 | C186: 96.34 | D186: 7.34
A187: 25728 | B187: 2018-05-28 | C187: 16.51 | D187: 1.26 | E187: Due
A188: 25729 | B188: 2018-05-28 | C188: 15 | D188: 1.14 | F188: =+C186 -> 96.34 | G188: =+F188*0.97831 -> 94.2503854
A189: 25730 | B189: 2018-05-29 | C189: 3.19 | D189: 0.24
A190: 25731 | B190: 2018-05-29 | E190: Deposit only
A191: 25732 | B191: 2018-05-29 | C191: 62.79 | D191: 4.79
A192: 25733 | B192: 2018-05-29 | C192: 9 | D192: 0.69
A193: 25734 | B193: 2018-05-29 | C193: -2.17 | D193: -0.17
A194: 25735 | B194: 2018-05-29 | C194: 481.71 | D194: 36.71 | E194: Due
A195: 25736 | B195: 2018-05-29 | C195: 107 | D195: 6.24
A196: 25737 | B196: 2018-05-29 | C196: 360 | E196: Due, Carlos G - resale MX | F196: 0 | G196: =+F196*0.97831 -> 0
A197: 25738 | B197: 2018-05-30 | C197: 58.1 | E197: Due, Border Patrol
A198: 25739 | B198: 2018-05-30 | C198: 9 | E198: AmExp
A199: 25740 | B199: 2018-05-30 | C199: 6 | D199: 0.46
A200: 25741 | B200: 2018-05-30 | C200: 20 | D200: 1.52 | E200: Square
... 26 more rows

Sheet Apr-18
A1: Invoice | C1: =SUM(C3:C411) -> 27547.41188 | D1: =SUM(D6:D411) -> 1824.381875 | H1: =TODAY() -> 2018-07-20
A2: Number | B2: Date | C2: Amount | D2: Tax | E2: Terms
A3: 25296 | B3: 2018-04-02 | C3: 40 | E3: Square, Used - No Tax
A4: 25297 | B4: 2018-04-02 | C4: 233.82 | D4: 17.82 | E4: Due
A5: 25298 | B5: 2018-04-02 | C5: 201.99 | D5: 15.39 | E5: Visa, $23.38 due
A6: 25299 | B6: 2018-04-02 | C6: 133 | D6: 10.14
A7: 25300 | B7: 2018-04-02 | C7: 344.995 | D7: 30.995 | E7: Visa | F7: =29.8+178.61+C7 -> 553.405 | G7: 547.44 | H7: $40.00 / $38.90 Square
A8: 25301 | B8: 2018-04-03 | C8: 423.26 | D8: 32.26 | E8: $223.26 due
A9: 25302 | B9: 2018-04-03 | C9: 101.76 | D9: 7.76
A10: 25303 | B10: 2018-04-03 | C10: 14.02 | D10: 1.07
A11: 25304 | B11: 2018-04-03 | C11: -18.46 | D11: -1.41 | E11: Cln Up
A12: 25305 | B12: 2018-04-03 | C12: 216.25 | E12: Due, Carlos G - MX resale
A13: 25306 | B13: 2018-04-03 | C13: 8.25 | D13: 0.63 | E13: Visa
A14: 25307 | B14: 2018-04-03 | C14: 75 | E14: Due, J.Rangel - resale
A15: 25308 | B15: 2018-04-03 | C15: 40 | E15: Due, J.Rangel - resale
A16: 25309 | B16: 2018-04-03 | C16: 43.84 | D16: 3.34 | E16: Visa | F16: =+C13 -> 8.25 | G16: 7.96 | H16: $96.83 / $81.58 Square
A17: 25310 | B17: 2018-04-04 | C17: 10 | D17: 0.76 | E17: Visa
A18: 25311 | B18: 2018-04-04 | C18: 368.05 | D18: 28.05 | E18: Due
A19: 25312 | B19: 2018-04-04 | C19: 167.79 | D19: 12.79
A20: 25313 | B20: 2018-04-04 | C20: 16.18 | D20: 1.23 | E20: Square
A21: 25314 | B21: 2018-04-04 | C21: 114.75 | D21: 8.75 | E21: Square | F21: =+C17+C16 -> 53.84 | G21: 53.02 | H21: $130.93 / $110.31 Square
A22: 25315 | B22: 2018-04-05 | C22: 29.8 | E22: Visa, Border Patrol
A23: 25316 | B23: 2018-04-05 | C23: 190 | D23: 14.48
A24: 25317 | B24: 2018-04-05 | C24: 63.87 | D24: 4.87 | E24: Square
A25: 25318 | B25: 2018-04-05 | C25: 10 | D25: 0.76
A26: 25319 | B26: 2018-04-05 | C26: 471.97 | D26: 35.97 | E26: Due
A27: 25320 | B27: 2018-04-05 | C27: 195 | E27: Revolution - Resale
A28: 25321 | B28: 2018-04-05 | C28: 0 | D28: 0
A29: 25322 | B29: 2018-04-05 | C29: 283.62 | D29: 21.62 | E29: $83.62 Due
A30: 25323 | B30: 2018-04-05 | C30: 3 | D30: 0.23
A31: 25324 | B31: 2018-04-05 | C31: 41.14 | D31: 3.14 | E31: MC | F31: =+C22 -> 29.8 | G31: 28.77 | H31: $189.03 / $159.26 Square
A32: 25325 | B32: 2018-04-06 | C32: 2.06 | D32: 0.16
A33: 25326 | B33: 2018-04-06 | C33: 10.83 | D33: 0.83
A34: 25327 | B34: 2018-04-06 | C34: 44.38 | D34: 3.38
A35: 25328 | B35: 2018-04-06 | C35: 1 | D35: 0.08
A36: 25329 | B36: 2018-04-06 | C36: -1.08 | D36: -0.08
A37: 25330 | B37: 2018-04-06 | C37: 40.49 | D37: 3.09 | E37: Square
A38: 25331 | B38: 2018-04-06 | C38: 173.2 | D38: 13.2
A39: 25332 | B39: 2018-04-06 | C39: 40.05 | D39: 3.05
A40: 25333 | B40: 2018-04-06 | C40: 211 | D40: 16.08 | E40: $111 due
A41: 25334 | B41: 2018-04-06 | C41: 173.52 | D41: 13.22 | E41: MC
A42: 25335 | B42: 2018-04-06 | C42: 64.95 | D42: 4.95 | E42: MC
A43: 25336 | B43: 2018-04-06 | C43: 124 | E43: Due, Carlos G - MX resale
A44: 25337 | B44: 2018-04-06 | C44: 71.39 | D44: 5.44
A45: 25338 | B45: 2018-04-06 | C45: 99.48 | D45: 7.58
A46: 25339 | B46: 2018-04-06 | C46: 242.48 | D46: 18.48 | E46: Due, Busa Seals | F46: =+C31+C41+C42 -> 279.61 | G46: 272.97 | H46: $274.31 / $231.11 Square
A47: 25340 | B47: 2018-04-07 | C47: 15.16 | D47: 1.16
A48: 25341 | B48: 2018-04-07 | C48: 27.06 | D48: 2.06
A49: 25342 | B49: 2018-04-07 | C49: 33.34 | D49: 2.54 | E49: Square
A50: 25343 | B50: 2018-04-07 | C50: 51.91 | D50: 3.96
A51: 25344 | B51: 2018-04-07 | C51: 84.44 | D51: 6.44 | E51: Square
A52: 25345 | B52: 2018-04-07 | C52: 434.62 | D52: 33.12 | E52: Visa, $160. Due
A53: 25346 | B53: 2018-04-07 | C53: 15.16 | D53: 1.16
A54: 25347 | B54: 2018-04-07 | C54: 136.29 | D54: 10.39 | E54: MC
A55: 25348 | B55: 2018-04-07 | C55: 21.6 | D55: 1.65
A56: 25349 | B56: 2018-04-07 | C56: 343.69 | D56: 26.19 | E56: Due, Triumph
A57: 25350 | B57: 2018-04-07 | C57: 43.3 | D57: 3.3 | E57: Visa
A58: 25351 | B58: 2018-04-07 | C58: 145 | D58: 11.05 | F58: =274.62+C54+C57 -> 454.21 | G58: 447.43 | H58: $141.04 / $118.82 Square
A59: 25352 | B59: 2018-04-09 | C59: 57.37 | D59: 4.37 | E59: MC, $28.50 due
A60: 25353 | B60: 2018-04-09 | C60: 12.99 | D60: 0.99
A61: 25354 | B61: 2018-04-09 | C61: 33.5 | E61: Due, Carlos G - MX resale
A62: 25355 | B62: 2018-04-09 | C62: 129.47 | D62: 9.87 | E62: Square
A63: 25356 | B63: 2018-04-09 | C63: 27 | E63: Due, George - Revolution resale
A64: 25357 | B64: 2018-04-09 | C64: 329.08 | D64: 25.08 | E64: Visa
A65: 25358 | B65: 2018-04-09 | C65: 27.06 | D65: 2.06
A66: 25359 | B66: 2018-04-09 | C66: 102.78 | D66: 7.83 | E66: $100. Warranty
A67: 25360 | B67: 2018-04-09 | C67: 149.93 | D67: 11.43 | E67: Square ($182.40)
A68: 25361 | B68: 2018-04-09 | C68: 10 | D68: 0.76
A69: 25362 | B69: 2018-04-09 | C69: 31 | E69: Due | F69: =28.87+C64+2.78 -> 360.73 | G69: 353.4 | H69: $311.87 / $262.75 Square
A70: 25363 | B70: 2018-04-10 | C70: 12.99 | D70: 0.99 | E70: MC
A71: 25364 | B71: 2018-04-10 | C71: 5.14 | D71: 0.39 | E71: Due
A72: 25365 | B72: 2018-04-10 | C72: 22.73 | D72: 1.73
A73: 25366 | B73: 2018-04-10 | C73: 61 | E73: Due, Carlos G - MX resale
A74: 25367 | B74: 2018-04-10 | C74: 20 | D74: 1.52
A75: 25368 | B75: 2018-04-10 | C75: 397.49 | D75: 30.29 | E75: Visa
A76: 25369 | B76: 2018-04-10 | C76: 149.43 | D76: 26.63 | E76: Due, BMW F650GS | F76: =+C70+C75 -> 410.48 | G76: 408.38
A77: 25370 | B77: 2018-04-11 | C77: 264.67 | D77: 20.17 | E77: MC, $164.67 due
A78: 25371 | B78: 2018-04-11 | C78: 540.11 | D78: 41.16 | E78: Visa
A79: 25372 | B79: 2018-04-11 | C79: 29.8 | E79: Visa, Border Patrol
A80: 25373 | B80: 2018-04-11 | C80: 143 | E80: Due, Carlos G - MX resale
A81: 25374 | B81: 2018-04-11 | C81: 32 | E81: Due, Revolution - resale
A82: 25375 | B82: 2018-04-11 | C82: 31.75 | E82: Due, J.Rangel - resale
A83: 25376 | B83: 2018-04-11 | C83: 425.42 | D83: 32.42 | E83: Square
A84: 25377 | B84: 2018-04-11 | C84: 169.41 | D84: 12.91 | E84: Visa, addl to Inv 25371
A85: 25378 | B85: 2018-04-11 | C85: 94.25 | E85: Due, Carlos G - MX resale
A86: 25379 | B86: 2018-04-11 | C86: 7.58 | D86: 0.58
A87: 25380 | B87: 2018-04-11 | C87: 65 | D87: 4.95 | E87: Visa
A88: 25381 | B88: 2018-04-11 | C88: 51.96 | D88: 3.96 | E88: Visa, addl to Inv 25371
A89: 25382 | B89: 2018-04-11 | C89: 55 | E89: Due, Carlos G - MX resale | F89: =100+C79+C87+C88+C84+C78 -> 956.28 | G89: 942.31 | H89: $425.42 / $358.42 Square
A90: 25383 | B90: 2018-04-12 | C90: 47.63 | D90: 3.63 | E90: MC
A91: 25384 | B91: 2018-04-12 | C91: 130 | E91: Due, Revolution - resale
A92: 25385 | B92: 2018-04-12 | C92: 34.64 | D92: 2.64 | E92: Due, LEDs
A93: 25386 | B93: 2018-04-12 | C93: 17.86 | D93: 1.36
A94: 25387 | B94: 2018-04-12 | C94: 52.08 | E94: Visa
A95: 25388 | B95: 2018-04-12 | C95: 124.22 | D95: 9.47 | E95: Visa
A96: 25389 | B96: 2018-04-12 | C96: 7 | D96: 0.53
A97: 25390 | B97: 2018-04-12 | C97: 3.25 | D97: 0.25 | E97: Visa
A98: 25391 | B98: 2018-04-12 | C98: 39.78 | D98: 3.03
A99: 25392 | B99: 2018-04-12 | C99: 227.76 | D99: 17.36
A100: 25393 | B100: 2018-04-12 | C100: 154.5 | E100: Due, Carlos G - MX resale
A101: 25394 | B101: 2018-04-12 | C101: 267.38 | D101: 20.38 | E101: Visa, $147.38 due | F101: =+C90+C94+C95+C97+120 -> 347.18 | G101: 344.15
A102: 25395 | B102: 2018-04-13 | C102: 15.16 | D102: 1.16 | E102: Due
A103: 25396 | B103: 2018-04-13 | C103: 105 | D103: 8 | E103: Due
A104: 25397 | B104: 2018-04-13 | C104: 10.83 | D104: 0.83
A105: 25398 | B105: 2018-04-13 | C105: 258.72 | D105: 19.72 | E105: MC
A106: 25399 | B106: 2018-04-13 | C106: 17.86 | D106: 1.36
A107: 25400 | B107: 2018-04-13 | C107: 16.24 | D107: 1.24
A108: 25401 | B108: 2018-04-13 | C108: 247.35 | D108: 18.85 | E108: Visa, $147.35 due
A109: 25402 | B109: 2018-04-13 | C109: 21.65 | D109: 1.65
A110: 25403 | B110: 2018-04-13 | C110: 43.3 | D110: 3.3
A111: 25404 | B111: 2018-04-13 | C111: 358.036875 | D111: 27.286875 | E111: Due, XL caliper & bearings | F111: Forgot to run Thur
A112: 25405 | B112: 2018-04-13 | C112: 74.69 | D112: 5.69 | F112: =+C105+100 -> 358.72 | G112: 356.7
A113: 25406 | B113: 2018-04-14 | C113: 322.59 | D113: 24.59 | E113: $100 cash, $222.59 Square
A114: 25407 | B114: 2018-04-14 | C114: 373 | E114: Due, Carlos G - MX resale
A115: 25408 | B115: 2018-04-14 | C115: 140.73 | D115: 10.73
A116: 25409 | B116: 2018-04-14 | C116: 128.82 | D116: 9.82 | E116: Square
A117: 25410 | B117: 2018-04-14 | C117: 40.05 | D117: 3.05 | E117: Visa
A118: 25411 | B118: 2018-04-14 | C118: 5.36 | D118: 0.41 | E118: Visa
A119: 25412 | B119: 2018-04-14 | C119: 20 | D119: 1.52
A120: 25413 | B120: 2018-04-14 | C120: 70.36 | D120: 5.36 | E120: Visa | F120: =70+C118+C117+C120 -> 185.77 | G120: 183.86 | H120: $459.25 / $386.91 Square
A121: 25414 | B121: 2018-04-16 | C121: 119 | D121: 9.07 | E121: MC
A122: 25415 | B122: 2018-04-16 | C122: 245.67 | D122: 18.72 | E122: Square
A123: 25416 | B123: 2018-04-16 | C123: 73 | D123: 5.56
A124: 25417 | B124: 2018-04-16 | C124: 29.23 | D124: 2.23
A125: 25418 | B125: 2018-04-16 | C125: 7.58 | D125: 0.58 | E125: Visa
A126: 25419 | B126: 2018-04-16 | C126: 526.1 | D126: 40.1 | E126: Visa
A127: 25420 | B127: 2018-04-16 | C127: 20 | D127: 1.52 | E127: Visa
A128: 25421 | B128: 2018-04-16 | C128: 20 | D128: 1.52
A129: 25422 | B129: 2018-04-16 | C129: 39.78 | D129: 3.03 | E129: Due, Ernest
A130: 25423 | B130: 2018-04-16 | C130: 22 | E130: Due, Revolution - resale | F130: =+C121+160+C125+C126+C127 -> 832.68 | G130: 815.49 | H130: $245.67 / $206.97 Square
A131: 25424 | B131: 2018-04-17 | C131: 217 | D131: 16.54
A132: 25425 | B132: 2018-04-17 | C132: 82.27 | D132: 6.27 | E132: AmExp
A133: 25426 | B133: 2018-04-17 | C133: 641 | D133: 48.85 | E133: Square, $341 Due
A134: 25427 | B134: 2018-04-17 | C134: 29.8 | E134: Visa
A135: 25428 | B135: 2018-04-17 | C135: 70.25 | E135: Due, Carlos G - MX resale
A136: 25429 | B136: 2018-04-17 | C136: 87.5 | E136: Due, Carlos G - MX resale
A137: 25430 | B137: 2018-04-17 | C137: 58.46 | D137: 4.46 | E137: MC
A138: 25431 | B138: 2018-04-17 | C138: 51.69 | D138: 3.94 | E138: Visa
A139: 25432 | B139: 2018-04-17 | C139: 48.66 | D139: 3.71
A140: 25433 | B140: 2018-04-17 | C140: 259.8 | D140: 19.8 | E140: Due, Jaime - Forks
A141: 25434 | B141: 2018-04-17 | C141: 10 | E141: MC | F141: =+C132+C134+C137+25+C141+C138 -> 257.22 | G141: 250.92 | H141: $300.00 / $252.75 Square
A142: 25435 | B142: 2018-04-18 | C142: 114.75 | D142: 8.75
A143: 25436 | B143: 2018-04-18 | C143: 30.1 | E143: Visa
A144: 25437 | B144: 2018-04-18 | C144: 25 | D144: 1.9
A145: 25438 | B145: 2018-04-18 | C145: 9.74 | D145: 0.74 | E145: Visa
A146: 25439 | B146: 2018-04-18 | C146: 131.52 | D146: 10.02 | E146: Due
A147: 25440 | B147: 2018-04-18 | C147: 164 | D147: 12.5 | E147: MC
A148: 25441 | B148: 2018-04-18 | C148: 243.56 | D148: 18.56 | E148: Square
A149: 25442 | B149: 2018-04-18 | C149: 18.4 | D149: 1.4 | E149: Square
A150: 25443 | B150: 2018-04-18 | C150: 8 | E150: Square
A151: 25444 | B151: 2018-04-18 | C151: 74.69 | D151: 5.69
A152: 25445 | B152: 2018-04-18 | C152: 11.91 | D152: 0.91 | F152: =+C145 -> 9.74 | G152: 9.39 | H152: $269.96 / $227.44 Square
A153: 25446 | B153: 2018-04-19 | C153: 68.2 | D153: 5.2
A154: 25447 | B154: 2018-04-19 | C154: 13 | E154: Visa
A155: 25448 | B155: 2018-04-19 | C155: 269.76 | D155: 20.56 | E155: Square
A156: 25449 | B156: 2018-04-19 | C156: 21.65 | D156: 1.65 | E156: Visa
A157: 25450 | B157: 2018-04-19 | C157: 5 | D157: 0.38
A158: 25451 | B158: 2018-04-19 | C158: 42.25 | E158: Visa, ESG Customs
A159: 25452 | B159: 2018-04-19 | C159: 16.18 | D159: 1.23
A160: 25453 | B160: 2018-04-19 | C160: 182.4 | D160: 13.9
A161: 25454 | B161: 2018-04-19 | C161: 7 | D161: 0.53
A162: 25455 | B162: 2018-04-19 | C162: 154 | D162: 11.74
A163: 25456 | B163: 2018-04-19 | C163: 53.04 | D163: 4.04 | E163: Due | F163: =+C143+C154+C156+C158 -> 107 | G163: 104.54 | H163: $293.14 / $246.97 Square
A164: 25457 | B164: 2018-04-20 | C164: 13.25 | E164: Visa, ESG - resale
A165: 25458 | B165: 2018-04-20 | C165: 27.06 | D165: 2.06
A166: 25459 | B166: 2018-04-20 | C166: 156.96 | D166: 11.96
A167: 25460 | B167: 2018-04-20 | C167: 0 | D167: 0
A168: 25461 | B168: 2018-04-20 | C168: 225 | D168: 17.15 | E168: $125 due
A169: 25462 | B169: 2018-04-20 | C169: 20.57 | D169: 1.57 | E169: Visa
A170: 25463 | B170: 2018-04-20 | C170: 228.95 | D170: 17.45
A171: 25464 | B171: 2018-04-20 | C171: 199.72 | D171: 15.22
A172: 25465 | B172: 2018-04-20 | C172: 299.85 | D172: 22.85 | E172: Due, XL Belt
A173: 25466 | B173: 2018-04-20 | C173: 291 | E173: Due, Carlos G - MX resale | F173: =+C169 -> 20.57 | G173: 20.04
A174: 25467 | B174: 2018-04-21 | C174: 87.68 | D174: 6.68 | E174: Visa
A175: 25468 | B175: 2018-04-21 | C175: 96.34 | D175: 7.34
A176: 25469 | B176: 2018-04-21 | C176: 41.14 | D176: 3.14 | E176: Visa
A177: 25470 | B177: 2018-04-21 | C177: 16.24 | D177: 1.24
A178: 25471 | B178: 2018-04-21 | C178: 5 | D178: 0.38
A179: 25472 | B179: 2018-04-21 | C179: 392.95 | D179: 29.95 | E179: MC
A180: 25473 | B180: 2018-04-21 | C180: 10 | D180: 0.76 | E180: Visa | F180: =+C174+C176+196.47+C180 -> 335.29 | G180: 328.84
A181: 25474 | B181: 2018-04-23 | C181: 200.15 | D181: 15.25
A182: 25475 | B182: 2018-04-23 | C182: 249 | E182: Due, Revolution - resale
A183: 25476 | B183: 2018-04-23 | C183: 146.14 | D183: 11.14 | E183: Square
A184: 25477 | B184: 2018-04-23 | C184: 6 | D184: 0.46
A185: 25478 | B185: 2018-04-23 | C185: 77.94 | D185: 5.94 | E185: Square
A186: 25479 | B186: 2018-04-23 | C186: 360.47 | D186: 27.47 | E186: Square
A187: 25480 | B187: 2018-04-23 | C187: 14.02 | D187: 1.07 | E187: Square
A188: 25481 | B188: 2018-04-23 | C188: 144 | E188: Due, J.Rangel - resale
A189: 25482 | B189: 2018-04-23 | C189: 128.82 | D189: 9.82 | E189: Visa | F189: =345.91+C189 -> 474.73 | G189: 466.78 | H189: $238.10 / $200.60 Square
A190: 25483 | B190: 2018-04-24 | C190: 77.94 | D190: 5.94
A191: 25484 | B191: 2018-04-24 | C191: 160 | D191: 12.19
A192: 25485 | B192: 2018-04-24 | C192: 29.77 | D192: 2.27 | E192: Visa
A193: 25486 | B193: 2018-04-24 | C193: 53.04 | D193: 4.04 | E193: Due
A194: 25487 | B194: 2018-04-24 | C194: 9.5 | D194: 0.72 | E194: MC
A195: 25488 | B195: 2018-04-24 | C195: 35.18 | D195: 2.68 | E195: Visa
A196: 25489 | B196: 2018-04-24 | C196: 108.25 | D196: 8.25 | E196: MC
A197: 25490 | B197: 2018-04-24 | C197: 6.5 | D197: 0.5
A198: 25491 | B198: 2018-04-24 | C198: 137.48 | D198: 10.48
A199: 25492 | B199: 2018-04-24 | C199: 16.18 | D199: 1.23 | E199: MC
A200: 25493 | B200: 2018-04-24 | C200: 21.5 | E200: Due, Carlos G - MX resale | F200: =+C194+C195+C196+C147+C199 -> 333.11 | G200: 324.78 | H200: $360.47 / $303.70 Square
... 64 more rows

Sheet Logo

Sheet Mar-18
A1: Invoice | C1: =SUM(C7:C484) -> 30485.79453 | D1: =SUM(D7:D484) -> 1909.574525 | H1: =TODAY() -> 2018-07-20
A2: Number | B2: Date | C2: Amount | D2: Tax | E2: Terms
A3: 25022 | B3: 2018-03-01 | C3: 11 | D3: 0.84
A4: 25023 | B4: 2018-03-01 | C4: 32.48 | D4: 2.48 | E4: Due
A5: 25024 | B5: 2018-03-01 | C5: 1255 | E5: Due, Carlos G - MX
A6: 25025 | B6: 2018-03-01 | C6: 8.12 | D6: 0.62 | E6: Visa
A7: 25026 | B7: 2018-03-01 | C7: 60 | D7: 4.58 | F7: =61.29+C6 -> 69.41 | G7: =+F7*0.97831 -> 67.9044971
A8: 25027 | B8: 2018-03-02 | C8: 230 | D8: 17.53
A9: 25028 | B9: 2018-03-02 | C9: 25.98 | D9: 1.98
A10: 25029 | B10: 2018-03-02 | C10: 378.88 | D10: 28.88
A11: 25030 | B11: 2018-03-02 | C11: 41 | D11: 3.12
A12: 25031 | B12: 2018-03-02 | C12: 27.06 | D12: 2.06
A13: 25032 | B13: 2018-03-02 | C13: 129.9 | D13: 9.9
A14: 25033 | B14: 2018-03-02 | C14: 18 | E14: Visa, BBG - resale | F14: =+C14 -> 18 | G14: =+F14*0.97831 -> 17.60958
A15: 25034 | B15: 2018-03-03 | C15: 34.59 | D15: 2.64 | E15: AmEx
A16: 25035 | B16: 2018-03-03 | C16: 403.77 | D16: 30.77 | E16: Visa
A17: 25036 | B17: 2018-03-03 | C17: 53.04 | D17: 4.04
A18: 25037 | B18: 2018-03-03 | C18: 147.49 | D18: 11.24
A19: 25038 | B19: 2018-03-03 | C19: 178.61 | D19: 13.61 | E19: Visa
A20: 25039 | B20: 2018-03-03 | C20: 107.17 | D20: 8.17 | E20: Visa
A21: 25040 | B21: 2018-03-03 | C21: 38.75 | D21: 2.95
A22: 25041 | B22: 2018-03-03 | C22: 129.9 | D22: 9.9 | E22: MC
A23: 25042 | B23: 2018-03-03 | C23: 21.65 | D23: 1.65 | E23: Visa
A24: 25043 | B24: 2018-03-03 | C24: 333 | D24: 25.38 | E24: Square | F24: =+C15+200+C19+C20+C22+C23+40 -> 711.92 | G24: =+F24*0.97831 -> 696.4784552 | H24: $390.19 Square
A25: 25044 | B25: 2018-03-05 | C25: 9.69 | D25: 0.74 | E25: Visa
A26: 25045 | B26: 2018-03-05 | C26: 100 | D26: 7.62
A27: 25046 | B27: 2018-03-05 | C27: 158.05 | D27: 12.05
A28: 25047 | B28: 2018-03-05 | C28: 24 | E28: Due, Revolution - resale
A29: 25048 | B29: 2018-03-05 | C29: 238 | D29: 18.14
A30: 25049 | B30: 2018-03-05 | C30: 7.58 | D30: 0.58
A31: 25050 | B31: 2018-03-05 | C31: 46 | D31: 3.51 | E31: Visa
A32: 25051 | B32: 2018-03-05 | C32: 29.23 | D32: 2.23
A33: 25052 | B33: 2018-03-05 | C33: 84.44 | D33: 6.44
A34: 25053 | B34: 2018-03-05 | C34: 20.57 | D34: 1.57
A35: 25054 | B35: 2018-03-05 | C35: 80 | E35: Due, J.Rangel - resale
A36: 25055 | B36: 2018-03-05 | C36: 19.12 | E36: Due, J.Rangel - resale | F36: =+C25+C31 -> 55.69 | G36: =+F36*0.97831 -> 54.4820839
A37: 25056 | B37: 2018-03-06 | C37: 128.82 | D37: 9.82 | E37: Square
A38: 25057 | B38: 2018-03-06 | C38: 89.52 | D38: 6.52 | E38: Square
A39: 25058 | B39: 2018-03-06 | C39: 45 | D39: 3.43
A40: 25059 | B40: 2018-03-06 | C40: 231.66 | D40: 17.66 | E40: Check
A41: 25060 | B41: 2018-03-06 | C41: 26.1 | E41: Square, Border Patrol
A42: 25061 | B42: 2018-03-06 | C42: 242.48 | D42: 18.48 | E42: Square ($100), $142.48 due
A43: 25062 | B43: 2018-03-06 | C43: 130.98 | D43: 9.98 | E43: Square
A44: 25063 | B44: 2018-03-06 | C44: 40 | D44: 3.05 | E44: Square
A45: 25064 | B45: 2018-03-06 | C45: 5 | D45: 0.38 | E45: Square
A46: 25065 | B46: 2018-03-06 | C46: 9.96 | D46: 0.76 | F46: 0 | G46: =+F46*0.97831 -> 0 | H46: $520.42 Square
A47: 25066 | B47: 2018-03-07 | C47: 5 | D47: 0.38
A48: 25067 | B48: 2018-03-07 | C48: 266 | D48: 20.27 | E48: Due
A49: 25068 | B49: 2018-03-07 | C49: 9.69 | D49: 0.74 | E49: Square
A50: 25069 | B50: 2018-03-07 | C50: 51 | E50: Due, J.Rangel - resale
A51: 25070 | B51: 2018-03-07 | C51: 86.6 | D51: 6.6
A52: 25071 | B52: 2018-03-07 | C52: 58.24 | D52: 4.44
A53: 25072 | B53: 2018-03-07 | C53: 96.34 | D53: 7.34 | E53: Square
A54: 25073 | B54: 2018-03-07 | C54: 150.47 | D54: 11.47 | E54: Due
A55: 25074 | B55: 2018-03-07 | C55: 0 | D55: 0
A56: 25075 | B56: 2018-03-07 | C56: 7.5 | E56: Due, J.Rangel - resale | F56: 0 | G56: =+F56*0.97831 -> 0 | H56: $372.03 Square
A57: 25076 | B57: 2018-03-08 | C57: 289.449675 | D57: 22.059675
A58: 25077 | B58: 2018-03-08 | C58: 205.13 | D58: 15.63 | E58: Square
A59: 25078 | B59: 2018-03-08 | C59: 48.71 | D59: 3.71 | E59: Square
A60: 25079 | B60: 2018-03-08 | C60: 75.78 | D60: 5.78 | E60: Due, HD Cables
A61: 25080 | B61: 2018-03-08 | C61: 62 | E61: Trade, Revolution - resale ($2 due)
A62: 25081 | B62: 2018-03-08 | C62: 163.46 | D62: 12.46
A63: 25082 | B63: 2018-03-08 | C63: 375.63 | D63: 28.63 | E63: $255.63 due
A64: 25083 | B64: 2018-03-08 | C64: 87.2 | E64: Due, Carlos G - MX
A65: 25084 | B65: 2018-03-08 | C65: 103 | E65: Due, Carlos G - MX
A66: 25085 | B66: 2018-03-08 | C66: 298 | E66: Due, Carlos G - MX
A67: 25086 | B67: 2018-03-08 | C67: 63.8 | E67: Due, Carlos G - MX | F67: 0 | G67: =+F67*0.97831 -> 0 | H67: $362.10 Square
A68: 25087 | B68: 2018-03-09 | C68: 42.65 | D68: 3.25 | E68: Square
A69: 25088 | B69: 2018-03-09 | C69: 8.66 | D69: 0.66
A70: 25089 | B70: 2018-03-09 | C70: 15 | D70: 1.14
A71: 25090 | B71: 2018-03-09 | C71: 144 | D71: 10.97
A72: 25091 | B72: 2018-03-09 | C72: 457.36 | D72: 34.86 | E72: Square
A73: 25092 | B73: 2018-03-09 | C73: 232.74 | D73: 17.74 | E73: Due, Randy's friend
A74: 25093 | B74: 2018-03-09 | C74: 9.69 | D74: 0.74
A75: 25094 | B75: 2018-03-09 | C75: 153.17 | D75: 11.67 | E75: Square
A76: 25095 | B76: 2018-03-09 | C76: 17.32 | D76: 1.32 | E76: Due | F76: 0 | G76: =+F76*0.97831 -> 0 | H76: $653.18 Square
A77: 25096 | B77: 2018-03-10 | C77: 43.25 | D77: 3.3 | E77: Square
A78: 25097 | B78: 2018-03-10 | C78: 11.85 | D78: 0.9
A79: 25098 | B79: 2018-03-10 | C79: 33.5 | D79: 2.55 | E79: $7.52 due
A80: 25099 | B80: 2018-03-10 | C80: 42 | D80: 3.2
A81: 25100 | B81: 2018-03-10 | C81: 21.6 | D81: 1.65
A82: 25101 | B82: 2018-03-10 | C82: 227.33 | D82: 17.33 | E82: Square
A83: 25102 | B83: 2018-03-10 | C83: 3.19 | D83: 0.24
A84: 25103 | B84: 2018-03-10 | C84: 31.39 | D84: 2.39 | E84: Due
A85: 25104 | B85: 2018-03-10 | C85: 45 | D85: 3.43 | E85: Square
A86: 25105 | B86: 2018-03-10 | C86: 264.13 | D86: 20.13 | E86: Square
A87: 25106 | B87: 2018-03-10 | C87: 14.5 | E87: Due, Revolution - resale
A88: 25107 | B88: 2018-03-10 | C88: 9.74 | D88: 0.74 | E88: Square | F88: 0 | G88: =+F88*0.97831 -> 0 | H88: $1126.17 Square
A89: 25108 | B89: 2018-03-12 | C89: 32.48 | D89: 2.48
A90: 25109 | B90: 2018-03-12 | C90: 97.31 | D90: 7.41 | E90: Square
A91: 25110 | B91: 2018-03-12 | C91: 240.86 | D91: 18.36 | E91: Square
A92: 25111 | B92: 2018-03-12 | C92: 125.5 | E92: Due, Revolution - resale
A93: 25112 | B93: 2018-03-12 | C93: 23.82 | D93: 1.82
A94: 25113 | B94: 2018-03-12 | C94: 10 | E94: Due, Revolution - resale
A95: 25114 | B95: 2018-03-12 | C95: 55.5 | E95: Due, J.Rangel - resale
A96: 25115 | B96: 2018-03-12 | C96: 40 | E96: J.Rangel - resale
A97: 25116 | B97: 2018-03-12 | C97: 40 | E97: Due, J.Rangel - resale
A98: 25117 | B98: 2018-03-12 | C98: 25 | E98: Due
A99: 25118 | B99: 2018-03-12 | C99: 44 | D99: 3.35 | E99: Due, J.Rangel - resale
A100: 25119 | B100: 2018-03-12 | C100: 16.9 | E100: J.Rangel - resale
A101: 25120 | B101: 2018-03-12 | C101: 118.9 | E101: Due, Carlos G - MX | F101: 0 | G101: =+F101*0.97831 -> 0 | H101: $338.17 Square
A102: 25121 | B102: 2018-03-13 | C102: 30.31 | D102: 2.31 | E102: Square
A103: 25122 | B103: 2018-03-13 | C103: 469.84 | E103: Square
A104: 25123 | B104: 2018-03-13 | C104: 63.87 | D104: 4.87 | E104: Square
A105: 25124 | B105: 2018-03-13 | C105: 50.82 | D105: 3.87 | E105: Square
A106: 25125 | B106: 2018-03-13 | C106: -15.16 | D106: -1.16
A107: 25126 | B107: 2018-03-13 | C107: 67.87 | D107: 4.87 | E107: $7.87 Square
A108: 25127 | B108: 2018-03-13 | C108: 40.92 | D108: 3.12 | E108: Inv 25125
A109: 25128 | B109: 2018-03-13 | C109: 63.87 | D109: 4.87 | E109: Square
A110: 25129 | B110: 2018-03-13 | C110: 156.37 | D110: 11.92 | E110: Square
A111: 25130 | B111: 2018-03-13 | C111: 17.21 | D111: 1.31 | F111: 0 | G111: =+F111*0.97831 -> 0 | H111: $842.95 Square
A112: 25131 | B112: 2018-03-14 | C112: 45.5 | E112: Due, Revolution - resale
A113: 25132 | B113: 2018-03-14 | C113: 235 | E113: Revolution - resale, $135 due
A114: 25133 | B114: 2018-03-14 | C114: 185.65 | D114: 14.15
A115: 25134 | B115: 2018-03-14 | C115: 10.83 | D115: 0.83
A116: 25135 | B116: 2018-03-14 | C116: 43.6 | D116: 3.32
A117: 25136 | B117: 2018-03-14 | C117: 74.69 | D117: 5.69 | E117: Check
A118: 25137 | B118: 2018-03-14 | C118: 565 | D118: 43.06 | E118: $305 due
A119: 25138 | B119: 2018-03-14 | C119: 96.34 | D119: 7.34 | E119: Square
A120: 25139 | B120: 2018-03-14 | C120: 96.34 | D120: 7.34 | E120: Square
A121: 25140 | B121: 2018-03-14 | C121: 23.82 | D121: 1.82
A122: 25141 | B122: 2018-03-14 | C122: 69.6 | E122: Due, J.Rangel - resale
A123: 25142 | B123: 2018-03-14 | C123: 10.77 | D123: 0.82 | E123: Square | F123: 0 | G123: =+F123*0.97831 -> 0 | H123: $289.10 Square
A124: 25143 | B124: 2018-03-15 | C124: 8.66 | D124: 0.66 | E124: Square
A125: 25144 | B125: 2018-03-15 | C125: 3.03 | D125: 0.23
A126: 25145 | B126: 2018-03-15 | C126: 40.49 | D126: 3.09 | E126: Due
A127: 25146 | B127: 2018-03-15 | C127: 47.63 | D127: 3.63 | E127: Square
A128: 25147 | B128: 2018-03-15 | C128: 15.16 | D128: 1.16
A129: 25148 | B129: 2018-03-15 | C129: 40 | E129: Square, Used
A130: 25149 | B130: 2018-03-15 | C130: 63.87 | D130: 4.87
A131: 25150 | B131: 2018-03-15 | C131: 14 | E131: Due
A132: 25151 | B132: 2018-03-15 | C132: -2.17 | D132: -0.17
A133: 25152 | B133: 2018-03-15 | C133: 11.91 | D133: 0.91
A134: 25153 | B134: 2018-03-15 | C134: 41.24 | D134: 1.24
A135: 25154 | B135: 2018-03-15 | C135: 389 | E135: Due, Carlos G - MX | F135: 0 | G135: =+F135*0.97831 -> 0 | H135: $96.29 Square
A136: 25155 | B136: 2018-03-16 | C136: 201.89 | D136: 15.39
A137: 25156 | B137: 2018-03-16 | C137: 21.64 | D137: 1.65
A138: 25157 | B138: 2018-03-16 | C138: 423.26 | D138: 32.26 | E138: Square, $323.26 due
A139: 25158 | B139: 2018-03-16 | C139: 541.25 | D139: 41.25 | E139: Square
A140: 25159 | B140: 2018-03-16 | C140: 64.84 | D140: 4.94
A141: 25160 | B141: 2018-03-16 | C141: 28.15 | D141: 2.15
A142: 25161 | B142: 2018-03-16 | C142: 56.29 | D142: 4.29 | E142: Square
A143: 25162 | B143: 2018-03-16 | C143: 40.59 | D143: 3.09 | E143: Due, OT
A144: 25163 | B144: 2018-03-16 | C144: 9 | E144: Due, Revolution - resale
A145: 25164 | B145: 2018-03-16 | C145: 40.59 | D145: 3.09 | E145: Square | F145: 1 | G145: =+F145*0.97831 -> 0.97831 | H145: $420.52 / $354.28 Square
A146: 25165 | B146: 2018-03-17 | C146: -97.43 | D146: -7.43
A147: 25166 | B147: 2018-03-17 | C147: 129.9 | D147: 9.9 | E147: Visa
A148: 25167 | B148: 2018-03-17 | C148: 199.72 | D148: 15.22 | E148: Visa | F148: =+C147+C148 -> 329.62 | G148: 321.53
A149: 25168 | B149: 2018-03-19 | C149: 81.19 | D149: 6.19 | E149: Visa
A150: 25169 | B150: 2018-03-19 | C150: 75 | D150: 5.72 | E150: Visa
A151: 25170 | B151: 2018-03-19 | C151: 287.95 | D151: 21.95 | E151: Square
A152: 25171 | B152: 2018-03-19 | C152: 84.11 | D152: 6.11
A153: 25172 | B153: 2018-03-19 | C153: 491.46 | D153: 37.46 | E153: Visa
A154: 25173 | B154: 2018-03-19 | C154: 18.35 | D154: 1.4 | E154: Visa
A155: 25174 | B155: 2018-03-19 | C155: 50 | E155: Used - 12in Apes, Mags
A156: 25175 | B156: 2018-03-19 | C156: 8.66 | D156: 0.66
A157: 25176 | B157: 2018-03-19 | C157: 500 | D157: 38.11 | E157: $300 Due
A158: 25177 | B158: 2018-03-19 | C158: 49.8 | D158: 3.8
A159: 25178 | B159: 2018-03-19 | C159: 8.66 | D159: 0.66
A160: 25179 | B160: 2018-03-19 | C160: 27.06 | D160: 2.06 | E160: Square
A161: 25180 | B161: 2018-03-19 | C161: 37 | D161: 2.82
A162: 25181 | B162: 2018-03-19 | C162: 207.84 | D162: 15.84 | E162: Square, $107.84 due | F162: =+C149+C150+33.87+C153+C154+7 -> 706.87 | G162: 693.09 | H162: $415.01 / $349.65 Square
A163: 25182 | B163: 2018-03-20 | C163: 336.12 | D163: 25.62 | E163: Due
A164: 25183 | B164: 2018-03-20 | C164: 195 | E164: J.Rangel - resale
A165: 25184 | B165: 2018-03-20 | C165: 250 | D165: 19.05 | E165: $50 due
A166: 25185 | B166: 2018-03-20 | C166: 31.1 | E166: Visa, Border Patrol
A167: 25186 | B167: 2018-03-20 | C167: 29.8 | E167: Visa, Border Patrol
A168: 25187 | B168: 2018-03-20 | C168: 204 | E168: Due, Carlos G - MX
A169: 25188 | B169: 2018-03-20 | C169: 238.15 | D169: 18.15 | E169: Visa | F169: 323.26 | G169: 321.84 | H169: $336.12 / $283.18 Square
A170: 25189 | B170: 2018-03-21 | C170: 5 | D170: 0.38
A171: 25190 | B171: 2018-03-21 | C171: 117.99 | D171: 8.99
A172: 25191 | B172: 2018-03-21 | C172: 225.16 | D172: 17.16 | E172: Visa, $125.16 Due
A173: 25192 | B173: 2018-03-21 | C173: 74.69 | D173: 5.69 | E173: Due
A174: 25193 | B174: 2018-03-21 | C174: 147 | D174: 11.2
A175: 25194 | B175: 2018-03-21 | C175: 24.84 | D175: 1.89 | E175: MC
A176: 25195 | B176: 2018-03-21 | C176: 15 | D176: 1.14
A177: 25196 | B177: 2018-03-21 | C177: 8.66 | D177: 0.66
A178: 25197 | B178: 2018-03-21 | C178: 137.48 | D178: 10.48 | E178: Due, Randy's friend
A179: 25198 | B179: 2018-03-21 | C179: 126.5 | E179: Due, Carlos G - MX
A180: 25199 | B180: 2018-03-21 | C180: 158.2 | E180: Due, Carlos G - MX | F180: =+C166+C167+C169+100+C175 -> 423.89 | G180: 416.11
A181: 25200 | B181: 2018-03-22 | C181: 214.28 | D181: 16.33 | E181: Square
A182: 25201 | B182: 2018-03-22 | C182: 464.39 | D182: 35.39 | E182: MC, $264.39 due
A183: 25202 | B183: 2018-03-22 | C183: 13.38 | E183: Square
A184: 25203 | B184: 2018-03-22 | C184: 102.84 | D184: 7.84 | E184: Visa
A185: 25204 | B185: 2018-03-22 | C185: 414.6 | D185: 31.6 | E185: $314.60 Due
A186: 25205 | B186: 2018-03-22 | C186: 11.91 | D186: 0.91
A187: 25206 | B187: 2018-03-22 | C187: 7 | E187: Due, Revolution - resale
A188: 25207 | B188: 2018-03-22 | C188: 36.81 | D188: 2.81 | E188: Square
A189: 25208 | B189: 2018-03-22 | C189: 39 | E189: Due, J.Rangel - resale | F189: =200+C184+7.52 -> 310.36 | G189: 305.4 | H189: $50.19 / $42.28 Square
A190: 25209 | B190: 2018-03-23 | C190: 469.99985 | D190: 35.81985
A191: 25210 | B191: 2018-03-23 | C191: 810 | D191: 61.73
A192: 25211 | B192: 2018-03-23 | C192: 27 | D192: 2.06
A193: 25212 | B193: 2018-03-23 | C193: 347 | D193: 26.45 | E193: $147 due
A194: 25213 | B194: 2018-03-23 | C194: 129.9 | D194: 9.9 | E194: Visa
A195: 25214 | B195: 2018-03-23 | C195: 150 | D195: 11.43 | F195: =50+C194 -> 179.9 | G195: 176.87 | H195: $555.53 / $468.04 Square
A196: 25215 | B196: 2018-03-24 | C196: 321.25 | E196: Due, Carlos G - MX
A197: 25216 | B197: 2018-03-24 | C197: 100 | D197: 7.62 | E197: Visa
A198: 25217 | B198: 2018-03-24 | C198: -35.75 | E198: Due, J.Rangel - resale
A199: 25218 | B199: 2018-03-24 | C199: 0 | E199: J.Rangel - ref only
A200: 25219 | B200: 2018-03-24 | C200: 206 | E200: Due, J.Rangel - resale
... 90 more rows

Sheet Feb-18
A1: Invoice | C1: =SUM(C3:C362) -> 20468.96 | D1: =SUM(D3:D361) -> 1277.72 | F1: =SUM(F3:F1351) -> 6036.78 | G1: =SUM(G3:G1351) -> 5905.842242 | H1: =TODAY() -> 2018-07-20
A2: Number | B2: Date | C2: Amount | D2: Tax | E2: Terms
A3: 24845 | B3: 2018-02-01 | C3: 238.15 | D3: 18.15 | E3: Mayhem Handlebars
A4: 24846 | B4: 2018-02-01 | C4: 116.37 | D4: 8.87 | E4: Visa
A5: 24847 | B5: 2018-02-01 | C5: 350 | D5: 26.67
A6: 24848 | B6: 2018-02-01 | C6: 250 | D6: 19.05
A7: 24849 | B7: 2018-02-01 | C7: 115.54 | E7: Due, J.Rangel - Resale
A8: 24850 | B8: 2018-02-01 | C8: 392 | D8: 29.87 | E8: $180 cash, $212 Visa | F8: =+C4+212 -> 328.37 | G8: =+F8*0.97831 -> 321.2476547
A9: 24851 | B9: 2018-02-02 | C9: 250.27 | D9: 18.77 | E9: Due, Vespa
A10: 24852 | B10: 2018-02-02 | C10: 352.35 | D10: 26.85 | E10: MC
A11: 24853 | B11: 2018-02-02 | C11: 2.7 | D11: 0.21
A12: 24854 | B12: 2018-02-02 | C12: 14.07 | D12: 1.07
A13: 24855 | B13: 2018-02-02 | C13: 57.21 | D13: 1.31
A14: 24856 | B14: 2018-02-02 | C14: 54 | D14: 4.12 | E14: Visa
A15: 24857 | B15: 2018-02-02 | C15: 293 | D15: 22.33
A16: 24858 | B16: 2018-02-02 | C16: 9 | D16: 0.69 | E16: Visa | F16: =+C10+C14+C16 -> 415.35 | G16: =+F16*0.97831 -> 406.3410585
A17: 24859 | B17: 2018-02-03 | C17: 320.96 | D17: 24.46 | E17: $200 cash, $120.96 Square
A18: 24860 | B18: 2018-02-03 | C18: 272.25 | D18: 20.75 | E18: Square
A19: 24861 | B19: 2018-02-03 | C19: 43.3 | D19: 3.3 | E19: Visa
A20: 24862 | B20: 2018-02-03 | C20: 48.71 | D20: 3.71 | E20: Visa
A21: 24863 | B21: 2018-02-03 | C21: -25 | D21: -1.91
A22: 24864 | B22: 2018-02-03 | C22: 165 | D22: 12.58
A23: 24865 | B23: 2018-02-03 | C23: 168.87 | D23: 12.87 | E23: Visa | F23: =+C19+C20+C23 -> 260.88 | G23: =+F23*0.97831 -> 255.2215128 | H23: $747.76 Square
A24: 24866 | B24: 2018-02-05 | C24: 32.48 | D24: 2.48 | E24: Due
A25: 24867 | B25: 2018-02-05 | C25: 94.18 | D25: 7.18 | E25: Square
A26: 24868 | B26: 2018-02-05 | C26: 56.29 | D26: 4.29
A27: 24869 | B27: 2018-02-05 | C27: 31.65 | E27: Due, Carlos G - MX
A28: 24870 | B28: 2018-02-05 | C28: 32.48 | D28: 2.48
A29: 24871 | B29: 2018-02-05 | C29: 185 | D29: 14.1 | E29: Due | F29: 0 | G29: =+F29*0.97831 -> 0 | H29: $184.70 Square
A30: 24872 | B30: 2018-02-06 | C30: -28.15 | D30: -2.15
A31: 24873 | B31: 2018-02-06 | C31: 139.64 | D31: 10.64
A32: 24874 | B32: 2018-02-06 | C32: 96.34 | D32: 7.34 | E32: Visa
A33: 24875 | B33: 2018-02-06 | C33: 8.61 | D33: 0.66
A34: 24876 | B34: 2018-02-06 | C34: 515 | D34: 39.25 | E34: $415 due
A35: 24877 | B35: 2018-02-06 | C35: 176.99 | D35: 13.49 | E35: Due
A36: 24878 | B36: 2018-02-06 | C36: 285 | D36: 21.72 | E36: Due, Mark - Dyna
A37: 24879 | B37: 2018-02-06 | C37: 58.46 | D37: 4.46 | E37: Square | F37: =136.84+C32 -> 233.18 | G37: =+F37*0.97831 -> 228.1223258 | H37: $58.46 Square
A38: 24880 | B38: 2018-02-07 | C38: 357.77 | D38: 27.27 | E38: Square
A39: 24881 | B39: 2018-02-07 | C39: 17.5 | E39: Due, George - Revolution
A40: 24882 | B40: 2018-02-07 | C40: 185.65 | D40: 14.15 | E40: Due
A41: 24883 | B41: 2018-02-07 | C41: 31.39 | D41: 2.39 | E41: Due
A42: 24884 | B42: 2018-02-07 | C42: 20 | D42: 1.52
A43: 24885 | B43: 2018-02-07 | C43: 64.95 | D43: 4.95 | E43: Square
A44: 24886 | B44: 2018-02-07 | C44: 75.78 | D44: 5.78 | E44: Square | F44: 0 | G44: =+F44*0.97831 -> 0 | H44: $498.50 Square
A45: 24887 | B45: 2018-02-08 | C45: 70.36 | D45: 5.36 | E45: Square
A46: 24888 | B46: 2018-02-08 | C46: 85
A47: 24889 | B47: 2018-02-08 | E47: Ref only - No charge
A48: 24890 | B48: 2018-02-08 | C48: 16.24 | D48: 1.24 | E48: Visa | F48: =+C48+85+135.58 -> 236.82 | G48: =+F48*0.97831 -> 231.6833742 | H48: $70.36 Square
A49: 24891 | B49: 2018-02-09 | E49: Dup to Inv 24891
A50: 24892 | B50: 2018-02-09 | C50: 29.95 | E50: Visa, Border Patrol | F50: =+C50+176.99 -> 206.94 | G50: =+F50*0.97831 -> 202.4514714
A51: 24893 | B51: 2018-02-10 | C51: 70.36 | D51: 5.36 | E51: Square
A52: 24894 | B52: 2018-02-10 | C52: 140.73 | D52: 10.73
A53: 24895 | B53: 2018-02-10 | C53: 21.6 | D53: 1.65 | E53: Visa | F53: =+C53 -> 21.6 | G53: =+F53*0.97831 -> 21.131496 | H53: $70.36 Square
A54: 24896 | B54: 2018-02-12 | C54: 32.48 | D54: 2.48 | E54: Square
A55: 24897 | B55: 2018-02-12 | C55: 70.36 | D55: 5.36 | E55: Square
A56: 24898 | B56: 2018-02-12 | C56: 208 | D56: 15.85
A57: 24899 | B57: 2018-02-12 | C57: 88 | E57: Due, Carlos G - MX
A58: 24900 | B58: 2018-02-12 | C58: 6.39 | D58: 0.49
A59: 24901 | B59: 2018-02-12 | C59: 28 | E59: Due, Carlos G - MX
A60: 24902 | B60: 2018-02-12 | E60: $400 deposit only
A61: 24903 | B61: 2018-02-12 | C61: 107.17 | D61: 8.17 | E61: Square
A62: 24904 | B62: 2018-02-12 | C62: -70.36 | D62: -5.36 | E62: Square
A63: 24905 | B63: 2018-02-12 | C63: 34.56 | D63: 2.63 | E63: Square | F63: 0 | G63: =+F63*0.97831 -> 0 | H63: $67.04 Square
A64: 24906 | B64: 2018-02-13 | C64: 15.16 | D64: 1.16
A65: 24907 | B65: 2018-02-13 | C65: 27 | D65: 2.06 | F65: 250.27 | G65: =+F65*0.97831 -> 244.8416437
A66: 24908 | B66: 2018-02-14 | C66: 227.87 | D66: 17.37 | E66: Square
A67: 24909 | B67: 2018-02-14 | C67: 108.25 | D67: 8.25 | E67: Due
A68: 24910 | B68: 2018-02-14 | C68: 156.96 | D68: 11.96 | E68: Due, Triumph
A69: 24911 | B69: 2018-02-14 | C69: 161.29 | D69: 12.29 | E69: Visa, $61.29 due
A70: 24912 | B70: 2018-02-14 | C70: 40 | D70: 3.05
A71: 24913 | B71: 2018-02-14 | C71: 20.51 | D71: 1.56
A72: 24914 | B72: 2018-02-14 | C72: 107.17 | D72: 8.17 | E72: Visa
A73: 24915 | B73: 2018-02-14 | C73: 117.19 | D73: 5.69 | E73: Square
A74: 24916 | B74: 2018-02-14 | C74: 175 | D74: 13.34
A75: 24917 | B75: 2018-02-14 | C75: 64 | E75: Due, Carlos G - MX
A76: 24918 | B76: 2018-02-14 | C76: 124.97 | D76: 9.52 | F76: =100+185.65+C72 -> 392.82 | G76: =+F76*0.97831 -> 384.2997342 | H76: $1045.19 Square
A77: 24919 | B77: 2018-02-15 | C77: 67.12 | D77: 5.12
A78: 24920 | B78: 2018-02-15 | C78: 408.1 | D78: 31.1 | E78: Visa
A79: 24921 | B79: 2018-02-15 | C79: 25.98 | D79: 1.98
A80: 24922 | B80: 2018-02-15 | C80: 173.2 | D80: 13.2 | E80: Square
A81: 24923 | B81: 2018-02-15 | C81: 34.96 | E81: Due, Border Patrol
A82: 24924 | B82: 2018-02-15 | C82: 48.71 | D82: 3.71 | E82: Visa
A83: 24925 | B83: 2018-02-15 | C83: 810 | E83: Due, Carlos G - MX | F83: =50+C82 -> 98.71 | G83: =+F83*0.97831 -> 96.5689801 | H83: $173.20 Square
A84: 24926 | B84: 2018-02-16 | C84: 70 | E84: Used Part
A85: 24927 | B85: 2018-02-16 | C85: 51.96 | D85: 3.96 | E85: Due, YZF250R
A86: 24928 | B86: 2018-02-16 | C86: 43.3 | D86: 3.3 | E86: Visa
A87: 24929 | B87: 2018-02-16 | C87: 21.65 | D87: 1.65 | E87: Visa
A88: 24930 | B88: 2018-02-16 | C88: 210 | D88: 16.01
A89: 24931 | B89: 2018-02-16 | C89: 256 | D89: 19.51
A90: 24932 | B90: 2018-02-16 | C90: 27.06 | D90: 2.06
A91: 24933 | B91: 2018-02-16 | C91: 58.4 | D91: 4.45 | E91: Visa
A92: 24934 | B92: 2018-02-16 | C92: 21.13 | D92: 1.61 | E92: Square
A93: 24935 | B93: 2018-02-16 | C93: 131.52 | D93: 10.02 | E93: Visa
A94: 24936 | B94: 2018-02-16 | C94: 31.39 | D94: 2.39 | E94: MC
A95: 24937 | B95: 2018-02-16 | C95: 777 | E95: Due, Carlos G - MX | F95: =+C87+C91+C93+C94+C86 -> 286.26 | G95: =+F95*0.97831 -> 280.0510206 | H95: $249.00 / $209.78 Square
A96: 24938 | B96: 2018-02-17 | C96: 195.39 | D96: 14.89 | E96: Visa
A97: 24939 | B97: 2018-02-17 | C97: 8.61 | D97: 0.66 | E97: Visa
A98: 24940 | B98: 2018-02-17 | C98: 533.67 | D98: 40.67 | E98: AmExp
A99: 24941 | B99: 2018-02-17 | C99: 189 | D99: 14.4 | E99: Visa
A100: 24942 | B100: 2018-02-17 | C100: 51.96 | D100: 3.96 | E100: Visa
A101: 24943 | B101: 2018-02-17 | C101: 5 | D101: 0.38
A102: 24944 | B102: 2018-02-17 | C102: 10.77 | D102: 0.82
A103: 24945 | B103: 2018-02-17 | C103: 266.84 | D103: 20.34 | E103: Visa
A104: 24946 | B104: 2018-02-17 | C104: 10 | E104: Used Part
A105: 24947 | B105: 2018-02-17 | C105: 49.8 | D105: 3.8 | E105: MC
A106: 24948 | B106: 2018-02-17 | C106: 51 | E106: Due, George - Revolution | F106: =+C96+C98+C99+C100+C103+C97+C105 -> 1295.27 | G106: =+F106*0.97831 -> 1267.175594
A107: 24949 | B107: 2018-02-19 | C107: 299.31 | D107: 22.81 | E107: Visa
A108: 24950 | B108: 2018-02-19 | C108: 9.69 | D108: 0.74 | E108: Visa
A109: 24951 | B109: 2018-02-19 | C109: 5 | E109: Used Part
A110: 24952 | B110: 2018-02-19 | C110: 8 | E110: Used Part
A111: 24953 | B111: 2018-02-19 | C111: 70 | D111: 5.34 | E111: Visa
A112: 24954 | B112: 2018-02-19 | C112: 99.59 | D112: 7.59
A113: 24955 | B113: 2018-02-19 | C113: 212 | D113: 15.15
A114: 24956 | B114: 2018-02-19 | C114: 0 | D114: 0 | E114: MC
A115: 24957 | B115: 2018-02-19 | C115: 177.75 | E115: J.Rangel - Resale
A116: 24958 | B116: 2018-02-19 | C116: 20.25 | E116: J.Rangel - Resale | F116: =+C107+C108+C111+359 -> 738 | G116: =+F116*0.97831 -> 721.99278
A117: 24959 | B117: 2018-02-20 | C117: 11.91 | D117: 0.91
A118: 24960 | B118: 2018-02-20 | C118: 304.72 | D118: 23.22 | E118: Square
A119: 24961 | B119: 2018-02-20 | C119: 29 | E119: Visa
A120: 24962 | B120: 2018-02-20 | C120: 162.75 | D120: 12.4 | E120: Visa
A121: 24963 | B121: 2018-02-20 | C121: 10.83 | D121: 0.83
A122: 24964 | B122: 2018-02-20 | C122: 118 | E122: Due, Carlos G - MX
A123: 24965 | B123: 2018-02-20 | C123: 12.99 | D123: 0.99
A124: 24966 | B124: 2018-02-20 | C124: 151.55 | D124: 11.55 | E124: Visa
A125: 24967 | B125: 2018-02-20 | C125: 274.96 | D125: 20.96 | E125: Due | F125: =34.96+C119+C120+C124 -> 378.26 | G125: =+F125*0.97831 -> 370.0555406
A126: 24968 | B126: 2018-02-21 | C126: 384 | E126: Due, Carlos G - MX
A127: 24969 | B127: 2018-02-21 | C127: 22 | E127: MC, Continental Power
A128: 24970 | B128: 2018-02-21 | C128: 82.27 | D128: 6.27 | E128: Visa
A129: 24971 | B129: 2018-02-21 | C129: 7.58 | D129: 0.58
A130: 24972 | B130: 2018-02-21 | C130: 234.9 | D130: 17.9
A131: 24973 | B131: 2018-02-21 | C131: 363.1 | D131: 27.67 | E131: $198 Bal Due
A132: 24974 | B132: 2018-02-21 | C132: 21 | E132: Due, George - Revolution | F132: =+C127+C128 -> 104.27 | G132: =+F132*0.97831 -> 102.0083837
A133: 24975 | B133: 2018-02-22 | C133: 163.46 | D133: 12.46
A134: 24976 | B134: 2018-02-22 | C134: 179.7 | D134: 13.7 | E134: Visa
A135: 24977 | B135: 2018-02-22 | C135: 106.35 | E135: Due, J.Rangel - Resale
A136: 24978 | B136: 2018-02-22 | C136: 16.24 | D136: 1.24 | E136: MC
A137: 24979 | B137: 2018-02-22 | C137: 180 | E137: Due, Carlos G - MX
A138: 24980 | B138: 2018-02-22 | C138: 184.03 | D138: 14.03 | E138: Due, Jaime
A139: 24981 | B139: 2018-02-22 | C139: 110 | D139: 8.38 | E139: Trade, Brandon
A140: 24982 | B140: 2018-02-22 | C140: 105 | D140: 8 | E140: Visa | F140: =70+C136+C140 -> 191.24 | G140: =+F140*0.97831 -> 187.0920044 | H140: $304.72 Square
A141: 24983 | B141: 2018-02-23 | C141: 17 | E141: Due, George - Revolution
A142: 24984 | B142: 2018-02-23 | C142: 60 | D142: 4.57
A143: 24985 | B143: 2018-02-23 | C143: 110.04 | D143: 8.39
A144: 24986 | B144: 2018-02-23 | C144: -43.3 | D144: -3.3 | E144: Ref Inv 24940
A145: 24987 | B145: 2018-02-23 | C145: 36.53 | D145: 2.78 | E145: Discover
A146: 24988 | B146: 2018-02-23 | C146: 58.46 | D146: 4.46 | I146: =70000*0.0825 -> 5775 | J146: gross
A147: 24989 | B147: 2018-02-23 | C147: 34.59 | D147: 2.64 | I147: =+I146/2 -> 2887.5 | J147: less labor
A148: 24990 | B148: 2018-02-23 | C148: 105.54 | D148: 8.04 | I148: =+I147*0.75 -> 2165.625 | J148: less tax free
A149: 24991 | B149: 2018-02-23 | C149: 5 | D149: 0.38
A150: 24992 | B150: 2018-02-23 | C150: 74.69 | D150: 5.69 | I150: 17155 | J150: gross
A151: 24993 | B151: 2018-02-23 | C151: 1 | D151: 0.08 | F151: =+C145 -> 36.53 | G151: =+F151*0.97831 -> 35.7376643 | I151: =+I150*0.71 -> 12180.05 | J151: taxable | K151: =17155-12180 -> 4975
A152: 24994 | B152: 2018-02-24 | C152: 59.54 | D152: 4.54 | I152: =+I151*0.0825 -> 1004.854125 | J152: due
A153: 24995 | B153: 2018-02-24 | C153: 9.74 | D153: 0.74
A154: 24996 | B154: 2018-02-24 | C154: 40 | D154: 3.05 | E154: Due
A155: 24997 | B155: 2018-02-24 | C155: 34 | E155: Due, George - Revolution
A156: 24998 | B156: 2018-02-24 | C156: -25.98 | D156: -1.98 | E156: Hold for credit
A157: 24999 | B157: 2018-02-24 | C157: 16.24 | D157: 1.24
A158: 25000 | B158: 2018-02-24 | C158: 93.1 | D158: 7.1 | E158: MC | F158: =+C158+40 -> 133.1 | G158: =+F158*0.97831 -> 130.213061
A159: 25001 | B159: 2018-02-26 | C159: 60 | E159: Visa, Owe $100 to cust.
A160: 25002 | B160: 2018-02-26 | C160: 131.42 | D160: 10.02 | E160: Square
A161: 25003 | B161: 2018-02-26 | C161: 48.6 | D161: 3.7 | E161: Discover
A162: 25004 | B162: 2018-02-26 | C162: 5 | D162: 0.38
A163: 25005 | B163: 2018-02-26 | C163: 178.56 | D163: 13.61 | F163: =160+C161 -> 208.6 | G163: =+F163*0.97831 -> 204.075466 | H163: $131.42 Square
A164: 25006 | B164: 2018-02-27 | C164: 331.79 | D164: 25.29 | E164: $131.79 due
A165: 25007 | B165: 2018-02-27 | C165: 174 | D165: 13.26 | E165: Due
A166: 25008 | B166: 2018-02-27 | C166: 62.68 | D166: 4.78 | E166: Square
A167: 25009 | B167: 2018-02-27 | C167: 208 | D167: 15.85
A168: 25010 | B168: 2018-02-27 | C168: 682 | D168: 51.98 | E168: $580 due
A169: 25011 | B169: 2018-02-27 | C169: 5 | D169: 0.38
A170: 25012 | B170: 2018-02-27 | C170: 200 | D170: 15.24
A171: 25013 | B171: 2018-02-27 | C171: 45.47 | D171: 3.47 | E171: Square
A172: 25014 | B172: 2018-02-27 | C172: 27 | D172: 2.06
A173: 25015 | B173: 2018-02-27 | C173: 114.75 | D173: 8.75 | E173: Visa | F173: =+C173 -> 114.75 | G173: =+F173*0.97831 -> 112.2610725 | H173: $105.15 Square
A174: 25016 | B174: 2018-02-28 | C174: 33.56 | D174: 2.56 | E174: Discover
A175: 25017 | B175: 2018-02-28 | C175: 30 | E175: Used - No Tax
A176: 25018 | B176: 2018-02-28 | C176: 72 | D176: 5.49 | E176: Visa
A177: 25019 | B177: 2018-02-28 | C177: 180 | E177: Revolution - Resale
A178: 25020 | B178: 2018-02-28 | C178: 85.52 | D178: 6.52
A179: 25021 | B179: 2018-02-28 | C179: 120 | D179: 9.15 | F179: =+C174+C176 -> 105.56 | G179: =+F179*0.97831 -> 103.2704036
I182: =H1-WEEKDAY(H1,3)-7 -> 2018-07-09 | J182: =SUMIF(INDIRECT(TEXT(I182,"'mmm-yy'")&"!B3:B400"),I182,INDIRECT(TEXT(I182,"'mmm-yy'")&"!C3:C400")) -> 1358.07
I183: =I182+1 -> 2018-07-10 | J183: 505
I184: =I183+1 -> 2018-07-11 | J184: 833.3
I185: 2018-07-12 | J185: 831.11
I186: 2018-07-13 | J186: 882.05
I187: 2018-07-14 | J187: 3060.02
I188: 2018-07-15 | J188: 0 | K188: =SUM(J182:J188) -> 7469.55
I189: 2018-07-16 | J189: 1060.13
I190: 2018-07-17 | J190: 793.53
I191: 2018-07-18 | J191: 681.78
I192: 2018-07-19 | J192: 46.91
I193: 2018-07-20 | J193: 1725.16
I194: 2018-07-21 | J194: 159
I195: 2018-07-22 | J195: 0 | K195: =SUM(J189:J195) -> 4466.51

Sheet Jan-18
A1: Invoice | C1: =SUM(C3:C366) -> 21389.82 | D1: =SUM(D3:D366) -> 1217.78 | F1: =SUM(F3:F1191) -> 5185.75 | G1: =SUM(G3:G1191) -> 5072.071368 | H1: =TODAY() -> 2018-07-20
A2: Number | B2: Date | C2: Amount | D2: Tax | E2: Terms
A3: 24667 | B3: 2018-01-02 | C3: 7.52 | D3: 0.57
A4: 24668 | B4: 2018-01-02 | C4: 9.74 | D4: 0.74
A5: 24669 | B5: 2018-01-02 | C5: 232 | E5: Due, Carlos G - resale MX | F5: 0 | G5: =+F5*0.97831 -> 0
A6: 24670 | B6: 2018-01-03 | C6: 22 | E6: Due, Revolution - Resale
A7: 24671 | B7: 2018-01-03 | C7: 173.2 | D7: 13.2
A8: 24672 | B8: 2018-01-03 | C8: 30 | E8: Due, Carlos G - resale MX | F8: 0 | G8: =+F8*0.97831 -> 0
A9: 24673 | B9: 2018-01-04 | C9: 29.96 | E9: Square, Border Patrol
A10: 24674 | B10: 2018-01-04 | C10: 97 | D10: 7 | E10: Square, Border Patrol
A11: 24675 | B11: 2018-01-04 | C11: 69.23 | D11: 5.28
A12: 24676 | B12: 2018-01-04 | C12: 55 | D12: 4.19
A13: 24677 | B13: 2018-01-04 | C13: 8.66 | D13: 0.66
A14: 24678 | B14: 2018-01-04 | C14: 25.98 | D14: 1.98
A15: 24679 | B15: 2018-01-04 | C15: 6.5 | D15: 0.5 | E15: Due
A16: 24680 | B16: 2018-01-04 | C16: 96.34 | D16: 7.34 | E16: Square | F16: 0 | G16: =+F16*0.97831 -> 0 | H16: $223.30 Square
A17: 24681 | B17: 2018-01-05 | C17: 198.04 | D17: 15.09 | E17: Square
A18: 24682 | B18: 2018-01-05 | C18: 19.38 | D18: 1.48
A19: 24683 | B19: 2018-01-05 | C19: 2.7 | D19: 0.21
A20: 24684 | B20: 2018-01-05 | C20: 19.43 | D20: 1.48
A21: 24685 | B21: 2018-01-05 | C21: 444.85 | D21: 33.9 | E21: Square, $104.85 due
A22: 24686 | B22: 2018-01-05 | C22: 30.63 | E22: Due, ESG Customs | F22: 0 | G22: =+F22*0.97831 -> 0 | H22: $340.00 / $286.45 Square
A23: 24687 | B23: 2018-01-06 | C23: 198.64 | D23: 15.14 | E23: Square, $98.64 due
A24: 24688 | B24: 2018-01-06 | C24: 129.9 | D24: 9.9
A25: 24689 | B25: 2018-01-06 | C25: 267 | D25: 20.36
A26: 24690 | B26: 2018-01-06 | C26: 14.02 | D26: 1.07
A27: 24691 | B27: 2018-01-06 | C27: 461.15 | D27: 35.15 | E27: $261.15 due | F27: 0 | G27: =+F27*0.97831 -> 0 | H27: $298.04 / $251.09 Square
A28: 24692 | B28: 2018-01-08 | C28: 500 | D28: 38.11 | E28: Check, $200. due
A29: 24693 | B29: 2018-01-08 | C29: 260 | D29: 19.82 | E29: $120. due
A30: 24694 | B30: 2018-01-08 | C30: 21.6 | D30: 1.65
A31: 24695 | B31: 2018-01-08 | C31: 65 | D31: 4.95 | E31: Square
A32: 24696 | B32: 2018-01-08 | C32: 87.09 | D32: 6.64 | E32: Square
A33: 24697 | B33: 2018-01-08 | C33: 24.9 | D33: 1.9
A34: 24698 | B34: 2018-01-08 | C34: 255.47 | D34: 19.47 | E34: Square
A35: 24699 | B35: 2018-01-08 | C35: -6.91 | D35: -0.53 | E35: Trade, Chevo
A36: 24700 | B36: 2018-01-08 | C36: 128.82 | D36: 9.82 | E36: Square | F36: 0 | G36: =+F36*0.97831 -> 0 | H36: $600.87 / $506.24 Square
A37: 24701 | B37: 2018-01-09 | C37: 27 | D37: 2.06
A38: 24702 | B38: 2018-01-09 | C38: 8.66 | D38: 0.66
A39: 24703 | B39: 2018-01-09 | C39: 143.97 | D39: 10.97 | E39: Square
A40: 24704 | B40: 2018-01-09 | C40: 30.31 | D40: 2.31 | E40: Square
A41: 24705 | B41: 2018-01-09 | C41: 219.21 | D41: 16.71 | E41: Check
A42: 24706 | B42: 2018-01-09 | C42: 11 | D42: 0.84
A43: 24707 | B43: 2018-01-09 | C43: 238.15 | D43: 18.15 | E43: Square
A44: 24708 | B44: 2018-01-09 | C44: 32 | D44: 2.44 | E44: Square
A45: 24709 | B45: 2018-01-09 | C45: 8.66 | D45: 0.66
A46: 24710 | B46: 2018-01-09 | C46: 63 | D46: 4.8
A47: 24711 | B47: 2018-01-09 | C47: 48.71 | D47: 3.71 | E47: Due
A48: 24712 | B48: 2018-01-09 | C48: 5.41 | D48: 0.41
A49: 24713 | B49: 2018-01-09 | C49: 10.77 | D49: 0.82 | E49: Square
A50: 24714 | B50: 2018-01-09 | C50: 89.63 | D50: 6.83 | E50: Square | F50: 0 | G50: =+F50*0.97831 -> 0 | H50: $1231.33 / $1037.39 Square
A51: 24715 | B51: 2018-01-10 | C51: 101.76 | D51: 7.76 | E51: Square
A52: 24716 | B52: 2018-01-10 | C52: 248.98 | D52: 18.98 | E52: Visa
A53: 24717 | B53: 2018-01-10 | C53: 38.97 | D53: 2.97 | E53: Square
A54: 24718 | B54: 2018-01-10 | C54: 108.25 | D54: 8.25 | E54: Due
A55: 24719 | B55: 2018-01-10 | C55: 134.23 | D55: 10.23 | E55: Visa
A56: 24720 | B56: 2018-01-10 | C56: 8.66 | D56: 0.66 | E56: Square
A57: 24721 | B57: 2018-01-10 | C57: 272.31 | D57: 20.76 | E57: Square (from $580 on 8th) | F57: =+C55+C52 -> 383.21 | G57: 375.55 | H57: $149.39 / $125.85 Square
A58: 24722 | B58: 2018-01-11 | C58: 29.23 | D58: 2.23
A59: 24723 | B59: 2018-01-11 | C59: 80.11 | D59: 6.11 | E59: Visa
A60: 24724 | B60: 2018-01-11 | C60: 28.69 | D60: 2.19 | E60: Visa
A61: 24725 | B61: 2018-01-11 | C61: 57.37 | D61: 4.37 | E61: Visa
A62: 24726 | B62: 2018-01-11 | C62: 274.41 | D62: 20.91 | E62: Square
A63: 24727 | B63: 2018-01-11 | C63: 262.09 | D63: 15.59 | E63: Visa, Warranty
A64: 24728 | B64: 2018-01-11 | C64: 6.5 | D64: 0.5 | E64: Due
A65: 24729 | B65: 2018-01-11 | C65: 145.06 | D65: 11.06
A66: 24730 | B66: 2018-01-11 | C66: 56 | E66: Due, Carlos G - resale MX | F66: =+C59+C60+98.64+C61+C63 -> 526.9 | G66: 513.62 | H66: $200.00 / $168.50 Square
A67: 24731 | B67: 2018-01-12 | C67: 26.1 | E67: Due, Border Patrol
A68: 24732 | B68: 2018-01-12 | C68: 105.54 | D68: 8.04 | E68: Visa
A69: 24733 | B69: 2018-01-12 | C69: 8 | D69: 0.61
A70: 24734 | B70: 2018-01-12 | C70: 56.29 | D70: 4.29 | E70: Visa
A71: 24735 | B71: 2018-01-12 | C71: 12 | D71: 0.91 | E71: MC
A72: 24736 | B72: 2018-01-12 | C72: 46 | D72: 1.91 | E72: MC
A73: 24737 | B73: 2018-01-12 | C73: 204.59 | D73: 15.59 | E73: MC
A74: 24738 | B74: 2018-01-12 | C74: 85 | D74: 6.48
A75: 24739 | B75: 2018-01-12 | C75: 35 | E75: Continental Power - resale
A76: 24740 | B76: 2018-01-12 | C76: 32 | E76: Due, Revolution - Resale
A77: 24741 | B77: 2018-01-12 | C77: 162.38 | D77: 12.38 | E77: MC
A78: 24742 | B78: 2018-01-12 | C78: 120.8 | E78: Due, J.Rangel - Resale
A79: 24743 | B79: 2018-01-12 | C79: 392.57 | D79: 29.92 | E79: Visa | F79: =+C68+C70+C71+C72+C73+C77 -> 586.8 | G79: =+F79*0.97831 -> 574.072308
A80: 24744 | B80: 2018-01-13 | C80: 5.41 | D80: 0.41
A81: 24745 | B81: 2018-01-13 | C81: 8.61 | D81: 0.66 | E81: Square
A82: 24746 | B82: 2018-01-13 | C82: 424.34 | D82: 32.34 | E82: Square
A83: 24747 | B83: 2018-01-13 | C83: 25 | D83: 1.91 | E83: Square
A84: 24748 | B84: 2018-01-13 | C84: 159 | D84: 12.12
A85: 24749 | B85: 2018-01-13 | C85: 385 | D85: 29.34 | E85: Square
A86: 24750 | B86: 2018-01-13 | C86: 17.32 | D86: 1.32 | E86: Visa
A87: 24751 | B87: 2018-01-13 | C87: 225.16 | D87: 17.16 | E87: Visa
A88: 24752 | B88: 2018-01-13 | C88: 24.9 | D88: 1.9 | F88: =438.77+C86+C87 -> 681.25 | G88: =+F88*0.97831 -> 666.4736875 | H88: $842.95 / $710.18 Square
A89: 24753 | B89: 2018-01-15 | C89: 344.24 | D89: 26.24 | E89: MC
A90: 24754 | B90: 2018-01-15 | C90: 2000 | E90: Deposit Only
A91: 24755 | B91: 2018-01-15 | C91: 25 | D91: 1.91 | E91: MC
A92: 24756 | B92: 2018-01-15 | C92: 218.17 | D92: 16.8 | E92: PayPal, Sjon Clinton | F92: =+C89+C91 -> 369.24 | G92: =+F92*0.97831 -> 361.2311844
A93: 24757 | B93: 2018-01-16 | C93: 247.35 | D93: 18.85 | E93: Due
A94: 24758 | B94: 2018-01-16 | C94: 243 | D94: 18.52 | E94: Due
A95: 24759 | B95: 2018-01-16 | C95: 32 | E95: Visa
A96: 24760 | B96: 2018-01-16 | C96: 596 | E96: Due, Carlos G - resale MX
A97: 24761 | B97: 2018-01-16 | C97: 47.63 | D97: 3.63 | E97: Check
A98: 24762 | B98: 2018-01-16 | C98: 93 | E98: Due, Brant | F98: =+C95 -> 32 | G98: =+F98*0.97831 -> 31.30592
A99: 24763 | B99: 2018-01-17 | C99: 46 | E99: Due, Carlos G - resale MX | F99: 0 | G99: =+F99*0.97831 -> 0
A100: 24764 | B100: 2018-01-18 | C100: 18.94 | D100: 1.44 | E100: MC
A101: 24765 | B101: 2018-01-18 | C101: 10.83 | D101: 0.83
A102: 24766 | B102: 2018-01-18 | C102: 16.24 | D102: 1.24
A103: 24767 | B103: 2018-01-18 | C103: 442.74 | D103: 33.74 | E103: Due | F103: =+C100 -> 18.94 | G103: =+F103*0.97831 -> 18.5291914
A104: 24768 | B104: 2018-01-19 | C104: 9.69 | D104: 0.74 | E104: MC
A105: 24769 | B105: 2018-01-19 | C105: 189.38 | D105: 14.43 | E105: Square
A106: 24770 | B106: 2018-01-19 | C106: 21.6 | D106: 1.65 | E106: MC
A107: 24771 | B107: 2018-01-19 | C107: 0 | D107: 0 | E107: Ref Only, J.Rangel | F107: =+C104+39.38+C106 -> 70.67 | G107: =+F107*0.97831 -> 69.1371677
A108: 24772 | B108: 2018-01-20 | C108: 52.99 | D108: 4.04 | E108: Visa
A109: 24773 | B109: 2018-01-20 | C109: 14.07 | D109: 1.07 | E109: Visa
A110: 24774 | B110: 2018-01-20 | C110: 70.36 | D110: 5.36 | E110: Visa
A111: 24775 | B111: 2018-01-20 | C111: 34.59 | D111: 2.64
A112: 24776 | B112: 2018-01-20 | C112: 55.3 | D112: 3.3 | E112: Due
A113: 24777 | B113: 2018-01-20 | C113: 113.61 | D113: 8.66 | E113: $63.61 due
A114: 24778 | B114: 2018-01-20 | C114: 59.54 | D114: 4.54 | E114: Visa
A115: 24779 | B115: 2018-01-20 | C115: 394.03 | D115: 30.03 | E115: Due, GSX-R750
A116: 24780 | B116: 2018-01-21 | C116: 13.53 | D116: 1.03 | F116: =+C108+74.41+C109+300+C110+C114 -> 571.37 | G116: =+F116*0.97831 -> 558.9769847
A117: 24781 | B117: 2018-01-22 | C117: 43.52 | D117: 3.32 | E117: Visa
A118: 24782 | B118: 2018-01-22 | C118: 10 | D118: 0.76
A119: 24783 | B119: 2018-01-22 | C119: 69 | D119: 5.26
A120: 24784 | B120: 2018-01-22 | C120: 11 | D120: 0.84 | F120: =+C117-0.01 -> 43.51 | G120: =+F120*0.97831 -> 42.5662681
A121: 24785 | B121: 2018-01-23 | C121: 89 | E121: Due, Carlos G - resale MX
A122: 24786 | B122: 2018-01-23 | C122: 14 | E122: Due, Revolution - Resale
A123: 24787 | B123: 2018-01-23 | C123: 29.96 | E123: Due, Border Patrol | F123: 0 | G123: =+F123*0.97831 -> 0
A124: 24788 | B124: 2018-01-24 | C124: 101.4 | E124: Due, Carlos G - resale MX
A125: 24789 | B125: 2018-01-24 | C125: 20 | D125: 1.52
A126: 24790 | B126: 2018-01-24 | C126: 21.65 | D126: 1.65
A127: 24791 | B127: 2018-01-24 | C127: 96.56 | D127: 7.36 | E127: Discover
A128: 24792 | B128: 2018-01-24 | C128: 21.65 | D128: 1.65 | E128: Visa
A129: 24793 | B129: 2018-01-24 | C129: 86.2 | D129: 6.57
A130: 24794 | B130: 2018-01-24 | E130: Due, Carlos G - resale MX
A131: 24795 | B131: 2018-01-24 | C131: 50 | E131: Due, Revolution - Resale | F131: =+C127+C128+C123+C67 -> 174.27 | G131: =+F131*0.97831 -> 170.4900837
A132: 24796 | B132: 2018-01-25 | C132: 3 | E132: Due, Revolution - Resale
A133: 24797 | B133: 2018-01-25 | C133: 48 | E133: Due, Revolution - Resale
A134: 24798 | B134: 2018-01-25 | C134: 96.34 | D134: 7.34
A135: 24799 | B135: 2018-01-25 | C135: 48.71 | D135: 3.71
A136: 24800 | B136: 2018-01-25 | C136: 138 | E136: Due, Carlos G - resale MX
A137: 24801 | B137: 2018-01-25 | C137: 21.5 | E137: Due, Carlos G - resale MX
A138: 24802 | B138: 2018-01-25 | C138: 43.3 | D138: 3.3 | E138: AmExp
A139: 24803 | B139: 2018-01-25 | C139: 20.51 | D139: 1.56
A140: 24804 | B140: 2018-01-25 | C140: 115.97 | D140: 8.84
A141: 24805 | B141: 2018-01-25 | C141: 266.84 | D141: 20.34 | E141: Visa, $136.84 due
A142: 24806 | B142: 2018-01-25 | C142: 173.2 | D142: 13.2 | E142: AmExp
A143: 24807 | B143: 2018-01-25 | C143: 75 | E143: Due | F143: =+C138+130+C142 -> 346.5 | G143: =+F143*0.97831 -> 338.984415
A144: 24808 | B144: 2018-01-26 | C144: 174.82 | D144: 13.32 | E144: MC
A145: 24809 | B145: 2018-01-26 | C145: 37.89 | D145: 2.89 | E145: Visa
A146: 24810 | B146: 2018-01-26 | C146: 165.62 | D146: 12.62 | E146: Visa
A147: 24811 | B147: 2018-01-26 | C147: 107.17 | D147: 8.17 | E147: Visa
A148: 24812 | B148: 2018-01-26 | C148: 43.3 | D148: 3.3
A149: 24813 | B149: 2018-01-26 | C149: 114.75 | D149: 8.75
A150: 24814 | B150: 2018-01-26 | C150: 590 | D150: 44.97 | E150: $290 Due
A151: 24815 | B151: 2018-01-26 | C151: 80 | D151: 6.1 | F151: =+C144+C145+C146+C147 -> 485.5 | G151: =+F151*0.97831 -> 474.969505
A152: 24816 | B152: 2018-01-27 | C152: 50.88 | D152: 3.88
A153: 24817 | B153: 2018-01-27 | C153: 38.97 | D153: 2.97 | E153: Due, Dirt Bike Whl
A154: 24818 | B154: 2018-01-27 | C154: 535.84 | D154: 40.84 | E154: Square
A155: 24819 | B155: 2018-01-27 | C155: 15.16 | D155: 1.16
A156: 24820 | B156: 2018-01-27 | C156: 37.89 | D156: 2.89 | E156: Visa
A157: 24821 | B157: 2018-01-27 | C157: 31 | E157: Due, J.Rangel - Resale
A158: 24822 | B158: 2018-01-27 | C158: 25 | D158: 1.91
A159: 24823 | B159: 2018-01-27 | C159: 12.5 | D159: 0.95 | E159: Square
A160: 24824 | B160: 2018-01-27 | C160: 10.83 | D160: 0.83
A161: 24825 | B161: 2018-01-27 | C161: 208.16 | D161: 15.86 | F161: =+C156+43.61+51.08 -> 132.58 | G161: =+F161*0.97831 -> 129.7043398 | H161: $548.34 Square
A162: 24826 | B162: 2018-01-29 | C162: 21.6 | D162: 1.65 | E162: AmExp
A163: 24827 | B163: 2018-01-29 | C163: 264.67 | D163: 20.17 | E163: Check
A164: 24828 | B164: 2018-01-29 | C164: 85.52 | D164: 6.52 | E164: Visa
A165: 24829 | B165: 2018-01-29 | C165: 150.47 | D165: 11.47 | E165: Visa
A166: 24830 | B166: 2018-01-29 | C166: 96.34 | D166: 7.34 | E166: MC
A167: 24831 | B167: 2018-01-29 | C167: 40.05 | D167: 3.05 | E167: Visa
A168: 24832 | B168: 2018-01-29 | C168: 7.5 | D168: 0.57
A169: 24833 | B169: 2018-01-29 | C169: 14.02 | D169: 1.07 | E169: Visa
A170: 24834 | B170: 2018-01-29 | C170: 318 | E170: Due, Carlos G - resale MX
A171: 24835 | B171: 2018-01-29 | E171: Due, Carlos G - resale MX
A172: 24836 | B172: 2018-01-29 | C172: 928 | E172: Due
A173: 24837 | B173: 2018-01-29 | C173: 29.96 | E173: Border Patrol - No tax, Visa | F173: =+C162+C164+C165+C166+C167+C169 -> 408 | G173: =+F173*0.97831 -> 399.15048
A174: 24838 | B174: 2018-01-30 | C174: 40.59 | D174: 3.09
A175: 24839 | B175: 2018-01-30 | C175: 190.52 | D175: 14.52 | E175: $90.52 Due
A176: 24840 | B176: 2018-01-30 | C176: 161.83 | D176: 12.33
A177: 24841 | B177: 2018-01-30 | C177: 22.65 | E177: Due, J.Rangel - Resale
A178: 24842 | B178: 2018-01-30 | C178: 225.05 | D178: 17.15 | E178: Due | F178: 100 | G178: =+F178*0.97831 -> 97.831
A179: 24843 | B179: 2018-01-31 | C179: 16.18 | D179: 1.23
A180: 24844 | B180: 2018-01-31 | C180: 38 | E180: Due, J.Rangel - Resale | F180: =+C178+C173 -> 255.01 | G180: =+F180*0.97831 -> 249.4788331
I183: =H1-WEEKDAY(H1,3)-7 -> 2018-07-09 | J183: =SUMIF(INDIRECT(TEXT(I183,"'mmm-yy'")&"!B3:B400"),I183,INDIRECT(TEXT(I183,"'mmm-yy'")&"!C3:C400")) -> 1358.07
I184: =I183+1 -> 2018-07-10 | J184: 505
I185: =I184+1 -> 2018-07-11 | J185: 833.3
I186: 2018-07-12 | J186: 831.11
I187: 2018-07-13 | J187: 882.05
I188: 2018-07-14 | J188: 3060.02
I189: 2018-07-15 | J189: 0 | K189: =SUM(J183:J189) -> 7469.55
I190: 2018-07-16 | J190: 1060.13
I191: 2018-07-17 | J191: 793.53
I192: 2018-07-18 | J192: 681.78
I193: 2018-07-19 | J193: 46.91
I194: 2018-07-20 | J194: 1725.16
I195: 2018-07-21 | J195: 159
I196: 2018-07-22 | J196: 0 | K196: =SUM(J190:J196) -> 4466.51

Sheet Dec-17
A1: Invoice | C1: =SUM(C3:C334) -> 18646.32337 | D1: =SUM(D3:D333) -> 1346.113375 | F1: =SUM(F3:F976) -> 8308.238125 | G1: =SUM(G3:G976) -> 8143.436586 | H1: =TODAY() -> 2018-07-20
A2: Number | B2: Date | C2: Amount | D2: Tax | E2: Terms
A3: 24516 | B3: 2017-12-01 | C3: 796.18 | D3: 60.68 | E3: MC, $46.18 due (12/15)
A4: 24517 | B4: 2017-12-01 | C4: 88.77 | D4: 6.77
A5: 24518 | B5: 2017-12-01 | C5: 156.42 | D5: 11.92
A6: 24519 | B6: 2017-12-01 | C6: 260 | D6: 19.81 | E6: Visa
A7: 24520 | B7: 2017-12-01 | C7: 143.97 | D7: 10.97 | E7: Square
A8: 24521 | B8: 2017-12-01 | C8: 63.87 | D8: 4.87 | E8: Square
A9: 24522 | B9: 2017-12-01 | C9: 129.9 | D9: 9.9 | E9: Square
A10: 24523 | B10: 2017-12-01 | C10: 58.35 | D10: 4.45 | E10: Square
A11: 24524 | B11: 2017-12-01 | C11: 35 | E11: Continental - resale | F11: =250+C6 -> 510 | G11: 501.29 | H11: $252.12 / $212.41 Square
A12: 24525 | B12: 2017-12-02 | C12: 131.52 | D12: 10.02 | E12: Due
A13: 24526 | B13: 2017-12-02 | C13: 10 | D13: 0.76
A14: 24527 | B14: 2017-12-02 | C14: 64.95 | D14: 4.95 | E14: Visa
A15: 24528 | B15: 2017-12-02 | C15: 21.6 | D15: 1.65
A16: 24529 | B16: 2017-12-02 | C16: 24 | E16: Visa
A17: 24530 | B17: 2017-12-02 | C17: 299.85 | D17: 22.85 | E17: MC
A18: 24531 | B18: 2017-12-02 | C18: 15.75 | E18: Due | F18: =+C14+C16+C17 -> 388.8 | G18: 381.77 | H18: $143.97 / $121.29 Square
A19: 24532 | B19: 2017-12-04 | C19: 233.28 | D19: 17.78 | E19: Visa
A20: 24533 | B20: 2017-12-04 | C20: 259.69 | D20: 19.79 | E20: Square
A21: 24534 | B21: 2017-12-04 | C21: 122.32 | D21: 9.32 | E21: MC
A22: 24535 | B22: 2017-12-04 | C22: 20 | D22: 1.52
A23: 24536 | B23: 2017-12-04 | C23: 16 | D23: 1.22
A24: 24537 | B24: 2017-12-04 | C24: 245.998125 | D24: 18.748125 | E24: Visa | F24: =+C19+C21+C24 -> 601.598125 | G24: =+F24*0.97831 -> 588.5494617 | H24: $483.77 / $407.58 Square
A25: 24538 | B25: 2017-12-05 | C25: 112.58 | D25: 8.58 | E25: Due, Oscar
A26: 24539 | B26: 2017-12-05 | C26: 40 | D26: 3.04
A27: 24540 | B27: 2017-12-05 | C27: 67.12 | D27: 5.12
A28: 24541 | B28: 2017-12-05 | C28: 9.69 | D28: 0.74
A29: 24542 | B29: 2017-12-05 | C29: 14 | D29: 1.07
A30: 24543 | B30: 2017-12-05 | C30: 40 | D30: 3.05
A31: 24544 | B31: 2017-12-05 | C31: 86.55 | D31: 6.6 | E31: Visa
A32: 24545 | B32: 2017-12-05 | C32: 37.89 | D32: 2.89 | E32: Due | F32: =217.17+C31 -> 303.72 | G32: =+F32*0.97831 -> 297.1323132 | H32: $243.00 / $204.73 Square
A33: 24546 | B33: 2017-12-06 | C33: 56.29 | D33: 4.29 | E33: Visa
A34: 24547 | B34: 2017-12-06 | C34: 25.8 | E34: Visa, Border Patrol
A35: 24548 | B35: 2017-12-06 | C35: 14 | D35: 1.07
A36: 24549 | B36: 2017-12-06 | C36: 450 | D36: 34.3 | E36: Due
A37: 24550 | B37: 2017-12-06 | C37: 10 | D37: 0.76 | E37: Visa
A38: 24551 | B38: 2017-12-06 | C38: 288 | E38: Due, Revolution - resale
A39: 24552 | B39: 2017-12-06 | C39: 40.5 | E39: Due, Revolution - resale
A40: 24553 | B40: 2017-12-06 | C40: 100 | D40: 7.62 | E40: Visa
A41: 24554 | B41: 2017-12-06 | C41: 5 | D41: 0.38
A42: 24555 | B42: 2017-12-06 | C42: 60 | E42: Due, Carlos G - MX Resale | F42: =+C33+C34+C37+C40 -> 192.09 | G42: =+F42*0.97831 -> 187.9235679
A43: 24556 | B43: 2017-12-07 | C43: 8.66 | D43: 0.66 | E43: Visa | F43: =+C32+C43 -> 46.55 | G43: =+F43*0.97831 -> 45.5403305
A44: 24557 | B44: 2017-12-08 | C44: 48.6 | D44: 3.7 | E44: Square
A45: 24558 | B45: 2017-12-08 | C45: -17.32 | D45: -1.32 | E45: Due
A46: 24559 | B46: 2017-12-08 | C46: 172.12 | D46: 13.12 | E46: Visa | F46: 90 | G46: =+F46*0.97831 -> 88.0479 | H46: $48.60 Square
A47: 24560 | B47: 2017-12-09 | C47: 51.96 | D47: 3.96
A48: 24561 | B48: 2017-12-09 | C48: 29.23 | D48: 2.23 | E48: Visa
A49: 24562 | B49: 2017-12-09 | C49: 43.3 | D49: 3.3 | E49: Visa
A50: 24563 | B50: 2017-12-09 | C50: 16.24 | D50: 1.24 | E50: Visa
A51: 24564 | B51: 2017-12-09 | C51: 281.45 | D51: 21.45 | E51: MC
A52: 24565 | B52: 2017-12-09 | E52: Refunded
A53: 24566 | B53: 2017-12-09 | C53: 96.34 | D53: 7.34 | E53: Square
A54: 24567 | B54: 2017-12-09 | C54: 146.68 | D54: 11.18 | E54: Visa | F54: =+C48+C49+139.7+C54 -> 358.91 | G54: =+F54*0.97831 -> 351.1252421 | H54: $96.34 Square
A55: 24568 | B55: 2017-12-11 | C55: 164.54 | D55: 12.54 | E55: $77.12 due
A56: 24569 | B56: 2017-12-11 | C56: 10 | D56: 0.76
A57: 24570 | B57: 2017-12-11 | C57: 16.24 | D57: 1.24 | E57: Visa
A58: 24571 | B58: 2017-12-11 | C58: 246.81 | D58: 18.81 | E58: $160. Square | F58: =388.13+C57 -> 404.37 | G58: =+F58*0.97831 -> 395.5992147 | H58: $160.00 Square
A59: 24572 | B59: 2017-12-12 | C59: 137.48 | D59: 10.48 | E59: Visa
A60: 24573 | B60: 2017-12-12 | C60: 149 | E60: Due, Revolution - resale
A61: 24574 | B61: 2017-12-12 | C61: 8.66 | D61: 0.66 | E61: Visa
A62: 24575 | B62: 2017-12-12 | C62: 64.9 | D62: 4.95 | E62: Square | F62: =+C59+C61 -> 146.14 | G62: =+F62*0.97831 -> 142.9702234 | H62: $64.90 Square
A63: 24576 | B63: 2017-12-13 | C63: 232.11 | D63: 17.69 | E63: Visa
A64: 24577 | B64: 2017-12-13 | C64: 31.75 | E64: Due, Revolution - resale
A65: 24578 | B65: 2017-12-13 | C65: 5 | D65: 0.38 | E65: Visa
A66: 24579 | B66: 2017-12-13 | C66: 542.33 | D66: 41.33 | E66: Visa
A67: 24580 | B67: 2017-12-13 | C67: 531.51 | D67: 40.51 | E67: $231.51 Square
A68: 24581 | B68: 2017-12-13 | C68: 9.96 | D68: 0.76 | E68: AmExp
A69: 24582 | B69: 2017-12-13 | C69: 20 | E69: McAllen MS - Resale
A70: 24583 | B70: 2017-12-13 | C70: 51.91 | D70: 3.96 | E70: Visa | F70: =+C63+C65+153.85+C66+C68+C70 -> 995.16 | G70: =+F70*0.97831 -> 973.5749796
A71: 24584 | B71: 2017-12-14 | C71: 480.09 | D71: 36.59 | E71: Due (Total $752.60)
A72: 24585 | B72: 2017-12-14 | C72: 472.51 | D72: 36.01 | E72: $200 Check (see 24584)
A73: 24586 | B73: 2017-12-14 | C73: 428 | D73: 32.62 | E73: Due, Honda Shadow
A74: 24587 | B74: 2017-12-14 | C74: 29.23 | D74: 2.23 | E74: Visa
A75: 24588 | B75: 2017-12-14 | C75: 21.65 | D75: 1.65
A76: 24589 | B76: 2017-12-14 | C76: 74.69 | D76: 5.69 | E76: Due (Kyle, I owe him)
A77: 24590 | B77: 2017-12-14 | C77: 257.09 | D77: 19.59 | E77: Visa
A78: 24591 | B78: 2017-12-14 | C78: 60.46 | D78: 4.61 | E78: Visa
A79: 24592 | B79: 2017-12-14 | C79: 60 | E79: MC, Xtreem - resale
A80: 24593 | B80: 2017-12-14 | C80: 96.34 | D80: 7.34 | E80: Visa | F80: =82.12+C74+C77+C78+500+C80 -> 1025.24 | G80: =+F80*0.97831 -> 1003.002544
A81: 24594 | B81: 2017-12-15 | C81: 238.15 | D81: 18.15 | E81: Due
A82: 24595 | B82: 2017-12-15 | C82: 56.29 | D82: 4.29 | E82: MC
A83: 24596 | B83: 2017-12-15 | C83: 4.00525 | D83: 0.30525
A84: 24597 | B84: 2017-12-15 | C84: 386.45 | D84: 29.45 | E84: Visa, $166.45 due | F84: =+C82+220 -> 276.29 | G84: 274.22
A85: 24598 | B85: 2017-12-16 | C85: 415.68 | D85: 31.68
A86: 24599 | B86: 2017-12-16 | C86: 35.67 | D86: 2.72
A87: 24600 | B87: 2017-12-16 | C87: 73 | D87: 5.56 | E87: MC | F87: =+C87+C79 -> 133 | G87: 129.81 | H87: $231.51 / $195.04 Square
A88: 24601 | B88: 2017-12-18 | C88: 5.41 | D88: 0.41
A89: 24602 | B89: 2017-12-18 | C89: 96.34 | D89: 7.34 | E89: Visa
A90: 24603 | B90: 2017-12-18 | C90: 234.9 | D90: 17.9
A91: 24604 | B91: 2017-12-18 | C91: 27.06 | D91: 2.06 | E91: Visa
A92: 24605 | B92: 2017-12-18 | C92: 22.57 | D92: 1.72 | E92: Visa
A93: 24606 | B93: 2017-12-18 | C93: 212.71 | D93: 16.21 | E93: Visa
A94: 24607 | B94: 2017-12-18 | C94: 11.91 | D94: 0.91
A95: 24608 | B95: 2017-12-18 | C95: 265.1 | D95: 20.2 | E95: Visa
A96: 24609 | B96: 2017-12-18 | C96: 16.24 | D96: 1.24
A97: 24610 | B97: 2017-12-18 | C97: 205 | E97: Due, J.Rangel - resale | F97: =+C89+C91+C92+C93+200 -> 558.68 | G97: 551.69
A98: 24611 | B98: 2017-12-19 | C98: 24.88 | D98: 1.9 | E98: Visa
A99: 24612 | B99: 2017-12-19 | C99: 276.47 | D99: 21.07 | E99: Visa
A100: 24613 | B100: 2017-12-19 | C100: 31.39 | D100: 2.39 | E100: Discover
A101: 24614 | B101: 2017-12-19 | C101: 44.38 | D101: 3.38
A102: 24615 | B102: 2017-12-19 | C102: 32.48 | D102: 2.48
A103: 24616 | B103: 2017-12-19 | C103: 25.8 | E103: Due, Border Patrol
A104: 24617 | B104: 2017-12-19 | C104: 530 | D104: 40.39
A105: 24618 | B105: 2017-12-19 | C105: 156.96 | D105: 11.96 | E105: Due
A106: 24619 | B106: 2017-12-19 | C106: 8.85 | E106: J.Rangel - resale | F106: =+C98+C100+135 -> 191.27 | G106: 188.98
A107: 24620 | B107: 2017-12-20 | C107: 23.82 | D107: 1.82 | E107: Visa
A108: 24621 | B108: 2017-12-20 | C108: 92 | E108: Due, Carlos G - MX Resale
A109: 24622 | B109: 2017-12-20 | C109: 21.65 | D109: 1.65 | E109: Visa
A110: 24623 | B110: 2017-12-20 | C110: 335.58 | D110: 25.58 | E110: Visa, $135.58 (Est) Due
A111: 24624 | B111: 2017-12-20 | C111: 25 | D111: 1.9 | E111: Visa
A112: 24625 | B112: 2017-12-20 | C112: 936.36 | D112: 71.36 | E112: Trade ($200 or $250), Chevo
A113: 24626 | B113: 2017-12-20 | C113: 440 | D113: 33.53 | E113: Est $280 due
A114: 24627 | B114: 2017-12-20 | C114: 252.76 | D114: 19.26 | E114: Visa
A115: 24628 | B115: 2017-12-20 | C115: 27.06 | D115: 2.06 | F115: =+C107+C103+C109+200+C111+120 -> 416.27 | G115: 407.18
A116: 24629 | B116: 2017-12-21 | C116: 51.36 | E116: Visa, ESG Customs - resale
A117: 24630 | B117: 2017-12-21 | C117: 20.55 | D117: 1.57 | E117: Visa
A118: 24631 | B118: 2017-12-21 | C118: 42.16 | D118: 3.21
A119: 24632 | B119: 2017-12-21 | C119: 95 | D119: 7.24 | E119: Due
A120: 24633 | B120: 2017-12-21 | C120: 152 | D120: 11.58 | E120: $97 Due | F120: =+C116+C117+C99 -> 348.38 | G120: 341.93
A121: 24634 | B121: 2017-12-22 | C121: 13.86 | D121: 1.06
A122: 24635 | B122: 2017-12-22 | C122: 16.18 | D122: 1.23
A123: 24636 | B123: 2017-12-22 | C123: 123 | D123: 9.37
A124: 24639 | B124: 2017-12-22 | C124: 269.54 | D124: 20.54
A125: 24640 | B125: 2017-12-22 | C125: 72.47 | D125: 5.52 | E125: Square | F125: 434.69 | G125: =+F125*0.97831 -> 425.2615739 | H125: $269.54 / $227.09 Square
A126: 24641 | B126: 2017-12-23 | C126: 35 | D126: 2.67 | E126: Due | F126: 0 | G126: =+F126*0.97831 -> 0
A127: 24642 | B127: 2017-12-26 | C127: 200 | D127: 15.24
A128: 24643 | B128: 2017-12-26 | C128: 240 | D128: 18.29 | E128: Due
A129: 24644 | B129: 2017-12-26 | C129: 35.72 | D129: 2.72 | E129: MC
A130: 24645 | B130: 2017-12-26 | C130: 25.8 | E130: Due, Border Patrol
A131: 24646 | B131: 2017-12-26 | C131: 29.4 | E131: Due, Border Patrol | F131: =+C129 -> 35.72 | G131: =+F131*0.97831 -> 34.9452332
A132: 24647 | B132: 2017-12-27 | C132: 0 | E132: Save
A133: 24648 | B133: 2017-12-27 | C133: 4.67 | E133: Due, ESG Customs - resale | F133: =+C130+C131+190 -> 245.2 | G133: =+F133*0.97831 -> 239.881612 | H133: ($180 Big Jon)
A134: 24649 | B134: 2017-12-28 | C134: 5.41 | D134: 0.41
A135: 24650 | B135: 2017-12-28 | C135: 26.93 | D135: 21.45 | E135: Rosie, Ref only
A136: 24651 | B136: 2017-12-28 | C136: 16.24 | D136: 1.24 | E136: Visa
A137: 24652 | B137: 2017-12-28 | C137: 23.82 | D137: 1.82
A138: 24653 | B138: 2017-12-28 | C138: 48.71 | D138: 3.71 | E138: Discover
A139: 24654 | B139: 2017-12-28 | C139: 42 | D139: 3.2 | E139: Visa
A140: 24655 | B140: 2017-12-28 | C140: 508.19 | D140: 37.19
A141: 24656 | B141: 2017-12-28 | C141: 76.75 | D141: 5.85 | E141: Square | F141: =+C136+C138+C139 -> 106.95 | G141: =+F141*0.97831 -> 104.6302545
A142: 24657 | B142: 2017-12-29 | C142: 117.99 | D142: 8.99 | E142: Square
A143: 24658 | B143: 2017-12-29 | C143: 141.27 | D143: 10.77 | E143: Due, Morphous
A144: 24659 | B144: 2017-12-29 | C144: 173.2 | D144: 13.2 | E144: $13.20 Square | F144: 0 | G144: =+F144*0.97831 -> 0 | H144: $242.94 Square
A145: 24660 | B145: 2017-12-30 | C145: 39.51 | D145: 3.01
A146: 24661 | B146: 2017-12-30 | C146: 160.21 | D146: 12.21 | E146: Square
A147: 24662 | B147: 2017-12-30 | C147: 46.44 | D147: 3.54
A148: 24663 | B148: 2017-12-30 | C148: 27.06 | D148: 2.06
A149: 24664 | B149: 2017-12-30 | C149: 306.45 | D149: 21.45 | E149: Visa
A150: 24665 | B150: 2017-12-30 | C150: 124.49 | D150: 9.49 | E150: $60 Visa dep
A151: 24666 | B151: 2017-12-30 | C151: 8.66 | D151: 0.66 | F151: =60+439.21 -> 499.21 | G151: =+F151*0.97831 -> 488.3821351 | H151: $160.21 Square
I153: =H1-WEEKDAY(H1,3)-7 -> 2018-07-09 | J153: =SUMIF(INDIRECT(TEXT(I153,"'mmm-yy'")&"!B3:B400"),I153,INDIRECT(TEXT(I153,"'mmm-yy'")&"!C3:C400")) -> 1358.07
I154: =I153+1 -> 2018-07-10 | J154: 505
I155: 2018-07-11 | J155: 833.3
I156: 2018-07-12 | J156: 831.11
I157: 2018-07-13 | J157: 882.05
I158: 2018-07-14 | J158: 3060.02
I159: 2018-07-15 | J159: 0 | K159: =SUM(J136:J159) -> 7469.55
I160: 2018-07-16 | J160: 1060.13
I161: 2018-07-17 | J161: 793.53
I162: 2018-07-18 | J162: 681.78
I163: 2018-07-19 | J163: 46.91
I164: 2018-07-20 | J164: 1725.16
I165: 2018-07-21 | J165: 159
I166: 2018-07-22 | J166: 0 | K166: =SUM(J160:J166) -> 4466.51

Sheet Nov-17
A1: Invoice | C1: =SUM(C3:C382) -> 21216.67 | D1: =SUM(D3:D382) -> 1405.47 | F1: =SUM(F3:F846) -> 8297.27 | G1: =SUM(G3:G846) -> 8119.888616 | H1: =TODAY() -> 2018-07-20
A2: Number | B2: Date | C2: Amount | D2: Tax | E2: Terms
A3: 24332 | B3: 2017-11-01 | C3: 27.01 | D3: 2.06 | E3: Visa
A4: 24333 | B4: 2017-11-01 | C4: 59.54 | D4: 4.54 | E4: Visa
A5: 24334 | B5: 2017-11-01 | C5: -3.25 | D5: -0.25
A6: 24335 | B6: 2017-11-01 | C6: 66.9 | E6: Amex
A7: 24336 | B7: 2017-11-01 | C7: 91.96 | D7: 7.01 | E7: Visa
A8: 24337 | B8: 2017-11-01 | C8: 24.79 | D8: 1.89
A9: 24338 | B9: 2017-11-01 | C9: 53.8 | E9: Visa, Border Patrol
A10: 24339 | B10: 2017-11-01 | C10: 47.63 | D10: 3.63
A11: 24340 | B11: 2017-11-01 | C11: 213.79 | D11: 16.29
A12: 24341 | B12: 2017-11-01 | C12: 28.6 | E12: Visa, ESG Customs - resale
A13: 24342 | B13: 2017-11-01 | C13: 62.24 | D13: 4.74 | E13: Visa
A14: 24343 | B14: 2017-11-01 | C14: 322.04 | D14: 24.54 | E14: Due
A15: 24344 | B15: 2017-11-04 | C15: 197.02 | D15: 15.02
A16: 24345 | B16: 2017-11-05 | C16: 11 | D16: 0.84 | F16: =+C3+C4+C6+C7+C9+C12+C13 -> 390.05 | G16: =+F16*0.97831 -> 381.5898155
A17: 24346 | B17: 2017-11-06 | C17: 357.23 | D17: 27.23 | E17: MC
A18: 24347 | B18: 2017-11-06 | C18: 32.48 | D18: 2.48 | E18: Visa
A19: 24348 | B19: 2017-11-06 | C19: 323.67 | D19: 24.67 | E19: Due
A20: 24349 | B20: 2017-11-06 | C20: 10.5 | D20: 0.8 | E20: Visa
A21: 24350 | B21: 2017-11-06 | C21: 12.5 | D21: 0.95 | E21: Visa
A22: 24351 | B22: 2017-11-06 | C22: 10.77 | D22: 0.82
A23: 24352 | B23: 2017-11-06 | C23: 128.5 | E23: Due, Carlos G - MX
A24: 24353 | B24: 2017-11-06 | C24: 40 | D24: 3.05 | E24: Square
A25: 24354 | B25: 2017-11-06 | C25: 38.97 | D25: 2.97
A26: 24355 | B26: 2017-11-06 | C26: 150 | E26: Visa, Deposit only
A27: 24356 | B27: 2017-11-06 | C27: 244 | E27: Due, Carlos G - MX | F27: =+C17+C18+C20+C21+C26 -> 562.71 | G27: =+F27*0.97831 -> 550.5048201 | H27: $185.11 Square
A28: 24357 | B28: 2017-11-07 | C28: 15.16 | D28: 1.16
A29: 24358 | B29: 2017-11-07 | C29: 43.3 | D29: 3.3 | E29: Visa
A30: 24359 | B30: 2017-11-07 | C30: 17 | E30: Due, Revolution - resale
A31: 24360 | B31: 2017-11-07 | C31: 74.69 | D31: 5.69
A32: 24361 | B32: 2017-11-07 | C32: 194 | E32: Due, ESG Customs - resale
A33: 24362 | B33: 2017-11-07 | C33: 366.97 | D33: 27.97 | E33: Square
A34: 24363 | B34: 2017-11-07 | C34: 29.16 | D34: 2.22
A35: 24364 | B35: 2017-11-07 | C35: 11.89 | D35: 0.91
A36: 24365 | B36: 2017-11-07 | C36: 29.4 | E36: Visa, Border Patrol - no Tax
A37: 24366 | B37: 2017-11-07 | C37: 16.18 | D37: 1.23
A38: 24367 | B38: 2017-11-07 | C38: 649.5 | D38: 49.5 | E38: $399.50 due
A39: 24368 | B39: 2017-11-07 | C39: 134 | D39: 14.02 | E39: Due, V-Rod
A40: 24369 | B40: 2017-11-07 | C40: 267.92 | D40: 10.21 | E40: Due
A41: 24370 | B41: 2017-11-07 | C41: 255.25 | D41: 19.45 | E41: $135.25 Visa | F41: =+C29+24+C36+135.25+134 -> 365.95 | G41: =+F41*0.97831 -> 358.0125445 | H41: $50.00 Square
A42: 24371 | B42: 2017-11-08 | C42: 290.11 | D42: 22.11 | E42: MC
A43: 24372 | B43: 2017-11-08 | C43: 507.69 | D43: 38.69 | E43: $250 Visa
A44: 24373 | B44: 2017-11-08 | C44: -119.08 | D44: -9.08 | E44: AmEx
A45: 24374 | B45: 2017-11-08 | C45: 180.24 | D45: 13.74 | E45: (Gave $135.25 CC back)
A46: 24375 | B46: 2017-11-08 | C46: 4 | D46: 0.3
A47: 24376 | B47: 2017-11-08 | C47: 365.89 | D47: 27.89 | E47: MC
A48: 24377 | B48: 2017-11-08 | C48: 34.53 | D48: 2.63 | E48: Visa
A49: 24378 | B49: 2017-11-08 | C49: 186.73 | D49: 14.23 | E49: Visa
A50: 24379 | B50: 2017-11-08 | C50: 90 | D50: 6.86
A51: 24380 | B51: 2017-11-08 | C51: 63.27 | D51: 4.82 | E51: Square
A52: 24381 | B52: 2017-11-08 | C52: 20 | D52: 1.52
A53: 24382 | B53: 2017-11-08 | C53: 983.99 | D53: 74.99 | E53: $811.01 due
A54: 24383 | B54: 2017-11-08 | C54: 43.3 | D54: 3.3 | E54: Visa | F54: =+C42+250+C44-135.25+316.97+328.81+C49-0.09 -> 1118.2 | G54: =+F54*0.97831 -> 1093.946242 | H54: $63.27 Square
A55: 24384 | B55: 2017-11-09 | C55: 286.86 | D55: 21.86 | E55: Visa, $186.86 due
A56: 24385 | B56: 2017-11-09 | C56: 30.31 | D56: 2.31 | E56: Visa
A57: 24386 | B57: 2017-11-09 | C57: 246.76 | D57: 18.81
A58: 24387 | B58: 2017-11-09 | C58: 32.42 | D58: 2.47 | E58: Visa
A59: 24388 | B59: 2017-11-09 | C59: 344.24 | D59: 26.24 | E59: Visa
A60: 24389 | B60: 2017-11-09 | C60: 64.95 | D60: 4.95 | E60: Visa | F60: =100+217.92+40+C58+C60+C59 -> 799.53 | G60: =+F60*0.97831 -> 782.1881943
A61: 24390 | B61: 2017-11-10 | C61: 139.59 | D61: 10.64 | E61: MC
A62: 24391 | B62: 2017-11-10 | C62: 43.3 | D62: 3.3 | E62: Visa
A63: 24392 | B63: 2017-11-10 | C63: 2.71 | D63: 0.21
A64: 24393 | B64: 2017-11-10 | C64: 49.74 | D64: 3.79
A65: 24394 | B65: 2017-11-10 | C65: 20.65 | E65: Due, Revolution - resale | F65: =+C61+C62 -> 182.89 | G65: =+F65*0.97831 -> 178.9231159
A66: 24395 | B66: 2017-11-11 | C66: 43.56 | D66: 3.32
A67: 24396 | B67: 2017-11-11 | C67: 166 | D67: 12.65 | E67: Square
A68: 24397 | B68: 2017-11-11 | C68: 23.82 | D68: 1.82 | E68: Visa
A69: 24398 | B69: 2017-11-11 | C69: 307.43 | D69: 23.43 | E69: Square, bal $157.43 Visa
A70: 24399 | B70: 2017-11-11 | C70: 94.72 | D70: 7.22 | F70: =399.5+C68+C19 -> 746.99 | G70: =+F70*0.97831 -> 730.7877869 | H70: $316.00 Square
A71: 24400 | B71: 2017-11-13 | C71: 224 | D71: 17.07
A72: 24401 | B72: 2017-11-13 | C72: 10 | D72: 0.76 | F72: 0 | G72: =+F72*0.97831 -> 0
A73: 24402 | B73: 2017-11-14 | C73: 27.01 | D73: 2.06 | E73: Visa
A74: 24403 | B74: 2017-11-14 | C74: 270.63 | D74: 20.63 | E74: Check
A75: 24404 | B75: 2017-11-14 | C75: 11.91 | D75: 0.91
A76: 24405 | B76: 2017-11-14 | C76: 173.2 | D76: 13.2 | E76: Square
A77: 24406 | B77: 2017-11-14 | C77: 114.75 | D77: 8.75 | E77: Square
A78: 24407 | B78: 2017-11-14 | C78: 92 | D78: 7.01 | F78: =+C73 -> 27.01 | G78: =+F78*0.97831 -> 26.4241531 | H78: $474.81 Square
A79: 24408 | B79: 2017-11-15 | C79: 131.52 | D79: 10.02 | E79: Square
A80: 24409 | B80: 2017-11-15 | C80: 52.5 | E80: Due, Carlos G - MX
A81: 24410 | B81: 2017-11-15 | C81: 20 | E81: Square
A82: 24411 | B82: 2017-11-15 | C82: -20 | E82: Due, Credit for cust
A83: 24412 | B83: 2017-11-15 | C83: 121.24 | D83: 9.24
A84: 24413 | B84: 2017-11-15 | C84: 171.04 | D84: 13.04
A85: 24414 | B85: 2017-11-15 | C85: 46 | D85: 3.51
A86: 24415 | B86: 2017-11-15 | C86: 139.64 | D86: 10.64
A87: 24416 | B87: 2017-11-15 | C87: 65 | D87: 4.95
A88: 24417 | B88: 2017-11-15 | C88: 208 | D88: 15.85 | E88: $108 due
A89: 24418 | B89: 2017-11-15 | C89: 72.5 | E89: Due, Ultimate Cycle - resale
A90: 24419 | B90: 2017-11-15 | C90: 8.61 | D90: 0.66
A91: 24420 | B91: 2017-11-15 | C91: 308.11 | D91: 22.57 | E91: MC
A92: 24421 | B92: 2017-11-15 | C92: 80 | D92: 6.1 | E92: Due, Randy
A93: 24422 | B93: 2017-11-15 | C93: 110 | E93: Due, J. Rangel - resale | F93: =+C91 -> 308.11 | G93: =+F93*0.97831 -> 301.4270941 | H93: $151.52 Square
A94: 24423 | B94: 2017-11-16 | C94: 615.94 | D94: 46.94 | E94: $575.94 due
A95: 24424 | B95: 2017-11-16 | C95: 20 | D95: 1.52 | E95: Square
A96: 24425 | B96: 2017-11-16 | C96: 195.93 | D96: 14.93 | E96: $81.18 due
A97: 24426 | B97: 2017-11-16 | C97: 63.92 | D97: 4.87 | E97: Visa | F97: =+C64+C97 -> 113.66 | G97: =+F97*0.97831 -> 111.1947146 | H97: $20.00 Square
A98: 24427 | B98: 2017-11-17 | C98: 182.94 | D98: 13.94 | E98: Square
A99: 24428 | B99: 2017-11-17 | C99: 7.52 | D99: 0.57
A100: 24429 | B100: 2017-11-17 | C100: 34.64 | D100: 2.64 | E100: AE
A101: 24430 | B101: 2017-11-17 | C101: 11.37 | D101: 0.87 | E101: Visa
A102: 24431 | B102: 2017-11-17 | C102: 106 | D102: 8.08 | E102: Square
A103: 24432 | B103: 2017-11-17 | C103: 15 | D103: 1.14
A104: 24433 | B104: 2017-11-17 | C104: 32 | D104: 2.44 | E104: Due, used 240 tire
A105: 24434 | B105: 2017-11-17 | C105: 87.95 | D105: 6.7 | E105: Due, BMW battery
A106: 24435 | B106: 2017-11-17 | C106: 5.41 | D106: 0.41 | E106: Visa
A107: 24436 | B107: 2017-11-17 | C107: 17.32 | D107: 1.32
A108: 24437 | B108: 2017-11-17 | C108: 155.88 | D108: 11.88 | E108: MC | F108: =+C100+C101+C48+C106+C108+157.43 -> 399.26 | G108: 394.41 | H108: $302.94 Square
A109: 24438 | B109: 2017-11-18 | C109: 96.34 | D109: 7.34 | E109: MC
A110: 24439 | B110: 2017-11-18 | C110: 93 | D110: 7.09
A111: 24440 | B111: 2017-11-18 | C111: 59.54 | D111: 4.54 | E111: Square
A112: 24441 | B112: 2017-11-18 | C112: 96.34 | D112: 7.34 | E112: AmExp
A113: 24442 | B113: 2017-11-18 | C113: 21.65 | D113: 1.65 | E113: MC
A114: 24443 | B114: 2017-11-18 | C114: 75.78 | D114: 5.78
A115: 24444 | B115: 2017-11-18 | C115: 292 | D115: 22.25
A116: 24445 | B116: 2017-11-18 | C116: -115.61 | D116: -8.81
A117: 24446 | B117: 2017-11-18 | C117: 15.16 | D117: 1.16
A118: 24447 | B118: 2017-11-18 | C118: 149 | E118: Square, Xtreem - resale | F118: =+C109+C112+C105+C113 -> 302.28 | G118: 294.5 | H118: $208.54 Square
A119: 24448 | B119: 2017-11-20 | C119: 23.82 | D119: 1.82 | E119: MC
A120: 24449 | B120: 2017-11-20 | C120: 72.42 | D120: 5.52 | E120: MC
A121: 24450 | B121: 2017-11-20 | C121: 224.08 | D121: 17.08 | E121: Due
A122: 24451 | B122: 2017-11-20 | C122: 200.24 | D122: 17.74
A123: 24452 | B123: 2017-11-20 | C123: 16.18 | D123: 1.23 | E123: Visa | F123: =+C119+C120+C123 -> 112.42 | G123: =+F123*0.97831 -> 109.9816102
A124: 24453 | B124: 2017-11-21 | C124: 280 | D124: 21.34
A125: 24454 | B125: 2017-11-21 | C125: 123 | D125: 5.01
A126: 24455 | B126: 2017-11-21 | C126: 5 | D126: 0.38
A127: 24456 | B127: 2017-11-21 | C127: 281.45 | D127: 21.45 | E127: Visa, $141.45 due
A128: 24457 | B128: 2017-11-21 | C128: 20 | D128: 1.52 | E128: MC
A129: 24458 | B129: 2017-11-21 | C129: 128.82 | D129: 9.82 | E129: Visa
A130: 24459 | B130: 2017-11-21 | C130: 22 | E130: J. Rangel - resale
A131: 24460 | B131: 2017-11-21 | C131: 225 | E131: J. Rangel - resale | F131: =140+C128+C129 -> 288.82 | G131: =+F131*0.97831 -> 282.5554942
A132: 24461 | B132: 2017-11-22 | C132: 193.23 | D132: 14.73
A133: 24462 | B133: 2017-11-22 | C133: 4
A134: 24463 | B134: 2017-11-22 | C134: 121.24 | D134: 9.24
A135: 24464 | B135: 2017-11-22 | C135: 27 | D135: 2.06
A136: 24465 | B136: 2017-11-22 | C136: 329.62 | D136: 25.12 | E136: Visa
A137: 24466 | B137: 2017-11-22 | C137: 34.5 | E137: Due, J. Rangel - resale | G137: Forgot to Run Tue
A138: 24467 | B138: 2017-11-22 | C138: 123.9 | E138: Due, Carlos G - MX | F138: =+C136 -> 329.62 | G138: =+F138*0.97831 -> 322.4705422
A139: 24468 | B139: 2017-11-24 | C139: 74.69 | D139: 5.69 | E139: Visa
A140: 24469 | B140: 2017-11-24 | C140: 75.78 | D140: 5.78 | E140: Visa
A141: 24470 | B141: 2017-11-24 | C141: 29.23 | D141: 2.23 | E141: Visa
A142: 24471 | B142: 2017-11-24 | C142: 21.65 | D142: 1.65 | E142: Visa
A143: 24472 | B143: 2017-11-24 | C143: 2.5 | D143: 0.19
A144: 24473 | B144: 2017-11-24 | C144: 20.57 | D144: 1.57 | E144: Visa
A145: 24474 | B145: 2017-11-24 | C145: 48.71 | D145: 3.71 | E145: Visa
A146: 24475 | B146: 2017-11-24 | C146: 47.63 | D146: 3.63
A147: 24476 | B147: 2017-11-24 | C147: 95.26 | D147: 7.26 | E147: Visa | F147: =+C139+C140+C142+C141+C144+C145+237.61+C147 -> 603.5 | G147: =+F147*0.97831 -> 590.410085
A148: 24477 | B148: 2017-11-25 | C148: 46.55 | D148: 3.55 | E148: Visa
A149: 24478 | B149: 2017-11-25 | C149: 29.23 | D149: 2.23 | E149: Square
A150: 24479 | B150: 2017-11-25 | C150: 24.84 | D150: 1.89
A151: 24480 | B151: 2017-11-25 | C151: 48.71 | D151: 3.71 | E151: Square
A152: 24481 | B152: 2017-11-25 | C152: 102.84 | D152: 7.84 | E152: Square
A153: 24482 | B153: 2017-11-25 | C153: 315.55 | D153: 24.05 | E153: $150 Square, Bal Due
A154: 24483 | B154: 2017-11-25 | C154: 320.96 | D154: 24.46 | E154: Due
A155: 24484 | B155: 2017-11-25 | C155: 223 | D155: 17
A156: 24485 | B156: 2017-11-25 | C156: 169.41 | D156: 12.91 | F156: =+C148 -> 46.55 | G156: =+F156*0.97831 -> 45.5403305 | H156: $330.78 Square
A157: 24486 | B157: 2017-11-27 | C157: 243 | D157: 18.52. | E157: Square
A158: 24487 | B158: 2017-11-27 | C158: 225 | E158: Due, Carlos G - MX
A159: 24488 | B159: 2017-11-27 | C159: 39.03 | D159: 2.97
A160: 24489 | B160: 2017-11-27 | C160: 58.46 | D160: 4.46
A161: 24490 | B161: 2017-11-27 | C161: 34.64 | D161: 2.64 | E161: AmEx
A162: 24491 | B162: 2017-11-27 | C162: 206 | D162: 15.7 | E162: $46 due
A163: 24492 | B163: 2017-11-27 | C163: 317.17 | D163: 24.17 | E163: $100 cash, $217.17 MC
A164: 24493 | B164: 2017-11-27 | C164: 25.98 | D164: 1.98
A165: 24494 | B165: 2017-11-27 | C165: 25 | D165: 1.91 | E165: Check
A166: 24495 | B166: 2017-11-27 | C166: 21.8 | E166: Due, Carlos G - MX | F166: =+C161+320.96 -> 355.6 | G166: =+F166*0.97831 -> 347.887036
A167: 24496 | B167: 2017-11-28 | C167: 3.5 | D167: 0.27
A168: 24497 | B168: 2017-11-28 | C168: 140.73 | D168: 10.73 | E168: MC
A169: 24498 | B169: 2017-11-28 | C169: 181.86 | D169: 13.86 | F169: ($816 owed to Joe)
A170: 24499 | B170: 2017-11-28 | C170: 21.65 | D170: 1.65 | F170: =+C168+827 -> 967.73 | G170: =+F170*0.97831 -> 946.7399363
A171: 24500 | B171: 2017-11-29 | C171: 47.63 | D171: 3.63
A172: 24501 | B172: 2017-11-29 | C172: 74.69 | D172: 5.69 | E172: Visa
A173: 24502 | B173: 2017-11-29 | C173: 21.6 | D173: 1.65 | E173: MC
A174: 24503 | B174: 2017-11-29 | C174: 195 | E174: Due, Revolution - resale
A175: 24504 | B175: 2017-11-29 | C175: 31.39 | D175: 2.39
A176: 24505 | B176: 2017-11-29 | C176: 51 | E176: Due, Carlos G - MX
A177: 24506 | B177: 2017-11-29 | C177: 400.53 | D177: 30.53 | E177: $270.53 due
A178: 24507 | B178: 2017-11-29 | C178: 253.85 | D178: 19.35 | E178: Visa, $153.85 due
A179: 24508 | B179: 2017-11-29 | C179: 105 | D179: 8 | E179: Due
A180: 24509 | B180: 2017-11-29 | C180: 47.71 | D180: 3.64 | E180: Square | F180: =+C172+C173+100 -> 196.29 | G180: =+F180*0.97831 -> 192.0324699 | H180: $47.71 Square
A181: 24510 | B181: 2017-11-30 | C181: 42.22 | D181: 3.22 | E181: Square
A182: 24511 | B182: 2017-11-30 | C182: 31.39 | D182: 2.39 | E182: MC
A183: 24512 | B183: 2017-11-30 | C183: 175 | E183: Dirty Daves - resale
A184: 24513 | B184: 2017-11-30 | C184: 48.71 | D184: 3.71 | E184: Visa
A185: 24514 | B185: 2017-11-30 | C185: 10 | E185: Due, J. Rangel - resale
A186: 24515 | B186: 2017-11-30 | C186: 8 | E186: $3 due, Revolution - resale | F186: =+C182+C184 -> 80.1 | G186: =+F186*0.97831 -> 78.362631 | H186: $207.77 Square | I186: =H1-WEEKDAY(H1,3)-7 -> 2018-07-09 | J186: =SUMIF(INDIRECT(TEXT(I186,"'mmm-yy'")&"!B3:B400"),I186,INDIRECT(TEXT(I186,"'mmm-yy'")&"!C3:C400")) -> 1358.07
I188: =I186+1 -> 2018-07-10 | J188: =SUMIF(INDIRECT(TEXT(I188,"'mmm-yy'")&"!B3:B400"),I188,INDIRECT(TEXT(I188,"'mmm-yy'")&"!C3:C400")) -> 505
I189: =I188+1 -> 2018-07-11 | J189: 833.3
I190: 2018-07-12 | J190: 831.11
I191: 2018-07-13 | J191: 882.05
I192: 2018-07-14 | J192: 3060.02
I193: 2018-07-15 | J193: 0 | K193: =SUM(J186:J193) -> 7469.55
I194: 2018-07-16 | J194: 1060.13
I195: 2018-07-17 | J195: 793.53
I196: 2018-07-18 | J196: 681.78
I197: 2018-07-19 | J197: 46.91
I198: 2018-07-20 | J198: 1725.16
I199: 2018-07-21 | J199: 159
I200: 2018-07-22 | J200: 0 | K200: =SUM(J194:J200) -> 4466.51

Sheet Oct-17
A1: Invoice | C1: =SUM(C3:C427) -> 22280.43 | D1: =SUM(D3:D427) -> 1534 | F1: =SUM(F3:F668) -> 5393.23 | G1: =SUM(G3:G668) -> 5276.250841 | H1: =TODAY() -> 2018-07-20
A2: Number | B2: Date | C2: Amount | D2: Tax | E2: Terms
A3: 24106 | B3: 2017-10-02 | E3: Actual Inv 24107
A4: 24107 | B4: 2017-10-02 | C4: 171.58 | D4: 13.08
A5: 24108 | B5: 2017-10-02 | C5: 294.98 | D5: 22.48
A6: 24109 | B6: 2017-10-02 | C6: 10.83 | D6: 0.83 | E6: Square
A7: 24110 | B7: 2017-10-02 | C7: 25.01 | D7: 1.91
A8: 24111 | B8: 2017-10-02 | C8: 277.12 | D8: 21.12 | E8: Square
A9: 24112 | B9: 2017-10-02 | C9: 17.27 | D9: 1.32 | F9: 0 | G9: =+F9*0.97831 -> 0 | H9: $287.95 Square
A10: 24113 | B10: 2017-10-03 | C10: 180.24 | D10: 13.74 | E10: Due
A11: 24114 | B11: 2017-10-03 | C11: 10.83 | D11: 0.83 | E11: Square
A12: 24115 | B12: 2017-10-03 | C12: 77.94 | D12: 5.94
A13: 24116 | B13: 2017-10-03 | C13: 77.94 | D13: 5.94
A14: 24117 | B14: 2017-10-03 | C14: 42.17 | D14: 3.21 | E14: Visa
A15: 24118 | B15: 2017-10-03 | C15: 80 | D15: 6.1 | F15: =+C14 -> 42.17 | G15: =+F15*0.97831 -> 41.2553327 | H15: $10.83 Square
A16: 24119 | B16: 2017-10-04 | C16: 62.73 | D16: 4.78
A17: 24120 | B17: 2017-10-04 | C17: 37.89 | D17: 2.89 | E17: Visa
A18: 24121 | B18: 2017-10-04 | C18: 16 | E18: Due, Brant - resale
A19: 24122 | B19: 2017-10-04 | C19: 0 | D19: 0
A20: 24123 | B20: 2017-10-04 | C20: 167.79 | D20: 12.79 | E20: Trade, John Computer guy
A21: 24124 | B21: 2017-10-04 | C21: 112 | E21: Due, Carlos G - resale MX
A22: 24125 | B22: 2017-10-04 | C22: 177.53 | D22: 13.53 | F22: =+C17 -> 37.89 | G22: =+F22*0.97831 -> 37.0681659
A23: 24126 | B23: 2017-10-05 | C23: 21.65 | D23: 1.65 | E23: Visa
A24: 24127 | B24: 2017-10-05 | C24: 68.47 | D24: 5.22 | E24: Visa
A25: 24128 | B25: 2017-10-05 | C25: 27.06 | D25: 2.06 | E25: Due
A26: 24129 | B26: 2017-10-05 | C26: 114.2 | D26: 8.7 | E26: Visa
A27: 24130 | B27: 2017-10-05 | C27: 21.65 | D27: 1.65 | E27: PayPal
A28: 24131 | B28: 2017-10-05 | C28: 379.96 | D28: 28.96 | E28: Due
A29: 24132 | B29: 2017-10-05 | C29: 117 | E29: Due, Revolution - resale
A30: 24133 | B30: 2017-10-05 | C30: 60 | E30: J.Rangel - resale
A31: 24134 | B31: 2017-10-05 | C31: 75 | E31: Due, Brant - resale | F31: =+C23+C26+C24+28.7 -> 233.02 | G31: =+F31*0.97831 -> 227.9657962
A32: 24135 | B32: 2017-10-06 | C32: 127.95 | D32: 9.75 | E32: MC
A33: 24136 | B33: 2017-10-06 | C33: 220.29 | D33: 16.79 | E33: $160.29 Visa
A34: 24137 | B34: 2017-10-06 | C34: 27 | D34: 2.06 | E34: Chevo Trade
A35: 24138 | B35: 2017-10-06 | C35: 221.91 | D35: 16.91 | E35: Visa
A36: 24139 | B36: 2017-10-06 | C36: 246 | D36: 18.75
A37: 24140 | B37: 2017-10-06 | C37: 5 | D37: 0.38
A38: 24141 | B38: 2017-10-06 | C38: 199.72 | D38: 15.22 | E38: $179.72 due
A39: 24142 | B39: 2017-10-06 | C39: 70.36 | D39: 5.36 | E39: Due
A40: 24143 | B40: 2017-10-06 | C40: 61.7 | D40: 4.7 | E40: Visa | F40: =+C32+C35+160.29 -> 510.15 | G40: =+F40*0.97831 -> 499.0848465 | H40: $121.58 Square
A41: 24144 | B41: 2017-10-07 | C41: 231.11 | D41: 17.61 | E41: Square
A42: 24145 | B42: 2017-10-07 | C42: -59.54 | D42: -4.54
A43: 24146 | B43: 2017-10-07 | C43: 85.52 | D43: 6.52 | E43: Square
A44: 24147 | B44: 2017-10-07 | C44: 5.4 | D44: 0.41 | E44: Cash
A45: 24148 | B45: 2017-10-07 | C45: 74.15 | D45: 5.65 | E45: Square
A46: 24149 | B46: 2017-10-07 | C46: 56.29 | D46: 4.29 | E46: Visa
A47: 24150 | B47: 2017-10-07 | C47: 38 | D47: 2.9
A48: 24151 | B48: 2017-10-07 | C48: 104 | D48: 7.93 | E48: Due
A49: 24152 | B49: 2017-10-07 | C49: 85.52 | D49: 6.52 | E49: Visa
A50: 24153 | B50: 2017-10-07 | C50: 155.88 | D50: 11.88 | E50: Check
A51: 24154 | B51: 2017-10-07 | C51: 70 | D51: 5.33 | E51: Trade, Elvin | F51: =+C46+C49 -> 141.81 | G51: =+F51*0.97831 -> 138.7341411 | H51: $531.85 Square
A52: 24155 | B52: 2017-10-09 | C52: 57.37 | D52: 4.37 | E52: Visa, Ana
A53: 24156 | B53: 2017-10-09 | C53: 32 | D53: 2.44
A54: 24157 | B54: 2017-10-09 | C54: 98.51 | D54: 7.51 | E54: Due, Jet Ski
A55: 24158 | B55: 2017-10-09 | C55: 192.69 | D55: 14.69 | E55: Visa
A56: 24159 | B56: 2017-10-09 | C56: 15.16 | D56: 1.16
A57: 24160 | B57: 2017-10-09 | C57: 215.96 | D57: 16.46 | E57: Due
A58: 24161 | B58: 2017-10-09 | C58: 358.31 | D58: 27.31 | E58: MC
A59: 24162 | B59: 2017-10-09 | C59: 315.55 | D59: 24.05 | E59: Visa, $215.55 due
A60: 24163 | B60: 2017-10-09 | C60: 62.24 | D60: 4.74
A61: 24164 | B61: 2017-10-09 | C61: 23 | E61: Revolution - resale
A62: 24165 | B62: 2017-10-09 | C62: 34.64 | D62: 2.64 | E62: Due
A63: 24166 | B63: 2017-10-09 | C63: 8.75 | E63: Revolution - resale
A64: 24167 | B64: 2017-10-09 | C64: 13 | D64: 0.99
A65: 24168 | B65: 2017-10-09 | C65: 20 | D65: 1.52
A66: 24169 | B66: 2017-10-09 | C66: -48 | D66: -3.66 | E66: Ref Inv 23906 | F66: =+C52+C55+C58+100 -> 708.37 | G66: =+F66*0.97831 -> 693.0054547
A67: 24170 | B67: 2017-10-10 | C67: 15 | E67: Revolution - resale
A68: 24171 | B68: 2017-10-10 | C68: 347.3 | E68: Due, Carlos G - resale MX
A69: 24172 | B69: 2017-10-10 | C69: 117.99 | D69: 8.99 | E69: Visa
A70: 24173 | B70: 2017-10-10 | C70: 63.87 | D70: 4.87
A71: 24174 | B71: 2017-10-10 | C71: 184 | D71: 14.02 | E71: $134 due
A72: 24175 | B72: 2017-10-10 | C72: 139.37 | E72: Due, ESG Customs - resale | F72: =+C69 -> 117.99 | G72: =+F72*0.97831 -> 115.4307969 | H72: $0.00 Square
A73: 24176 | B73: 2017-10-11 | C73: 19.49 | D73: 1.49
A74: 24177 | B74: 2017-10-11 | C74: 230.03 | D74: 17.53 | E74: visa
A75: 24178 | B75: 2017-10-11 | C75: 51.85 | D75: 3.95
A76: 24179 | B76: 2017-10-11 | C76: 11.85 | D76: 0.9
A77: 24180 | B77: 2017-10-11 | C77: 30.31 | D77: 2.31 | E77: Visa
A78: 24181 | B78: 2017-10-11 | C78: 30 | D78: 2.29
A79: 24182 | B79: 2017-10-11 | C79: 327 | D79: 24.92 | F79: 0 | G79: =+F79*0.97831 -> 0 | H79: $0.00 Square
A80: 24183 | B80: 2017-10-12 | C80: 24.37 | E80: Visa
A81: 24184 | B81: 2017-10-12 | C81: 229.49 | D81: 17.49
A82: 24185 | B82: 2017-10-12 | C82: 64.9 | D82: 4.95
A83: 24186 | B83: 2017-10-12 | C83: 6.5 | D83: 0.5 | E83: Visa
A84: 24187 | B84: 2017-10-12 | C84: 87.68 | D84: 6.68 | E84: Visa
A85: 24188 | B85: 2017-10-12 | C85: 68.2 | D85: 5.2 | E85: Am Exp
A86: 24189 | B86: 2017-10-12 | C86: 62.24 | D86: 4.74 | E86: Visa
A87: 24190 | B87: 2017-10-12 | C87: 59.01 | D87: 4.5 | F87: 0 | G87: =+F87*0.97831 -> 0 | H87: $0.00 Square
A88: 24191 | B88: 2017-10-13 | C88: 57.32 | D88: 4.37
A89: 24192 | B89: 2017-10-13 | C89: 45.47 | D89: 3.47 | F89: 0 | G89: =+F89*0.97831 -> 0 | H89: $0.00 Square
A90: 24193 | B90: 2017-10-14 | C90: 54.13 | D90: 4.13 | E90: Visa
A91: 24194 | B91: 2017-10-14 | C91: 9.69 | D91: 0.74
A92: 24195 | B92: 2017-10-14 | C92: 9.74 | D92: 0.74 | E92: Discover
A93: 24196 | B93: 2017-10-14 | C93: 300 | E93: Visa
A94: 24197 | B94: 2017-10-14 | C94: 174.28 | D94: 13.28 | E94: Due
A95: 24198 | B95: 2017-10-14 | C95: 112.04 | D95: 8.54
A96: 24199 | B96: 2017-10-14 | C96: 10 | D96: 0.76
A97: 24200 | B97: 2017-10-14 | C97: 44.38 | D97: 3.38
A98: 24201 | B98: 2017-10-14 | C98: 117.45 | D98: 8.95 | E98: Square
A99: 24202 | B99: 2017-10-14 | C99: 70.36 | D99: 5.36 | E99: Square
A100: 24203 | B100: 2017-10-14 | C100: 64.95 | D100: 4.95
A101: 24204 | B101: 2017-10-14 | C101: 127.19 | D101: 9.69 | F101: 0 | G101: =+F101*0.97831 -> 0 | H101: $0.00 Square
A102: 24205 | B102: 2017-10-16 | C102: 17.27 | D102: 1.32 | E102: Visa
A103: 24206 | B103: 2017-10-16 | C103: 58.24 | D103: 4.44 | E103: Due
A104: 24207 | B104: 2017-10-16 | C104: 8.66 | D104: 0.66
A105: 24208 | B105: 2017-10-16 | C105: 119.08 | D105: 9.08 | E105: Visa
A106: 24209 | B106: 2017-10-16 | C106: 25.98 | D106: 1.98
A107: 24210 | B107: 2017-10-16 | C107: 43.52 | D107: 3.32 | E107: Square | F107: 0 | G107: =+F107*0.97831 -> 0 | H107: $0.00 Square
A108: 24211 | B108: 2017-10-17 | C108: 12.98 | E108: Square
A109: 24212 | B109: 2017-10-17 | C109: 19 | E109: Square
A110: 24213 | B110: 2017-10-17 | C110: 30.2 | D110: 2.3
A111: 24214 | B111: 2017-10-17 | C111: 159 | E111: Due
A112: 24215 | B112: 2017-10-17 | C112: 59.4 | E112: Due
A113: 24216 | B113: 2017-10-17 | C113: 55.21 | D113: 4.21 | E113: Square
A114: 24217 | B114: 2017-10-17 | C114: 107.17 | D114: 8.17 | E114: Square
A115: 24218 | B115: 2017-10-17 | C115: 98 | D115: 7.47 | E115: Square | F115: 0 | G115: =+F115*0.97831 -> 0 | H115: $0.00 Square
A116: 24219 | B116: 2017-10-18 | C116: 48.71 | D116: 3.71
A117: 24220 | B117: 2017-10-18 | C117: 20.57 | D117: 1.57
A118: 24221 | B118: 2017-10-18 | C118: 43.3 | D118: 3.3
A119: 24222 | B119: 2017-10-18 | C119: 144.84 | D119: 11.04 | E119: Due | F119: 0 | G119: =+F119*0.97831 -> 0 | H119: $0.00 Square
A120: 24223 | B120: 2017-10-19 | C120: 48.66 | D120: 3.71 | E120: Visa
A121: 24224 | B121: 2017-10-19 | C121: 17.27 | D121: 1.32 | E121: Visa
A122: 24225 | B122: 2017-10-19 | D122: 89.66
A123: 24226 | B123: 2017-10-19 | C123: 94.18 | D123: 7.18
A124: 24227 | B124: 2017-10-19 | C124: 37.89 | D124: 2.89 | F124: 0 | G124: =+F124*0.97831 -> 0 | H124: $0.00 Square
A125: 24228 | B125: 2017-10-20 | C125: 304.99 | D125: 23.24
A126: 24229 | B126: 2017-10-20 | C126: 120 | D126: 9.15
A127: 24230 | B127: 2017-10-20 | C127: 10 | D127: 0.76 | E127: Visa
A128: 24231 | B128: 2017-10-20 | C128: 48.71 | D128: 3.71 | E128: Visa
A129: 24232 | B129: 2017-10-20 | C129: 22.73 | D129: 1.73
A130: 24233 | B130: 2017-10-20 | C130: 81.19 | D130: 6.19
A131: 24234 | B131: 2017-10-20 | C131: 28.15 | D131: 2.15
A132: 24235 | B132: 2017-10-20 | C132: 11.85 | D132: 0.9
A133: 24236 | B133: 2017-10-20 | C133: 413.52 | D133: 31.52 | E133: Visa
A134: 24237 | B134: 2017-10-20 | C134: 142 | D134: 10.82
A135: 24238 | B135: 2017-10-20 | C135: 20 | D135: 1.52
A136: 24239 | B136: 2017-10-20 | C136: 16.24 | D136: 1.24 | E136: Visa
A137: 24240 | B137: 2017-10-20 | C137: 56 | D137: 4.27 | F137: 0 | G137: =+F137*0.97831 -> 0 | H137: $0.00 Square
A138: 24241 | B138: 2017-10-21 | C138: 20 | D138: 1.52
A139: 24242 | B139: 2017-10-21 | C139: 263.59 | D139: 20.09 | E139: Visa
A140: 24243 | B140: 2017-10-21 | C140: 5.39 | D140: 0.41
A141: 24244 | B141: 2017-10-21 | C141: 139.64 | D141: 10.64 | E141: Square
A142: 24245 | B142: 2017-10-21 | C142: 25.98 | D142: 1.98 | E142: Square
A143: 24246 | B143: 2017-10-21 | C143: 130 | D143: 9.91 | E143: Square
A144: 24247 | B144: 2017-10-21 | C144: 21.65 | D144: 1.65
A145: 24248 | B145: 2017-10-21 | C145: 289.03 | D145: 22.03 | E145: Square
A146: 24249 | B146: 2017-10-21 | C146: 114 | D146: 8.69
A147: 24250 | B147: 2017-10-21 | C147: 11.85 | D147: 0.9 | E147: Square | F147: =+C139 -> 263.59 | G147: =+F147*0.97831 -> 257.8727329 | H147: $596.5 Square
A148: 24251 | B148: 2017-10-23 | C148: 93.04 | D148: 7.09
A149: 24252 | B149: 2017-10-23 | C149: 20 | D149: 1.52 | E149: Square
A150: 24253 | B150: 2017-10-23 | C150: 9.74 | D150: 0.74 | E150: Square
A151: 24254 | B151: 2017-10-23 | C151: 35.61 | D151: 2.71
A152: 24255 | B152: 2017-10-23 | C152: 49.8 | D152: 3.8 | E152: Square
A153: 24256 | B153: 2017-10-23 | C153: 43.25 | D153: 3.3 | E153: Square
A154: 24257 | B154: 2017-10-23 | C154: 20 | D154: 1.52
A155: 24258 | B155: 2017-10-23 | C155: 336 | E155: Due, George - Revolution resale
A156: 24259 | B156: 2017-10-23 | C156: 74.69 | D156: 5.69 | E156: Square
A157: 24260 | B157: 2017-10-23 | C157: 79 | D157: 6.02
A158: 24261 | B158: 2017-10-23 | C158: 15 | E158: Due | F158: 0 | G158: =+F158*0.97831 -> 0 | H158: $197.48 Square
A159: 24262 | B159: 2017-10-24 | C159: 200 | D159: 15.24 | E159: $100 due
A160: 24263 | B160: 2017-10-24 | C160: 92.82 | D160: 7.07
A161: 24264 | B161: 2017-10-24 | C161: 34.64 | D161: 2.64 | E161: Due
A162: 24265 | B162: 2017-10-24 | C162: 37.89 | D162: 2.89 | E162: Due
A163: 24266 | B163: 2017-10-24 | C163: 56.63 | E163: Due, Joe R - resale
A164: 24267 | B164: 2017-10-24 | C164: 117.52 | E164: Due, Joe R - resale
A165: 24268 | B165: 2017-10-24 | C165: 129.9 | D165: 9.9
A166: 24269 | B166: 2017-10-24 | C166: 103.92 | D166: 7.92 | E166: Square
A167: 24270 | B167: 2017-10-24 | C167: 5.41 | D167: 0.41 | F167: 0 | G167: =+F167*0.97831 -> 0 | H167: $103.92 Square
A168: 24271 | B168: 2017-10-25 | C168: 120 | E168: Due
A169: 24272 | B169: 2017-10-25 | C169: 27 | D169: 2.06
A170: 24273 | B170: 2017-10-25 | C170: 74.69 | D170: 5.69 | E170: Square
A171: 24274 | B171: 2017-10-25 | C171: 14.02 | D171: 1.07 | E171: Square
A172: 24275 | B172: 2017-10-25 | C172: 86.6 | D172: 6.6 | E172: Square
A173: 24276 | B173: 2017-10-25 | C173: 40.05 | D173: 3.05 | E173: Square | F173: 0 | G173: =+F173*0.97831 -> 0 | H173: $481.33 Square
A174: 24277 | B174: 2017-10-26 | C174: 176.39 | D174: 13.44 | E174: Due
A175: 24278 | B175: 2017-10-26 | C175: 607.28 | D175: 46.28 | E175: $500 MC, $107.28 due
A176: 24279 | B176: 2017-10-26 | C176: 60.9 | E176: Visa, Border Patrol - No tax
A177: 24280 | B177: 2017-10-26 | C177: 53.8 | E177: Due, Border Patrol - No tax
A178: 24281 | B178: 2017-10-26 | C178: 59.54 | D178: 4.54 | E178: Square
A179: 24282 | B179: 2017-10-26 | C179: 11 | D179: 0.84
A180: 24283 | B180: 2017-10-26 | C180: 500 | D180: 38.11 | E180: $240 cash, $260 Discover
A181: 24284 | B181: 2017-10-26 | C181: 71 | E181: George - Revolution resale
A182: 24285 | B182: 2017-10-26 | C182: 74.69 | D182: 5.69
A183: 24286 | B183: 2017-10-26 | C183: 425.68 | E183: Due, Carlos G - resale MX
A184: 24287 | B184: 2017-10-26 | C184: 46.55 | D184: 3.55 | E184: Square | F184: =500+C176+260 -> 820.9 | G184: =+F184*0.97831 -> 803.094679 | H184: $106.09 Square
A185: 24288 | B185: 2017-10-27 | C185: 235.99 | D185: 17.99 | E185: Pd $140 cash, $95.99 Visa
A186: 24289 | B186: 2017-10-27 | C186: 11 | D186: 0.84
A187: 24290 | B187: 2017-10-27 | C187: 173.74 | D187: 13.24 | E187: Visa
A188: 24291 | B188: 2017-10-27 | C188: 45.47 | D188: 3.47 | E188: Visa
A189: 24292 | B189: 2017-10-27 | C189: 201.67 | D189: 15.37 | E189: Due
A190: 24293 | B190: 2017-10-27 | C190: 9 | E190: Due, George - Revolution resale
A191: 24294 | B191: 2017-10-27 | C191: 114 | D191: 8.69 | E191: Visa
A192: 24295 | B192: 2017-10-27 | C192: 152.63 | D192: 11.63 | E192: Due
A193: 24296 | B193: 2017-10-27 | C193: 28.04 | D193: 2.14 | E193: Due
A194: 24297 | B194: 2017-10-27 | C194: 10.83 | D194: 0.83
A195: 24298 | B195: 2017-10-27 | C195: 144.99 | E195: Due, Joe R - resale | F195: =95.99+50+34.64+213.52+C191 -> 508.15 | G195: =+F195*0.97831 -> 497.1282265
A196: 24299 | B196: 2017-10-28 | C196: 24.46 | D196: 1.86
A197: 24300 | B197: 2017-10-28 | C197: 9.5 | D197: 0.72 | E197: MC
A198: 24301 | B198: 2017-10-28 | C198: 10.77 | D198: 0.82 | E198: MC
A199: 24302 | B199: 2017-10-28 | C199: 346.4 | D199: 26.4 | E199: MC
A200: 24303 | B200: 2017-10-28 | C200: 10 | D200: 0.76 | E200: Visa
... 41 more rows

Sheet Sep-17
A1: Invoice | C1: =SUM(C3:C416) -> 25760.34403 | D1: =SUM(D3:D416) -> 1576.044025 | F1: =SUM(F3:F624) -> 8916.01 | G1: =SUM(G3:G624) -> 8722.621743 | H1: =TODAY() -> 2018-07-20
A2: Number | B2: Date | C2: Amount | D2: Tax | E2: Terms
A3: 23889 | B3: 2017-09-01 | C3: 158.32 | D3: 12.07 | E3: Due, Dirt Bike
A4: 23890 | B4: 2017-09-01 | C4: 526.1 | D4: 40.1 | E4: Due, HD Mich
A5: 23891 | B5: 2017-09-01 | C5: 128.82 | D5: 9.82 | E5: Visa
A6: 23892 | B6: 2017-09-01 | C6: 10 | E6: Due, George
A7: 23893 | B7: 2017-09-01 | C7: 158.05 | D7: 12.05 | E7: Visa
A8: 23894 | B8: 2017-09-01 | C8: 10 | E8: Due, George
A9: 23895 | B9: 2017-09-01 | C9: 287.95 | D9: 21.95 | E9: Check
A10: 23896 | B10: 2017-09-01 | C10: 15.1 | D10: 1.15 | E10: MC
A11: 23897 | B11: 2017-09-01 | C11: 224.46 | D11: 17.11 | E11: Square
A12: 23898 | B12: 2017-09-01 | C12: 14 | F12: =+C5+C7 -> 286.87 | G12: =+F12*0.97831 -> 280.6477897 | H12: $224.46 Square
A13: 23899 | B13: 2017-09-02 | C13: 197.02 | D13: 15.02 | E13: Square
A14: 23900 | B14: 2017-09-02 | C14: 19 | E14: Visa
A15: 23901 | B15: 2017-09-02 | C15: 77.94 | D15: 5.94
A16: 23902 | B16: 2017-09-02 | C16: 15.05 | D16: 1.15
A17: 23903 | B17: 2017-09-02 | C17: 10.83 | D17: 0.83
A18: 23904 | B18: 2017-09-02 | C18: 110.96 | D18: 8.46 | E18: Visa
A19: 23905 | B19: 2017-09-02 | C19: 50.01 | D19: 3.81 | E19: Visa | F19: =+C14+C18+C19 -> 179.97 | G19: =+F19*0.97831 -> 176.0664507 | H19: $197.02 Square
A20: 23906 | B20: 2017-09-04 | C20: 58.46 | D20: 4.46
A21: 23907 | B21: 2017-09-04 | C21: 46.49 | D21: 3.54 | E21: Visa
A22: 23908 | B22: 2017-09-04 | C22: 115.83 | D22: 8.83 | E22: Visa | F22: =+C21+C22 -> 162.32 | G22: =+F22*0.97831 -> 158.7992792
A23: 23909 | B23: 2017-09-05 | E23: Canciled
A24: 23910 | B24: 2017-09-05 | C24: 270 | D24: 20.58
A25: 23911 | B25: 2017-09-05 | C25: 69.28 | D25: 5.28
A26: 23912 | B26: 2017-09-05 | C26: 14.85 | E26: Visa | F26: =+C26 -> 14.85 | G26: =+F26*0.97831 -> 14.5279035
A27: 23913 | B27: 2017-09-06 | C27: 58.4 | E27: Due, Revolution - resale
A28: 23914 | B28: 2017-09-06 | C28: 0 | E28: Ref only, Revolution - resale
A29: 23915 | B29: 2017-09-06 | C29: 129.001525 | D29: 9.831525 | E29: Visa
A30: 23916 | B30: 2017-09-06 | C30: 90 | E30: Due, Joe R - resale
A31: 23917 | B31: 2017-09-06 | C31: 270 | E31: Due, Carlos G - Resale MX
A32: 23918 | B32: 2017-09-06 | C32: 8.66 | D32: 0.66 | E32: Visa
A33: 23919 | B33: 2017-09-06 | C33: 30 | D33: 2.29 | E33: Visa
A34: 23920 | B34: 2017-09-06 | C34: 9.74 | D34: 0.74
A35: 23921 | B35: 2017-09-06 | C35: 42.43 | D35: 3.23
A36: 23922 | B36: 2017-09-06 | C36: 133.69 | D36: 10.19 | E36: Visa
A37: 23923 | B37: 2017-09-06 | C37: 8.66 | D37: 0.66 | F37: =121+C32+C33+C36 -> 293.35 | G37: =+F37*0.97831 -> 286.9872385
A38: 23924 | B38: 2017-09-07 | C38: 138.18 | D38: 10.53
A39: 23925 | B39: 2017-09-07 | C39: 11.91 | D39: 0.91
A40: 23926 | B40: 2017-09-07 | C40: 9.74 | D40: 0.74 | E40: Visa
A41: 23927 | B41: 2017-09-07 | C41: 27.7 | D41: 1.2 | E41: Visa
A42: 23928 | B42: 2017-09-07 | C42: 204.59 | D42: 15.59 | E42: Visa
A43: 23929 | B43: 2017-09-07 | C43: 269.54 | D43: 20.54 | E43: Visa
A44: 23930 | B44: 2017-09-07 | C44: 70.36 | D44: 5.36 | E44: Visa
A45: 23931 | B45: 2017-09-07 | C45: 142.54 | D45: 10.86 | E45: Visa | F45: =+C40+C41+C42+C43+C44+C45 -> 724.47 | G45: =+F45*0.97831 -> 708.7562457
A46: 23932 | B46: 2017-09-08 | C46: 725 | E46: Visa
A47: 23933 | B47: 2017-09-08 | C47: 177.53 | D47: 13.53 | E47: Am Exp
A48: 23934 | B48: 2017-09-08 | C48: 38.86 | D48: 2.96 | E48: Visa
A49: 23935 | B49: 2017-09-08 | C49: 14.61 | D49: 1.11
A50: 23936 | B50: 2017-09-08 | C50: 5.39 | D50: 0.41
A51: 23937 | B51: 2017-09-08 | C51: 259.8 | D51: 19.8 | E51: Square
A52: 23938 | B52: 2017-09-08 | C52: 188.03 | D52: 14.33 | E52: Visa
A53: 23939 | B53: 2017-09-08 | C53: 21.65 | D53: 1.65 | F53: =+C46+89+C48+C52 -> 1040.89 | G53: =+F53*0.97831 -> 1018.313096 | H53: $259.80 Square
A54: 23940 | B54: 2017-09-09 | C54: 383.21 | D54: 29.21 | E54: $200 Square (+ Inv 23953)
A55: 23941 | B55: 2017-09-09 | C55: 74.69 | D55: 5.69 | E55: Bob's son, Battery
A56: 23942 | B56: 2017-09-09 | C56: 30 | D56: 2.29
A57: 23943 | B57: 2017-09-09 | C57: 65 | D57: 4.95
A58: 23944 | B58: 2017-09-09 | C58: 212.71 | D58: 16.21 | E58: Visa
A59: 23945 | B59: 2017-09-09 | C59: 140 | D59: 10.67 | E59: MC, Addl to Inv 23943
A60: 23946 | B60: 2017-09-09 | C60: 75 | D60: 5.72 | E60: Square
A61: 23947 | B61: 2017-09-09 | C61: 107.17 | D61: 8.17 | E61: MC
A62: 23948 | B62: 2017-09-09 | C62: 8.66 | D62: 0.66 | E62: Square
A63: 23949 | B63: 2017-09-09 | C63: 108.25 | D63: 8.25
A64: 23950 | B64: 2017-09-09 | C64: 19.49 | D64: 1.49
A65: 23951 | B65: 2017-09-09 | C65: 27.06 | D65: 2.06
A66: 23952 | B66: 2017-09-09 | C66: 11.91 | D66: 0.91
A67: 23953 | B67: 2017-09-09 | C67: 211.75 | D67: 16.14 | E67: Addl to Inv 23940
A68: 23954 | B68: 2017-09-09 | C68: 88.77 | D68: 6.77 | E68: Square
A69: 23955 | B69: 2017-09-09 | C69: 26.5 | E69: Due, Joe R - resale
A70: 23956 | B70: 2017-09-09 | C70: 108 | E70: Due, Joe R - resale (Derick) | F70: =+C59+C61 -> 247.17 | G70: =+F70*0.97831 -> 241.8088827 | H70: $372.43 Square
A71: 23957 | B71: 2017-09-11 | C71: 561.82 | D71: 42.82 | E71: $361.82 Due
A72: 23958 | B72: 2017-09-11 | C72: 90.93 | D72: 6.93 | E72: Visa
A73: 23959 | B73: 2017-09-11 | C73: 375 | D73: 28.58
A74: 23960 | B74: 2017-09-11 | C74: 107.17 | D74: 8.17 | E74: Visa
A75: 23961 | B75: 2017-09-11 | C75: 112.26 | D75: 8.56 | E75: Discover
A76: 23962 | B76: 2017-09-11 | C76: 10 | D76: 0.76 | F76: =+C58+C72+C74+C75 -> 523.07 | G76: =+F76*0.97831 -> 511.7246117
A77: 23963 | B77: 2017-09-12 | C77: 5.39 | D77: 0.41
A78: 23964 | B78: 2017-09-12 | C78: 2482 | E78: Due, Border Patrol
A79: 23965 | B79: 2017-09-12 | C79: 86.6 | D79: 6.6 | E79: Visa
A80: 23966 | B80: 2017-09-12 | C80: 8.55 | D80: 0.65
A81: 23967 | B81: 2017-09-12 | C81: 44.02 | E81: Due, Carlos G - Resale MX
A82: 23968 | B82: 2017-09-12 | C82: 27.06 | D82: 2.06 | E82: MC
A83: 23969 | B83: 2017-09-12 | C83: 102 | E83: Due, Carlos G - Resale MX
A84: 23970 | B84: 2017-09-12 | C84: 100 | D84: 7.62 | E84: Visa
A85: 23971 | B85: 2017-09-12 | C85: 81 | E85: Bike Rods - resale
A86: 23972 | B86: 2017-09-12 | C86: 32.48 | D86: 2.48 | E86: Visa | F86: =+C79+C82+100+C84+C86 -> 346.14 | G86: =+F86*0.97831 -> 338.6322234
A87: 23973 | B87: 2017-09-13 | C87: 92.01 | D87: 7.01
A88: 23974 | B88: 2017-09-13 | C88: 80.11 | D88: 6.11 | E88: Visa
A89: 23975 | B89: 2017-09-13 | C89: 54.13 | D89: 4.13 | E89: Visa
A90: 23976 | B90: 2017-09-13 | C90: 30 | E90: Johnny's Custom
A91: 23977 | B91: 2017-09-13 | C91: 155 | D91: 11.81 | E91: Due, Jet Ski
A92: 23978 | B92: 2017-09-13 | C92: 125 | D92: 9.53 | E92: Due, LeeZ Friend
A93: 23979 | B93: 2017-09-13 | C93: 830 | D93: 63.26
A94: 23980 | B94: 2017-09-13 | C94: 25.98 | D94: 1.98
A95: 23981 | B95: 2017-09-13 | C95: 22.73 | D95: 1.73 | E95: Visa
A96: 23982 | B96: 2017-09-13 | C96: 74.69 | D96: 5.69 | E96: MC
A97: 23983 | B97: 2017-09-13 | C97: 46.49 | D97: 3.54
A98: 23984 | B98: 2017-09-13 | C98: 245.73 | D98: 18.73 | E98: MC | F98: =+C88+C89+C95+C96+C98 -> 477.39 | G98: =+F98*0.97831 -> 467.0354109
A99: 23985 | B99: 2017-09-14 | C99: 6.39 | D99: 0.49 | E99: Visa
A100: 23986 | B100: 2017-09-14 | C100: 160 | D100: 12.19 | E100: $3 due
A101: 23987 | B101: 2017-09-14 | C101: 212.84 | E101: Due, Carlos G - Resale MX
A102: 23988 | B102: 2017-09-14 | C102: 53.04 | D102: 4.04 | E102: Visa
A103: 23989 | B103: 2017-09-14 | C103: 247.35 | D103: 18.85 | E103: $174.02 MC, Bal Cash
A104: 23990 | B104: 2017-09-14 | C104: 14 | D104: 1.07
A105: 23991 | B105: 2017-09-14 | C105: 0 | D105: 0 | E105: $200 cash Dep, Blk Duc.
A106: 23992 | B106: 2017-09-14 | C106: 20 | D106: 1.52
A107: 23993 | B107: 2017-09-14 | C107: 74.69 | D107: 5.69 | E107: Addl to Inv 23989 | F107: =+C99+C102+172.04 -> 231.47 | G107: =+F107*0.97831 -> 226.4494157
A108: 23994 | B108: 2017-09-15 | C108: 14 | D108: 1.07
A109: 23995 | B109: 2017-09-15 | C109: 45 | D109: 3.42
A110: 23996 | B110: 2017-09-15 | C110: 63.87 | D110: 4.87 | E110: MC
A111: 23997 | B111: 2017-09-15 | C111: 21.6 | D111: 1.65
A112: 23998 | B112: 2017-09-15 | C112: 20 | D112: 1.52
A113: 23999 | B113: 2017-09-15 | C113: 86.6 | D113: 6.6 | E113: MC
A114: 24000 | B114: 2017-09-15 | C114: 5.36 | D114: 0.41
A115: 24001 | B115: 2017-09-15 | C115: 32.48 | D115: 2.48 | E115: Visa | F115: =+C110+C115+C113 -> 182.95 | G115: =+F115*0.97831 -> 178.9818145
A116: 24002 | B116: 2017-09-16 | C116: 175 | D116: 13.34 | E116: Visa
A117: 24003 | B117: 2017-09-16 | C117: 492.54 | D117: 37.54 | E117: Visa
A118: 24004 | B118: 2017-09-16 | C118: 15 | D118: 1.14
A119: 24005 | B119: 2017-09-16 | C119: 256 | D119: 19.51
A120: 24006 | B120: 2017-09-16 | C120: 68 | D120: 5.18 | E120: $18 due
A121: 24007 | B121: 2017-09-16 | C121: 101.38 | D121: 7.73 | E121: Square | F121: =+C116+C117 -> 667.54 | G121: =+F121*0.97831 -> 653.0610574 | H121: $256.38 Square
A122: 24008 | B122: 2017-09-18 | C122: 15.16 | D122: 1.16
A123: 24009 | B123: 2017-09-18 | C123: 182.94 | D123: 13.94
A124: 24010 | B124: 2017-09-18 | C124: 28 | E124: Due, Brant
A125: 24011 | B125: 2017-09-18 | C125: 430 | D125: 32.77 | E125: $130 due
A126: 24012 | B126: 2017-09-18 | C126: 215 | D126: 16.39
A127: 24013 | B127: 2017-09-18 | C127: 45.47 | D127: 3.47 | E127: Visa
A128: 24014 | B128: 2017-09-18 | C128: 33 | E128: Due, George - revolution
A129: 24015 | B129: 2017-09-18 | C129: 8 | D129: 0.61 | F129: =+C127 -> 45.47 | G129: =+F129*0.97831 -> 44.4837557
A130: 24016 | B130: 2017-09-19 | C130: 268 | D130: 20.42 | E130: Visa
A131: 24017 | B131: 2017-09-19 | C131: 208.38 | D131: 15.88 | E131: MC
A132: 24018 | B132: 2017-09-19 | C132: 120 | D132: 9.15
A133: 24019 | B133: 2017-09-19 | C133: 290 | D133: 22.1
A134: 24020 | B134: 2017-09-19 | C134: 108.25 | D134: 8.25 | E134: $64.25 due
A135: 24021 | B135: 2017-09-19 | C135: 74.69 | D135: 5.69 | E135: Due
A136: 24022 | B136: 2017-09-19 | C136: 278.74 | D136: 21.24 | E136: Due
A137: 24023 | B137: 2017-09-19 | C137: 221.91 | D137: 16.91 | E137: $101.91 Square
A138: 24024 | B138: 2017-09-19 | C138: 25 | D138: 1.91 | E138: Square | F138: =+C130+C131 -> 476.38 | G138: =+F138*0.97831 -> 466.0473178 | H138: $315.00 Square
A139: 24025 | B139: 2017-09-20 | C139: 43.3 | D139: 3.3 | E139: Visa
A140: 24026 | B140: 2017-09-20 | C140: 28.09 | D140: 2.14 | E140: Visa
A141: 24027 | B141: 2017-09-20 | C141: 119 | D141: 9.07 | E141: Visa
A142: 24028 | B142: 2017-09-20 | C142: 59.4 | E142: Visa, Border Patrol
A143: 24029 | B143: 2017-09-20 | C143: 110 | D143: 8.38
A144: 24030 | B144: 2017-09-20 | C144: 33.56 | D144: 2.56 | E144: Visa
A145: 24031 | B145: 2017-09-20 | C145: 30 | D145: 2.29
A146: 24032 | B146: 2017-09-20 | C146: 192.69 | D146: 14.69 | E146: Due, meet in Weslaco Thur.
A147: 24033 | B147: 2017-09-20 | C147: 37.83 | D147: 2.88
A148: 24034 | B148: 2017-09-20 | C148: 62.73 | D148: 4.78
A149: 24035 | B149: 2017-09-20 | C149: 7.58 | D149: 0.58 | E149: Due | F149: =128.82+C139+C140+C141+C142+C144 -> 412.17 | G149: =+F149*0.97831 -> 403.2300327
A150: 24036 | B150: 2017-09-21 | C150: 27.06 | D150: 2.06 | E150: Visa
A151: 24037 | B151: 2017-09-21 | C151: 28.8 | E151: Visa, ESG - resale
A152: 24038 | B152: 2017-09-21 | C152: 74.69 | D152: 5.69 | E152: Visa
A153: 24039 | B153: 2017-09-21 | C153: 5 | D153: 0.38 | E153: Visa
A154: 24040 | B154: 2017-09-21 | C154: 19.49 | D154: 1.49 | E154: Visa
A155: 24041 | B155: 2017-09-21 | C155: 108.25 | D155: 8.25 | E155: Visa
A156: 24042 | B156: 2017-09-21 | C156: 234.9025 | D156: 17.9025 | E156: Due, Jeff
A157: 24043 | B157: 2017-09-21 | C157: 85.52 | D157: 6.52 | E157: Square
A158: 24044 | B158: 2017-09-21 | C158: 7.58 | D158: 0.58 | F158: =+C150+C152+C153+C154+C155+C151 -> 263.29 | G158: =+F158*0.97831 -> 257.5792399 | H158: $110.52 Square
A159: 24045 | B159: 2017-09-22 | C159: 35 | D159: 2.67
A160: 24046 | B160: 2017-09-22 | C160: 196.47 | D160: 14.97 | E160: MC
A161: 24047 | B161: 2017-09-22 | C161: 20 | D161: 1.52 | E161: Visa
A162: 24048 | B162: 2017-09-22 | C162: 281.45 | D162: 21.45 | E162: Due
A163: 24049 | B163: 2017-09-22 | C163: 36.81 | D163: 2.81 | E163: Visa
A164: 24050 | B164: 2017-09-22 | C164: 47.63 | D164: 3.63 | E164: Visa
A165: 24051 | B165: 2017-09-22 | C165: 68.74 | D165: 5.24 | E165: Visa
A166: 24052 | B166: 2017-09-22 | C166: 77.94 | D166: 5.94
A167: 24053 | B167: 2017-09-22 | E167: $300 deposit only
A168: 24054 | B168: 2017-09-22 | C168: 32 | D168: 2.44 | E168: Visa
A169: 24055 | B169: 2017-09-22 | C169: 41.14 | D169: 3.14 | E169: Visa
A170: 24056 | B170: 2017-09-22 | C170: 53.8 | E170: Visa, Border Patrol
A171: 24057 | B171: 2017-09-22 | C171: 62 | D171: 4.73
A172: 24058 | B172: 2017-09-22 | C172: 294 | D172: 22.41 | E172: Due, White HD
A173: 24059 | B173: 2017-09-22 | C173: 142 | E173: Due, Joe R - resale (Derick) | F173: =+C160+C163+C164+C165+C161+C168+C169+C170+C162 -> 778.04 | G173: =+F173*0.97831 -> 761.1643124
A174: 24060 | B174: 2017-09-23 | C174: 48.71 | D174: 3.71 | E174: Due
A175: 24061 | B175: 2017-09-23 | C175: 55.34 | D175: 4.22
A176: 24062 | B176: 2017-09-23 | C176: 98 | D176: 7.47 | E176: Square
A177: 24063 | B177: 2017-09-23 | C177: 10.83 | D177: 0.83 | E177: Square
A178: 24064 | B178: 2017-09-23 | C178: 63 | D178: 4.8
A179: 24065 | B179: 2017-09-23 | C179: 12.99 | D179: 0.99
A180: 24066 | B180: 2017-09-23 | C180: 14 | D180: 1.07
A181: 24067 | B181: 2017-09-23 | C181: 17.32 | D181: 1.32 | E181: Visa
A182: 24068 | B182: 2017-09-23 | C182: 16.18 | D182: 1.23 | E182: Square
A183: 24069 | B183: 2017-09-23 | C183: 24.9 | D183: 1.9 | E183: Due | F183: =+C181 -> 17.32 | G183: =+F183*0.97831 -> 16.9443292 | H183: $189.26 Square
A184: 24070 | B184: 2017-09-25 | C184: 64.95 | D184: 4.95 | E184: Due
A185: 24071 | B185: 2017-09-25 | C185: 16.18 | D185: 1.23 | E185: Visa
A186: 24072 | B186: 2017-09-25 | C186: 240.86 | D186: 18.36 | E186: Visa
A187: 24073 | B187: 2017-09-25 | C187: 273 | D187: 20.81 | E187: Due
A188: 24074 | B188: 2017-09-25 | C188: 155.88 | D188: 11.88 | E188: Due
A189: 24075 | B189: 2017-09-25 | C189: 23 | E189: Due, Revolution - resale
A190: 24076 | B190: 2017-09-25 | C190: 59.4 | E190: Visa, Border Patrol
A191: 24077 | B191: 2017-09-25 | C191: 94.39 | D191: 7.19 | E191: Visa
A192: 24078 | B192: 2017-09-25 | C192: 21.65 | D192: 1.65 | E192: Visa
A193: 24079 | B193: 2017-09-25 | C193: 182.94 | D193: 13.94 | E193: Visa
A194: 24080 | B194: 2017-09-25 | C194: 97.37 | D194: 7.42 | E194: Visa | F194: =+C185+115.21+C186+C193+C191+C194+C192 -> 768.6 | G194: =+F194*0.97831 -> 751.929066
A195: 24081 | B195: 2017-09-26 | C195: 12.45 | D195: 0.95
A196: 24082 | B196: 2017-09-26 | C196: 20.57 | D196: 1.57 | E196: MC
A197: 24083 | B197: 2017-09-26 | C197: 227.87 | D197: 17.37 | E197: Visa
A198: 24084 | B198: 2017-09-26 | C198: 12.99 | D198: 0.99 | E198: Visa
A199: 24085 | B199: 2017-09-26 | C199: 17.8 | E199: Due, Joe R - resale
A200: 24086 | B200: 2017-09-26 | C200: 344 | D200: 26.22 | F200: =+C196-100+C197+C198 -> 161.43 | G200: =+F200*0.97831 -> 157.9285833
... 19 more rows

Sheet Aug-17
A1: Invoice | C1: =SUM(C3:C412) -> 22000.78067 | D1: =SUM(D3:D412) -> 1393.010675 | F1: =SUM(F3:F412) -> 8713.4 | G1: =SUM(G3:G412) -> 8481.258578 | H1: =TODAY() -> 2018-07-20
A2: Number | B2: Date | C2: Amount | D2: Tax | E2: Terms
A3: 23678 | B3: 2017-08-01 | C3: 481.71 | D3: 36.71 | E3: Visa
A4: 23679 | B4: 2017-08-01 | C4: 4.33 | D4: 0.33 | E4: MC
A5: 23680 | B5: 2017-08-01 | C5: 79 | E5: Due, Revolution - resale
A6: 23681 | B6: 2017-08-01 | C6: 20 | D6: 1.52
A7: 23682 | B7: 2017-08-01 | C7: 77.39 | D7: 5.9 | E7: MC
A8: 23683 | B8: 2017-08-01 | C8: 33.94 | D8: 2.59
A9: 23684 | B9: 2017-08-01 | C9: 10.0023 | D9: 0.7623 | E9: Thanks
A10: 23685 | B10: 2017-08-01 | C10: 317 | E10: Due, Revolution - resale | F10: =+C3+C4+177.47-4.31+C7 -> 736.59 | G10: =+F10*0.97831 -> 720.6133629
A11: 23686 | B11: 2017-08-02 | C11: 22.73 | D11: 1.73 | E11: Due, Elvin
A12: 23687 | B12: 2017-08-02 | C12: 22 | E12: Due, Brant - Resale
A13: 23688 | B13: 2017-08-02 | C13: 21.65 | D13: 1.65
A14: 23689 | B14: 2017-08-02 | C14: 90.45 | D14: 6.89 | E14: Visa
A15: 23690 | B15: 2017-08-02 | C15: 29.23 | D15: 2.23 | E15: Visa
A16: 23691 | B16: 2017-08-02 | C16: 178.61 | D16: 13.61 | E16: Visa
A17: 23692 | B17: 2017-08-02 | C17: 297.58 | D17: 22.68 | E17: Visa
A18: 23693 | B18: 2017-08-02 | C18: 35 | D18: 2.67
A19: 23694 | B19: 2017-08-02 | C19: 2.17 | D19: 0.17
A20: 23695 | B20: 2017-08-02 | C20: 54.13 | D20: 4.13
A21: 23696 | B21: 2017-08-02 | C21: 14.29 | D21: 1.09 | F21: =+C14+C15+C16+C17+2.66 -> 598.53 | G21: =+F21*0.97831 -> 585.5478843
A22: 23697 | B22: 2017-08-03 | C22: 64.41 | D22: 4.91 | E22: Visa
A23: 23698 | B23: 2017-08-03 | C23: 151.55 | D23: 11.55 | E23: Due, Lem
A24: 23699 | B24: 2017-08-03 | C24: 184.03 | D24: 14.03
A25: 23700 | B25: 2017-08-03 | C25: 65.76 | D25: 5.01
A26: 23701 | B26: 2017-08-03 | C26: 70.36 | D26: 5.36 | E26: Visa | F26: =282.59+35+C22+25 -> 407 | G26: =+F26*0.97831 -> 398.17217
A27: 23702 | B27: 2017-08-04 | C27: 7 | D27: 0.53
A28: 23703 | B28: 2017-08-04 | C28: 227.33 | D28: 17.33 | E28: Due, Jeff
A29: 23704 | B29: 2017-08-04 | C29: 71.45 | D29: 5.45 | E29: MC
A30: 23705 | B30: 2017-08-04 | C30: 350 | D30: 26.67 | E30: Visa, Deposit only
A31: 23706 | B31: 2017-08-04 | C31: 56.29 | D31: 4.29
A32: 23707 | B32: 2017-08-04 | C32: 208.38 | D32: 15.88 | E32: Due
A33: 23708 | B33: 2017-08-04 | C33: 125 | D33: 9.53 | E33: Visa
A34: 23709 | B34: 2017-08-04 | C34: 18 | D34: 1.37 | F34: =35.36+C29+C30+C33 -> 581.81 | G34: =+F34*0.97831 -> 569.1905411
A35: 23710 | B35: 2017-08-05 | C35: 507.69 | D35: 38.69 | E35: Due
A36: 23711 | B36: 2017-08-05 | C36: 227.33 | D36: 17.33 | E36: Square
A37: 23712 | B37: 2017-08-05 | C37: 21.65 | D37: 1.65 | E37: Square
A38: 23713 | B38: 2017-08-05 | C38: 2.5 | D38: 0.19 | E38: Visa
A39: 23714 | B39: 2017-08-05 | C39: 21.65 | D39: 1.65
A40: 23715 | B40: 2017-08-05 | C40: 110 | E40: Due, Joe Rangel - resale
A41: 23716 | B41: 2017-08-05 | C41: 226 | D41: 17.23 | E41: Gift Card $20, Square $35
A42: 23717 | B42: 2017-08-05 | C42: 82 | D42: 6.25 | E42: $17 Square
A43: 23718 | B43: 2017-08-06 | C43: 379.85 | D43: 28.95 | E43: Due, Rubin - AC guy son | F43: =+C38 -> 2.5 | G43: =+F43*0.97831 -> 2.445775 | H43: $808.67 Square
A44: 23719 | B44: 2017-08-07 | C44: 29.4 | E44: Visa
A45: 23720 | B45: 2017-08-07 | C45: 9.74 | D45: 0.74 | E45: Visa
A46: 23721 | B46: 2017-08-07 | C46: 69.28 | D46: 5.28 | E46: Due
A47: 23722 | B47: 2017-08-07 | C47: 162.38 | D47: 12.38
A48: 23723 | B48: 2017-08-07 | C48: 34.64 | D48: 2.64
A49: 23724 | B49: 2017-08-07 | C49: 32 | D49: 2.44 | F49: =+C44+C45 -> 39.14 | G49: =+F49*0.97831 -> 38.2910534 | H49: ?
A50: 23725 | B50: 2017-08-08 | C50: 15 | E50: Visa
A51: 23726 | B51: 2017-08-08 | C51: 8.66 | D51: 0.66
A52: 23727 | B52: 2017-08-08 | C52: 465 | D52: 35.44
A53: 23728 | B53: 2017-08-08 | C53: 102 | D53: 7.77
A54: 23729 | B54: 2017-08-08 | C54: 12.99 | D54: 0.99
A55: 23730 | B55: 2017-08-08 | C55: 210.01 | D55: 16.01
A56: 23731 | B56: 2017-08-08 | C56: 19.49 | D56: 1.49 | E56: MC | F56: =+C50+C56 -> 34.49 | G56: 33.7 | H56: ?
A57: 23732 | B57: 2017-08-09 | C57: 74.69 | D57: 5.69
A58: 23733 | B58: 2017-08-09 | C58: 21.6 | D58: 1.65 | E58: MC
A59: 23734 | B59: 2017-08-09 | C59: 7.52 | D59: 0.57 | E59: Visa
A60: 23735 | B60: 2017-08-09 | C60: 75.72 | D60: 5.77 | E60: Visa | F60: =+C58+C59+C60 -> 104.84 | G60: 103.52 | H60: ?
A61: 23736 | B61: 2017-08-10 | C61: 29.4 | E61: Visa
A62: 23737 | B62: 2017-08-10 | C62: 25.2 | E62: Visa
A63: 23738 | B63: 2017-08-10 | C63: 25.2 | E63: Visa
A64: 23739 | B64: 2017-08-10 | C64: 84.44 | D64: 6.44 | E64: Due
A65: 23740 | B65: 2017-08-10 | C65: 8.66 | D65: 0.66
A66: 23741 | B66: 2017-08-10 | C66: 17.3 | D66: 1.32 | E66: Visa
A67: 23742 | B67: 2017-08-10 | C67: 550 | D67: 41.92 | F67: =+C61+C62+C63+C66 -> 97.1 | G67: =+F67*0.97831 -> 94.993901 | H67: ?
A68: 23743 | B68: 2017-08-11 | C68: 35.5 | D68: 2.89
A69: 23744 | B69: 2017-08-11 | C69: 0 | E69: Alex cash
A70: 23745 | B70: 2017-08-11 | C70: 20.5 | D70: 1.56 | E70: Visa
A71: 23746 | B71: 2017-08-11 | C71: 43.25 | D71: 3.3
A72: 23747 | B72: 2017-08-11 | C72: 38.92 | D72: 2.97
A73: 23748 | B73: 2017-08-11 | C73: 25.93 | D73: 1.98 | E73: Visa
A74: 23749 | B74: 2017-08-11 | C74: 173 | E74: J.Rangel - Resale
A75: 23750 | B75: 2017-08-11 | C75: 84 | E75: Due, Brant - Resale | F75: =+C70+C73 -> 46.43 | G75: 45.63
A76: 23751 | B76: 2017-08-12 | C76: 29.23 | D76: 2.23
A77: 23752 | B77: 2017-08-12 | C77: 153.17 | D77: 11.67 | E77: $53.17 due (if bike here Sat)
A78: 23753 | B78: 2017-08-12 | C78: 96.34 | D78: 7.34 | E78: MC
A79: 23754 | B79: 2017-08-12 | C79: 250.06 | D79: 19.06 | E79: Due, Paul
A80: 23755 | B80: 2017-08-12 | C80: 15 | D80: 1.14
A81: 23756 | B81: 2017-08-12 | C81: 67.66 | D81: 5.16
A82: 23757 | B82: 2017-08-12 | C82: 81.19 | D82: 6.19 | E82: Visa
A83: 23758 | B83: 2017-08-12 | C83: 40 | D83: 3.05 | E83: Square
A84: 23759 | B84: 2017-08-12 | C84: 9.69 | D84: 0.74
A85: 23760 | B85: 2017-08-12 | C85: 0 | E85: Visa, $150 Dep, Jeff
A86: 23761 | B86: 2017-08-13 | C86: 32 | D86: 2.44 | E86: Due, Chevo | F86: =+C78+C82+150 -> 327.53 | G86: 324.24 | H86: $40.00 Square
A87: 23762 | B87: 2017-08-14 | C87: 27 | D87: 2.06 | E87: Due, Elvin
A88: 23763 | B88: 2017-08-14 | C88: 5.36 | D88: 0.41 | E88: Visa
A89: 23764 | B89: 2017-08-14 | C89: 184.57 | D89: 14.07 | E89: Visa, $84.57 due
A90: 23765 | B90: 2017-08-14 | C90: -90.93 | D90: -6.93 | E90: Due, (credit his Visa)
A91: 23766 | B91: 2017-08-14 | C91: 15 | D91: 1.14 | E91: Visa
A92: 23767 | B92: 2017-08-14 | C92: 141.75 | E92: Due, Carlos G - resale MX
A93: 23768 | B93: 2017-08-14 | C93: 163.47 | D93: 12.46 | F93: =+C88+100+C91 -> 120.36 | G93: 118.28
A94: 23769 | B94: 2017-08-15 | C94: 119.08 | D94: 9.08 | E94: Visa
A95: 23770 | B95: 2017-08-15 | C95: 119.08 | D95: 9.08 | E95: Square
A96: 23771 | B96: 2017-08-15 | C96: 34.39 | E96: J.Rangel - resale
A97: 23772 | B97: 2017-08-15 | C97: 140 | D97: 10.67
A98: 23773 | B98: 2017-08-15 | C98: 15.16 | D98: 1.16 | E98: Due, Allen
A99: 23774 | B99: 2017-08-15 | C99: 0 | E99: Square $250 deposit | F99: =+C94+369.08 -> 488.16 | G99: =116.57+310.95 -> 427.52
A100: 23775 | B100: 2017-08-16 | C100: 3.25 | D100: 0.25
A101: 23776 | B101: 2017-08-16 | C101: 59.79 | E101: Due, Carlos G - resale MX
A102: 23777 | B102: 2017-08-16 | C102: 243.02 | D102: 18.52 | E102: Visa, $120 due
A103: 23778 | B103: 2017-08-16 | C103: 132.61 | D103: 10.11
A104: 23779 | B104: 2017-08-16 | C104: 32.48 | D104: 2.48 | E104: Visa
A105: 23780 | B105: 2017-08-16 | C105: 0 | D105: 0 | E105: Deposit only, $100 check
A106: 23781 | B106: 2017-08-16 | C106: 22.73 | D106: 1.73 | E106: MC | F106: =123.02+C104+C106 -> 178.23 | G106: 174.64
A107: 23782 | B107: 2017-08-17 | C107: 85.52 | D107: 6.52 | E107: Visa
A108: 23783 | B108: 2017-08-17 | C108: 75.78 | D108: 5.78
A109: 23784 | B109: 2017-08-17 | C109: 17 | E109: George - Revolution Resale
A110: 23785 | B110: 2017-08-17 | C110: 27.06 | D110: 2.06
A111: 23786 | B111: 2017-08-17 | C111: 23 | E111: Visa, Used - no Tax
A112: 23787 | B112: 2017-08-17 | C112: 100 | D112: 7.62
A113: 23788 | B113: 2017-08-17 | C113: 147.43 | D113: 7.43 | E113: Visa
A114: 23789 | B114: 2017-08-17 | C114: 151.23 | D114: 11.53
A115: 23790 | B115: 2017-08-17 | C115: 48 | E115: Due, George - Revolution resale | F115: =+C107+C111+C113 -> 255.95 | G115: =+F115*0.97831 -> 250.3984445
A116: 23791 | B116: 2017-08-18 | C116: 19 | E116: Due, George - Revolution resale
A117: 23792 | B117: 2017-08-18 | C117: 5 | D117: 0.38 | E117: (Actual sale date 17th)
A118: 23793 | B118: 2017-08-18 | C118: 24.9 | D118: 1.9
A119: 23794 | B119: 2017-08-18 | C119: 397.28 | D119: 30.28 | E119: $163.64 due
A120: 23795 | B120: 2017-08-18 | C120: 79.02 | D120: 6.02 | E120: Visa
A121: 23796 | B121: 2017-08-18 | C121: 15 | D121: 1.14 | E121: Visa
A122: 23797 | B122: 2017-08-18 | C122: 54.13 | D122: 4.13
A123: 23798 | B123: 2017-08-18 | C123: 95 | E123: Due, Brant - Resale
A124: 23799 | B124: 2017-08-18 | C124: 160 | E124: J.Rangel - resale
A125: 23800 | B125: 2017-08-18 | C125: 142 | D125: 10.82
A126: 23801 | B126: 2017-08-18 | C126: 64.95 | D126: 4.95 | E126: MC
A127: 23802 | B127: 2017-08-18 | C127: 139.64 | D127: 10.64 | E127: Square | F127: =163.64+C120+C126+120+C98 -> 442.77 | G127: =+F127*0.97831 -> 433.1663187 | H127: $139.64 Square
A128: 23803 | B128: 2017-08-19 | C128: 10 | D128: 0.76
A129: 23804 | B129: 2017-08-19 | C129: 167.79 | D129: 12.79 | E129: Square
A130: 23805 | B130: 2017-08-19 | C130: 277 | D130: 19.1 | E130: Check
A131: 23806 | B131: 2017-08-19 | C131: 65 | D131: 4.95 | E131: Visa
A132: 23807 | B132: 2017-08-19 | C132: 48.71 | D132: 3.71 | E132: Visa
A133: 23808 | B133: 2017-08-19 | C133: 21.65 | D133: 1.65 | E133: Visa
A134: 23809 | B134: 2017-08-19 | C134: 83.77 | D134: 6.38 | E134: Due
A135: 23810 | B135: 2017-08-19 | C135: 216.5 | D135: 16.5 | E135: Square
A136: 23811 | B136: 2017-08-19 | C136: 114.75 | D136: 8.75 | F136: =+C131+C133+C132 -> 135.36 | G136: =+F136*0.97831 -> 132.4240416 | H136: $384.29 Square
A137: 23812 | B137: 2017-08-21 | C137: 487 | D137: 37
A138: 23813 | B138: 2017-08-21 | C138: 155.88 | D138: 11.88
A139: 23814 | B139: 2017-08-21 | C139: 263.05 | D139: 20.05 | E139: Visa
A140: 23815 | B140: 2017-08-21 | C140: 35 | E140: MC
A141: 23816 | B141: 2017-08-21 | C141: 21.6 | D141: 1.65
A142: 23817 | B142: 2017-08-21 | C142: 10 | D142: 0.76
A143: 23818 | B143: 2017-08-21 | C143: 52 | E143: Visa
A144: 23819 | B144: 2017-08-21 | C144: 546.66 | D144: 41.66 | E144: Visa, $296.66 due
A145: 23820 | B145: 2017-08-21 | C145: 368.59 | D145: 28.09 | E145: Due
A146: 23821 | B146: 2017-08-21 | C146: 40 | F146: =+C139+C140+C143+C144 -> 896.71 | G146: =+F146*0.97831 -> 877.2603601 | H146: ??
A147: 23822 | B147: 2017-08-22 | C147: 101.76 | D147: 7.76 | E147: Due
A148: 23823 | B148: 2017-08-22 | C148: 47.5 | E148: Due
A149: 23824 | B149: 2017-08-22 | C149: 74.31 | D149: 5.66
A150: 23825 | B150: 2017-08-22 | C150: 87.52 | D150: 6.67 | E150: Visa
A151: 23826 | B151: 2017-08-22 | C151: 7.52 | D151: 0.57
A152: 23827 | B152: 2017-08-22 | C152: 54.07 | D152: 4.12 | E152: Due | F152: =+C150 -> 87.52 | G152: =+F152*0.97831 -> 85.6216912 | H152: ??
A153: 23828 | B153: 2017-08-23 | C153: 8.66 | D153: 0.66
A154: 23829 | B154: 2017-08-23 | C154: 97.43 | D154: 7.43 | E154: Discover
A155: 23830 | B155: 2017-08-23 | C155: 374.95 | D155: 28.58 | E155: Check - Inv 23780
A156: 23831 | B156: 2017-08-23 | C156: 115.68 | E156: Due, Carlos G - resale MX
A157: 23832 | B157: 2017-08-23 | C157: 28 | E157: Due, Brant - Resale
A158: 23833 | B158: 2017-08-23 | C158: 115.68 | E158: Due, Carlos G - resale MX
A159: 23834 | B159: 2017-08-23 | C159: 90 | D159: 6.86 | E159: Visa
A160: 23835 | B160: 2017-08-23 | C160: 326.92 | D160: 24.92
A161: 23836 | B161: 2017-08-23 | C161: 78.97 | D161: 6.02
A162: 23837 | B162: 2017-08-23 | C162: 320.16 | E162: Due, Carlos G - resale MX
A163: 23838 | B163: 2017-08-23 | C163: 2.25 | D163: 0.18 | F163: =+C154+100+C159 -> 287.43 | G163: 282.36
A164: 23839 | B164: 2017-08-24 | C164: 160 | D164: 12.19
A165: 23840 | B165: 2017-08-24 | C165: 10 | E165: Don - Falfurious, resale
A166: 23841 | B166: 2017-08-24 | C166: 53.8 | E166: Due, Border Pat
A167: 23842 | B167: 2017-08-24 | C167: 8 | D167: 0.59 | E167: Square
A168: 23843 | B168: 2017-08-24 | C168: 270 | E168: Due
A169: 23844 | B169: 2017-08-24 | C169: 411 | D169: 31.32
A170: 23845 | B170: 2017-08-24 | C170: 9 | D170: 0.68 | E170: Due
A171: 23846 | B171: 2017-08-24 | C171: 16.5 | E171: George - Revolution Resale
A172: 23847 | B172: 2017-08-24 | C172: 177 | E172: Due, George - Revolution resale
A173: 23848 | B173: 2017-08-24 | C173: 89 | E173: Joe Rangel - resale
A174: 23849 | B174: 2017-08-24 | C174: 277.08 | D174: 20.13 | E174: Visa, $177.08 due
A175: 23850 | B175: 2017-08-24 | C175: 195 | D175: 14.86 | F175: =302+100 -> 402 | G175: =+F175*0.97831 -> 393.28062 | H175: $158.00 / $133.11 Square
A176: 23851 | B176: 2017-08-25 | C176: 146.14 | D176: 11.14
A177: 23852 | B177: 2017-08-25 | C177: 85 | E177: Due, Revolution - resale
A178: 23853 | B178: 2017-08-25 | C178: 55.96 | E178: Visa, ESG Customs - resale
A179: 23854 | B179: 2017-08-25 | C179: 33.56 | D179: 2.56 | E179: Visa
A180: 23855 | B180: 2017-08-25 | C180: 31.39 | D180: 2.39
A181: 23856 | B181: 2017-08-25 | C181: 30.5 | E181: Joe Rangel - resale
A182: 23857 | B182: 2017-08-25 | C182: 3.25 | D182: 0.25
A183: 23858 | B183: 2017-08-25 | C183: 160 | D183: 12.19 | E183: Square
A184: 23859 | B184: 2017-08-25 | C184: 248.98 | D184: 18.98 | E184: MC, $100 due
A185: 23860 | B185: 2017-08-25 | C185: 24.9 | D185: 1.9 | E185: Visa | F185: =+C178+C179+53.8+C90+148.98+C185 -> 226.27 | G185: =+F185*0.97831 -> 221.3622037
A186: 23861 | B186: 2017-08-26 | C186: 544.5 | D186: 41.5 | E186: Visa
A187: 23862 | B187: 2017-08-26 | C187: 121.24 | D187: 9.24 | E187: Square
A188: 23863 | B188: 2017-08-26 | C188: 53.04 | D188: 4.04
A189: 23864 | B189: 2017-08-26 | C189: 158.05 | D189: 12.05 | E189: $140. Visa, bal cash | F189: =+C186 -> 544.5 | G189: =+F189*0.97831 -> 532.689795 | H189: $309.24 Square
A190: 23865 | B190: 2017-08-28 | C190: 26.84 | D190: 1.89
A191: 23866 | B191: 2017-08-28 | C191: 15 | D191: 1.14 | E191: Square
A192: 23867 | B192: 2017-08-28 | C192: 106.09 | D192: 8.09 | E192: Square | F192: 0 | G192: =+F192*0.97831 -> 0 | H192: $121.09 Square
A193: 23868 | B193: 2017-08-29 | C193: 26.85 | D193: 2.05
A194: 23869 | B194: 2017-08-29 | C194: 18.94 | D194: 1.44
A195: 23870 | B195: 2017-08-29 | C195: 30 | D195: 2.29
A196: 23871 | B196: 2017-08-29 | C196: 21.65 | D196: 1.65 | F196: 0 | G196: =+F196*0.97831 -> 0
A197: 23872 | B197: 2017-08-30 | C197: 92.01 | D197: 7.01 | E197: MC
A198: 23873 | B198: 2017-08-30 | C198: 43.3 | D198: 3.3
A199: 23874 | B199: 2017-08-30 | C199: 54.13 | D199: 4.13 | E199: Visa
A200: 23875 | B200: 2017-08-30 | C200: 39.998375 | D200: 3.048375 | E200: Visa
... 27 more rows

Sheet Work Order
A1: RGV Cycle Stuff, dba -
U2: WORK ORDER
AC5: DATE:
B13: Bill To:
D14: Name: | E14: Tony
D15: Phone:
D16: Bike:
D17: Address:
A19: Type | E19: Sales Rep / Tech | M19: VIN | Y19: Miles | AD19: Terms
E20: Rober/ Chris M.
A22: Product ID | E22: Description | T22: Quantity | Y22: Unit Price | AD22: Line Total
AD23: =+Y23*T23 -> 0
E24: Basic oil Change | AL24: -1
AL25: -9.5
AL26: -5
AL27: -1
AL28: 2
AL29: -9.5
AL30: -4
AL31: 0
AD32: =+T32*Y32 -> 0 | AL32: 0
AD33: =+T33*Y33 -> 0
AD34: =+T34*Y34 -> 0
F35: RGV Cycle Center | AB35: SUBTOTAL
F36: 2716 N.10th Street | AB36: TAX (8.25%)
F37: McAllen, TX 78501 | AB37: TOTAL
A38: I hereby authorize the above repair work be done along with necessary materials. You and your employees may operate the above vehicle for the purpose of testing, inspection or delivery at my risk. An express mechanic’s lien is acknowledged on the above vehicle to secure the amount of the repairs thereto. You will not be responsible for loss or damage to vehicle or to articles left in the vehicle in case of fire, theft, accident or any other cause beyond your control. | AB38: PAID
AB39: TOTAL
A45: X _______________________________________
A46: 956-688-8086
A48: THANK YOU FOR YOUR BUSINESS !

Sheet LookupList
A1: ClassID | B1: ExpID | C1: Cash Opening Balance | D1: VendorID | E1: Starting Balance (Memo only, not used by system) | G1: Tire Disposal Fee prompted?
A2: Advertising | B2: Bobbi | C2: 1246.11 | D2: TR | E2: 255.49 | G2: FALSE
A3: Automotive | B3: BofA | D3: WPS
A4: Taxes | B4: Cleaning supplies | D4: AET | E4: Mechanic receiving commission (needs 2 b with capital) | G4: Whitewall check prompted?
A5: Credit Card (CC) | B5: Coffee | D5: BikeBandit | E5: Jim | G5: FALSE | H5: FALSE
A6: Stock | B6: Compass | D6: DWG
A7: Labor | B7: Dad | D7: FHF | E7: Invoice Number when the program is loaded
A8: Bank | B8: Doctor | D8: Helmets | E8: 26056 | F8: 20718
A9: Returns | B9: Family | D9: Hesselbean
A10: Shop Supplies | B10: Gasoline | D10: Howards
A11: Charity | B11: Groceries | D11: Maxx
A12: Fees | B12: Maint / Parts | D12: PapaDuff
A13: Office supplies | B13: Licence / Insp | D13: Supersprox
A14: Rent | B14: Insurance | D14: Van Leeuwen
B15: Harbor Freight | D15: eBay
B16: House Pymt | D16: Amazon
B17: Meals | D17: Tmart
B18: Mustang Mtg | D18: Banggood
B19: Myself | D19: Other
B20: O'Reilly
B21: Paint/Ant Spray
B22: Prescriptions
B23: Printer Ink
B24: Robert E
B25: Randy
B26: Elvin
B27: Chris M
B28: Chris F
B29: Joe R
B30: Stock - Amazon
B31: Stock - Ebay
B32: Stock - Other
B33: Stock ESG
B34: Stock TR
B35: Stock WPS
B36: Uniforms
B37: Water
B38: ST Biker
B39: Extreem
B40: Advertising - Other

Sheet Statement
J1: Statement
J4: Date: | K4: =NOW() -> 2018-07-20T19:54:04.640
A6: Same day Motorcycle Tire Mounting & Balancing
A8: 2716 N.10th Street - McAllen, Texas 78501
A13: Bill To: | H13: Account Summary
A14: Chris Fantich | H14: Previous Balance | L14: 0
A15: Resale | H15: Credits | L15: =SUM(J21:K41) -> 940
A16: Texas | H16: New Charges | L16: =SUM(H21:I41) -> 660.9
A17: 956-212-3417 | H17: Total Balance Due | L17: =+L14-L15+L16 -> -279.1
A20: Date | B20: Invoice # | C20: Description | H20: Charges | J20: Credits | L20: Line Total
A21: 2016-03-01 | B21: 19146 | C21: Honda TourPac w/Seat-back | J21: 80 | L21: =+H21-J21 -> -80
A22: 2016-04-25 | B22: 19732 | C22: Whl Brng Kit & Ride-On | H22: 39.8 | L22: =+H22-J22 -> 39.8
A23: 2016-05-02 | B23: 19787 | C23: Hogtenna & Battery | H23: 114 | L23: 114
A24: 2016-05-07 | B24: 19836 | C24: Brake Pad FA458 | H24: 18 | L24: 18
A25: 2016-05-10 | B25: 19860 | C25: Fork Oil 20w, Chrm Filters | H25: 24.5 | L25: 24.5
A26: 2016-05-19 | B26: 19933 | C26: Fork Oil 5w - Returned | L26: 0
A27: 2016-05-10 | B27: N/A | C27: Seat - Brant | H27: 120 | L27: 120
A28: 2016-05-20 | B28: 19937 | C28: YZ80 Labor & Fuel | J28: 196.5 | L28: -196.5
A29: 2016-05-20 | B29: 19938 | C29: YZ85 Labor & Fuel | J29: 186.5 | L29: -186.5
E30: Now even | H30: 147 | L30: 147
A31: 2016-05-16 | B31: 19901 | C31: Shifter, Fork Seal | H31: 41 | L31: 41
A32: 2016-05-20 | C32: 883 Hugger, Work | J32: 177 | L32: -177
A33: 2016-05-21 | B33: 19954 | C33: Dunlop Installed | H33: 156.6 | L33: 156.6
C34: May - South Texas Biker | J34: 300 | L34: -300
L35: 0
L36: 0
L37: 0
L38: 0
L39: 0
L40: 0
L41: 0
K42: Current Balance | L42: =SUM(L21:L41) -> -279.1
C44: Your account balance is | D44: =+L42 -> -279.1 | E44: Please make your payment to cover the balance by the due date.
A46: Make all checks payable to RGV Cycle Center.
A48: Thank you for your business!
A50: If you have any questions concerning this statement, contact Robert Evenbly.
A53: 2716 N.10th Street, McAllen, Texas 78501
A55: Phone: 956-688-8086 - Email: Info@RGVCycleStuff.com

Sheet Master
A1: RGV Cycle Stuff, dba -
T2: SALES RECEIPT
AC5: DATE: | AD5: =TODAY() -> 2018-07-20
AC6: INVOICE: | AD6: 1610
B13: Bill To: | X13: Ship To: | AL13: Note:
C14: Name: | AA14: =+E14 -> 0
C15: Phone: | AA15: =+E15 -> 0
C16: Address: | AA16: =+E16 -> 
C17: Email: | AA17: =+E17 -> 
K19: Custom LED Lighting
A20: Type | E20: Sales Rep / Tech | M20: VIN | T20: Miles | Y20: Terms | AD20: Due Date
A23: Product ID | E23: Description | T23: Quantity | Y23: Unit Price | AD23: Line Total
AD24: =ROUND(+T24*Y24+0.000001,2) -> 0
AD25: 0
AD26: 0
AD27: 0
AD28: 0
AD29: 0
AD30: 0
AD31: 0
AD32: 0
AD33: 0
AD34: 0
AD35: 0
AB36: SUBTOTAL | AD36: =SUM(AD24:AH35) -> 0
F37: RGV Cycle Center | AB37: TAX (8.25%) | AD37: =ROUND(+AD36*0.0825,2) -> 0
F38: 2716 N.10th Street | AB38: SHIPPING & HANDLING
F39: McAllen, TX 78501 | AB39: TOTAL | AD39: =SUM(AD36:AH38) -> 0
A40: NOTES: | AB40: PAID
A41: Use caution with new tires, "slippery" for the first 100 miles. | AB41: TOTAL DUE | AD41: =+AD39-AD40 -> 0
A42: Check all fastening nuts and bolts after 100 miles.
A43: No refunds on self installed electrical items or Helmets.
A44: 25% restocking fee after 7 days & all Special Orders.
A45: 956-688-8086
A47: THANK YOU FOR YOUR BUSINESS !

Sheet E_Master
A1: RGV Cycle Stuff, dba -
U2: ESTIMATE
AC5: DATE: | AD5: =NOW() -> 2018-07-20T19:54:04.640
B13: Bill To: | X13: Ship To: | AL13: Note:
E14: Cash Customer | AA14: =+E14 -> Cash Customer
AA15: =+E15 -> 0
AA16: =+E16 -> 0
E17: USA | L17: ESTIMATE | AA17: =+E17 -> USA
A20: Type | E20: Sales Rep / Tech | M20: VIN | T20: Miles | Y20: Terms | AD20: Due Date
E21: Robert | Y21: Cash
A23: Product ID | E23: Description | T23: Quantity | Y23: Unit Price | AD23: Line Total
AD24: =+T24*Y24 -> 0 | AL24: 1
AD25: 0 | AL25: 1
AD26: 0
AD27: 0
AD28: 0 | AL28: -3
AD29: 0 | AL29: 0
AD30: 0
AD31: 0
AD32: 0
AD33: 0
AD34: 0
E35: Estimates valid for 10 days | AD35: 0
AB36: SUBTOTAL | AD36: =SUM(AD24:AH35) -> 0
F37: RGV Cycle Center | AB37: TAX (8.25%) | AD37: =+AD36*0.0825 -> 0
F38: 2716 N.10th Street | AB38: SHIPPING & HANDLING
F39: McAllen, TX 78501 | AB39: TOTAL | AD39: =SUM(AD36:AH38) -> 0
A40: NOTES: | AB40: PAID
A41: Use caution with new tires, "slippery" for the first 100 miles. Check all fastening nuts and bolts after 100 miles. No refunds on self installed electrical items. 20% restocking fee after 7 days & Special Orders. | AB41: TOTAL EST. | AD41: =+AD39-AD40 -> 0
A45: 956-688-8086
A47: THANK YOU FOR YOUR BUSINESS !

Sheet Master Register
A1: Invoice | C1: =SUM(C4:C201) -> 0 | D1: =SUM(D4:D201) -> 0 | H1: =TODAY() -> 2018-07-20
A2: Number | B2: Date | C2: Amount | D2: Tax | E2: Terms
I4: =H1-WEEKDAY(H1,3)-7 -> 2018-07-09 | J4: =SUMIF(INDIRECT(TEXT(I4,"'mmm-yy'")&"!B3:B400"),I4,INDIRECT(TEXT(I4,"'mmm-yy'")&"!C3:C400")) -> 1358.07
I5: =I4+1 -> 2018-07-10 | J5: 505
I6: 2018-07-11 | J6: 833.3
I7: 2018-07-12 | J7: 831.11
I8: 2018-07-13 | J8: 882.05
I9: 2018-07-14 | J9: 3060.02
I10: 2018-07-15 | J10: 0 | K10: =SUM(J4:J10) -> 7469.55
I11: 2018-07-16 | J11: 1060.13
I12: 2018-07-17 | J12: 793.53
I13: 2018-07-18 | J13: 681.78
I14: 2018-07-19 | J14: 46.91
I15: 2018-07-20 | J15: 1725.16
I16: 2018-07-21 | J16: 159
I17: 2018-07-22 | J17: 0 | K17: =SUM(J11:J17) -> 4466.51

Sheet Perpetual
B1: Vendor: | C1: TR | D1: Date Parts Received: | E1: 2018-05-10
F2: (this date can be changed)
A5: Quantity | B5: Unit | E5: Updated | F5: Last | G5: Last
A6: Received | B6: Cost | C6: Part Number | D6: Part Description | E6: Inventory | F6: Received | G6: Cost
A7: 1 | B7: 51.3 | C7: 310504 | D7: Dunlop *100/90-19 D404 FR | E7: -4 | F7: 2014-12-10 | G7: 66.66
A8: 1 | B8: 5 | C8: 420416 | D8: RR Master Cyl Rebuild Kit XL | E8: 0 | F8: N/A | G8: N/A
A9: 1 | B9: 0.85 | C9: 222558 | D9: HD Deuce Lens - Smoke | E9: 10 | F9: 2017-10-25 | G9: 0.85
